Body Name,Body,Date,Department,Beneficiary,Summary of Purpose (SeRCOP),Amount,Merchant Code,Transaction Number
Sandwell Metropolitan Borough Council,http://www.sandwell.gov.uk/info/200202/performance_and_spending/3233/government_procurement_cards,04-Apr-2022,FINANCE (Inc SIU),POST OFFICE COUNTER,Assistant Chief Executive (Excl SIU),23.48,POSTAL SERVICES-GOVERNMENT ONLY,2022-23Q1_PC1
Sandwell Metropolitan Borough Council,http://www.sandwell.gov.uk/info/200202/performance_and_spending/3233/government_procurement_cards,04-Apr-2022,Director of Law & Governance,SAINSBURYS S/MKTS,Assistant Chief Executive (Excl SIU),36.55,"GROCERY STORES, SUPERMARKETS",2022-23Q1_PC2
Sandwell Metropolitan Borough Council,http://www.sandwell.gov.uk/info/200202/performance_and_spending/3233/government_procurement_cards,04-Apr-2022,Director of Law & Governance,Amazon.co.uk 2939J1BL4,Assistant Chief Executive (Excl SIU),21.85,DIRECT MARKETING-OTHER DIRECT MARKETERS/NOT ELSEW.,2022-23Q1_PC3
Sandwell Metropolitan Borough Council,http://www.sandwell.gov.uk/info/200202/performance_and_spending/3233/government_procurement_cards,04-Apr-2022,Childrens Services,AMZNMKTPLACE AMAZON.CO,Childrens Services,191.67,MISCELLANEOUS AND SPECIALTY RETAIL STORES,2022-23Q1_PC4
Sandwell Metropolitan Borough Council,http://www.sandwell.gov.uk/info/200202/performance_and_spending/3233/government_procurement_cards,04-Apr-2022,Childrens Services,AMZNMKTPLACE AMAZON.CO,Childrens Services,195.29,MISCELLANEOUS AND SPECIALTY RETAIL STORES,2022-23Q1_PC5
Sandwell Metropolitan Borough Council,http://www.sandwell.gov.uk/info/200202/performance_and_spending/3233/government_procurement_cards,04-Apr-2022,Childrens Services,AMZNMKTPLACE AMAZON.CO,Childrens Services,21.29,MISCELLANEOUS AND SPECIALTY RETAIL STORES,2022-23Q1_PC6
Sandwell Metropolitan Borough Council,http://www.sandwell.gov.uk/info/200202/performance_and_spending/3233/government_procurement_cards,04-Apr-2022,Childrens Services,AMZNMktplace,Childrens Services,165.82,MISCELLANEOUS AND SPECIALTY RETAIL STORES,2022-23Q1_PC7
Sandwell Metropolitan Borough Council,http://www.sandwell.gov.uk/info/200202/performance_and_spending/3233/government_procurement_cards,04-Apr-2022,Childrens Services,AMZNMKTPLACE AMAZON.CO,Childrens Services,141.13,MISCELLANEOUS AND SPECIALTY RETAIL STORES,2022-23Q1_PC8
Sandwell Metropolitan Borough Council,http://www.sandwell.gov.uk/info/200202/performance_and_spending/3233/government_procurement_cards,04-Apr-2022,FINANCE (Inc SIU),S-ON T CITY COUNCIL,Assistant Chief Executive (Excl SIU),10,GOVERNMENT SERVICES-NOT ELSEWHERE CLASSIFIED,2022-23Q1_PC9
Sandwell Metropolitan Borough Council,http://www.sandwell.gov.uk/info/200202/performance_and_spending/3233/government_procurement_cards,04-Apr-2022,Regeneration & Growth,GRANGE REMOVAL CO LTD,Regeneration And The Economy,750,"FREIGHT CARRIER,TRUCKING-LCL/LNG DIST, MVG/STORAGE",2022-23Q1_PC10
Sandwell Metropolitan Borough Council,http://www.sandwell.gov.uk/info/200202/performance_and_spending/3233/government_procurement_cards,04-Apr-2022,Total Borough Economy,AMZ SpectraUK,Total Adult Social Care,-71.7,MISCELLANEOUS AND SPECIALTY RETAIL STORES,2022-23Q1_PC11
Sandwell Metropolitan Borough Council,http://www.sandwell.gov.uk/info/200202/performance_and_spending/3233/government_procurement_cards,04-Apr-2022,Total Borough Economy,AMZNMktplace,Total Adult Social Care,19.98,MISCELLANEOUS AND SPECIALTY RETAIL STORES,2022-23Q1_PC12
Sandwell Metropolitan Borough Council,http://www.sandwell.gov.uk/info/200202/performance_and_spending/3233/government_procurement_cards,04-Apr-2022,Total Borough Economy,AMZNMktplace,Total Adult Social Care,20.44,MISCELLANEOUS AND SPECIALTY RETAIL STORES,2022-23Q1_PC13
Sandwell Metropolitan Borough Council,http://www.sandwell.gov.uk/info/200202/performance_and_spending/3233/government_procurement_cards,04-Apr-2022,Total Borough Economy,AMZNMktplace,Total Adult Social Care,79.13,MISCELLANEOUS AND SPECIALTY RETAIL STORES,2022-23Q1_PC14
Sandwell Metropolitan Borough Council,http://www.sandwell.gov.uk/info/200202/performance_and_spending/3233/government_procurement_cards,04-Apr-2022,Total Borough Economy,AMZNMKTPLACE AMAZON.CO,Total Adult Social Care,21.23,MISCELLANEOUS AND SPECIALTY RETAIL STORES,2022-23Q1_PC15
Sandwell Metropolitan Borough Council,http://www.sandwell.gov.uk/info/200202/performance_and_spending/3233/government_procurement_cards,04-Apr-2022,Total Borough Economy,AMZNMKTPLACE AMAZON.CO,Total Adult Social Care,134.92,MISCELLANEOUS AND SPECIALTY RETAIL STORES,2022-23Q1_PC16
Sandwell Metropolitan Borough Council,http://www.sandwell.gov.uk/info/200202/performance_and_spending/3233/government_procurement_cards,04-Apr-2022,Total Borough Economy,AMZNMktplace,Total Adult Social Care,114.98,MISCELLANEOUS AND SPECIALTY RETAIL STORES,2022-23Q1_PC17
Sandwell Metropolitan Borough Council,http://www.sandwell.gov.uk/info/200202/performance_and_spending/3233/government_procurement_cards,04-Apr-2022,Total Borough Economy,AMZNMKTPLACE AMAZON.CO,Total Adult Social Care,-164.22,MISCELLANEOUS AND SPECIALTY RETAIL STORES,2022-23Q1_PC18
Sandwell Metropolitan Borough Council,http://www.sandwell.gov.uk/info/200202/performance_and_spending/3233/government_procurement_cards,04-Apr-2022,Total Borough Economy,AMZNMKTPLACE AMAZON.CO,Total Adult Social Care,14.37,MISCELLANEOUS AND SPECIALTY RETAIL STORES,2022-23Q1_PC19
Sandwell Metropolitan Borough Council,http://www.sandwell.gov.uk/info/200202/performance_and_spending/3233/government_procurement_cards,04-Apr-2022,Total Borough Economy,AMZNMktplace,Total Adult Social Care,14.37,MISCELLANEOUS AND SPECIALTY RETAIL STORES,2022-23Q1_PC20
Sandwell Metropolitan Borough Council,http://www.sandwell.gov.uk/info/200202/performance_and_spending/3233/government_procurement_cards,04-Apr-2022,Childrens Services,CENTRAL ENG COOP,Childrens Services,10.5,"GROCERY STORES, SUPERMARKETS",2022-23Q1_PC21
Sandwell Metropolitan Borough Council,http://www.sandwell.gov.uk/info/200202/performance_and_spending/3233/government_procurement_cards,04-Apr-2022,Housing & Assets Total,ASDA STORES,Corporate Management,83.8,"GROCERY STORES, SUPERMARKETS",2022-23Q1_PC22
Sandwell Metropolitan Borough Council,http://www.sandwell.gov.uk/info/200202/performance_and_spending/3233/government_procurement_cards,04-Apr-2022,Total ASCHWB,AMZNMKTPLACE AMAZON.CO,Total Adult Social Care,9.98,MISCELLANEOUS AND SPECIALTY RETAIL STORES,2022-23Q1_PC23
Sandwell Metropolitan Borough Council,http://www.sandwell.gov.uk/info/200202/performance_and_spending/3233/government_procurement_cards,04-Apr-2022,Total Business Strategy & Change,CLOUD 9ZRJE2,Assistant Chief Executive (Excl SIU),245.53,COMPUTER NETWORK/INFORMATION SERVICES,2022-23Q1_PC24
Sandwell Metropolitan Borough Council,http://www.sandwell.gov.uk/info/200202/performance_and_spending/3233/government_procurement_cards,04-Apr-2022,Childrens Services,AMZNMktplace,Childrens Services,19.21,MISCELLANEOUS AND SPECIALTY RETAIL STORES,2022-23Q1_PC25
Sandwell Metropolitan Borough Council,http://www.sandwell.gov.uk/info/200202/performance_and_spending/3233/government_procurement_cards,04-Apr-2022,Total Borough Economy,PODBEAN.COM,Total Adult Social Care,25.57,COMPUTER NETWORK/INFORMATION SERVICES,2022-23Q1_PC26
Sandwell Metropolitan Borough Council,http://www.sandwell.gov.uk/info/200202/performance_and_spending/3233/government_procurement_cards,04-Apr-2022,Regeneration & Growth,shop.bsigroup.com 45/9,Regeneration And The Economy,1940.83,BUSINESS SERVICES-NOT ELSEWHERE CLASSIFIED,2022-23Q1_PC27
Sandwell Metropolitan Borough Council,http://www.sandwell.gov.uk/info/200202/performance_and_spending/3233/government_procurement_cards,04-Apr-2022,Total Borough Economy,ALDI 772 177,Total Adult Social Care,209.47,"GROCERY STORES, SUPERMARKETS",2022-23Q1_PC28
Sandwell Metropolitan Borough Council,http://www.sandwell.gov.uk/info/200202/performance_and_spending/3233/government_procurement_cards,04-Apr-2022,Total Borough Economy,B & Q 1276,Total Adult Social Care,76.03,HOME SUPPLY WAREHOUSE STORES,2022-23Q1_PC29
Sandwell Metropolitan Borough Council,http://www.sandwell.gov.uk/info/200202/performance_and_spending/3233/government_procurement_cards,04-Apr-2022,Childrens Services,ARGOS LTD,Childrens Services,88.32,DISCOUNT STORES,2022-23Q1_PC30
Sandwell Metropolitan Borough Council,http://www.sandwell.gov.uk/info/200202/performance_and_spending/3233/government_procurement_cards,05-Apr-2022,Total Business Strategy & Change,CANVA  I03380-13626630,Assistant Chief Executive (Excl SIU),159.87,PHOTOGRAPHIC STUDIOS,2022-23Q1_PC31
Sandwell Metropolitan Borough Council,http://www.sandwell.gov.uk/info/200202/performance_and_spending/3233/government_procurement_cards,05-Apr-2022,Director of Law & Governance,WWW.ICO.ORG.UK,Assistant Chief Executive (Excl SIU),-40,GOVERNMENT SERVICES-NOT ELSEWHERE CLASSIFIED,2022-23Q1_PC32
Sandwell Metropolitan Borough Council,http://www.sandwell.gov.uk/info/200202/performance_and_spending/3233/government_procurement_cards,05-Apr-2022,Total Borough Economy,SPUNHILL LTD,Total Adult Social Care,414.6,LAWN AND GARDEN SUPPLY STORES,2022-23Q1_PC33
Sandwell Metropolitan Borough Council,http://www.sandwell.gov.uk/info/200202/performance_and_spending/3233/government_procurement_cards,05-Apr-2022,Total Borough Economy,AMZNMKTPLACE AMAZON.CO,Total Adult Social Care,122.54,MISCELLANEOUS AND SPECIALTY RETAIL STORES,2022-23Q1_PC34
Sandwell Metropolitan Borough Council,http://www.sandwell.gov.uk/info/200202/performance_and_spending/3233/government_procurement_cards,05-Apr-2022,FINANCE (Inc SIU),SMARTY CO UK,Assistant Chief Executive (Excl SIU),10,TELECOM INCL PREPAID/RECURRING PHONE SVCS,2022-23Q1_PC35
Sandwell Metropolitan Borough Council,http://www.sandwell.gov.uk/info/200202/performance_and_spending/3233/government_procurement_cards,05-Apr-2022,Regeneration & Growth,Hotel at Booking.com,Regeneration And The Economy,448,"LODGING-HOTELS,MOTELS,RESORTS-NOT CLASSIFIED",2022-23Q1_PC36
Sandwell Metropolitan Borough Council,http://www.sandwell.gov.uk/info/200202/performance_and_spending/3233/government_procurement_cards,05-Apr-2022,Total ASCHWB,TVLICENSING.CO.UK,Total Adult Social Care,159,"CONSULTING, MANAGEMENT, AND PUBLIC RELATIONS SVCS",2022-23Q1_PC37
Sandwell Metropolitan Borough Council,http://www.sandwell.gov.uk/info/200202/performance_and_spending/3233/government_procurement_cards,05-Apr-2022,Total ASCHWB,AMZNMktplace,Total Adult Social Care,84.16,MISCELLANEOUS AND SPECIALTY RETAIL STORES,2022-23Q1_PC38
Sandwell Metropolitan Borough Council,http://www.sandwell.gov.uk/info/200202/performance_and_spending/3233/government_procurement_cards,05-Apr-2022,Total Borough Economy,HALLOWEENCOSTUMES.CO.U,Total Adult Social Care,89.15,ACCESSORY AND APPAREL STORES-MISCELLANEOUS,2022-23Q1_PC39
Sandwell Metropolitan Borough Council,http://www.sandwell.gov.uk/info/200202/performance_and_spending/3233/government_procurement_cards,05-Apr-2022,Total Borough Economy,DUNELM (SOFT FURNISHIN,Total Adult Social Care,33.33,"DRAPERY, UPOLSTERY, AND WINDOW COVERINGS STORES",2022-23Q1_PC40
Sandwell Metropolitan Borough Council,http://www.sandwell.gov.uk/info/200202/performance_and_spending/3233/government_procurement_cards,05-Apr-2022,Childrens Services,ASDA GROCERIES ONLINE,Childrens Services,-0.38,"GROCERY STORES, SUPERMARKETS",2022-23Q1_PC41
Sandwell Metropolitan Borough Council,http://www.sandwell.gov.uk/info/200202/performance_and_spending/3233/government_procurement_cards,05-Apr-2022,Childrens Services,ASDA GROCERIES ONLINE,Childrens Services,89.24,"GROCERY STORES, SUPERMARKETS",2022-23Q1_PC42
Sandwell Metropolitan Borough Council,http://www.sandwell.gov.uk/info/200202/performance_and_spending/3233/government_procurement_cards,05-Apr-2022,Childrens Services,TESCO STORES 2770,Childrens Services,79.32,"GROCERY STORES, SUPERMARKETS",2022-23Q1_PC43
Sandwell Metropolitan Borough Council,http://www.sandwell.gov.uk/info/200202/performance_and_spending/3233/government_procurement_cards,05-Apr-2022,Childrens Services,ASDA GROCERIES ONLINE,Childrens Services,128.13,"GROCERY STORES, SUPERMARKETS",2022-23Q1_PC44
Sandwell Metropolitan Borough Council,http://www.sandwell.gov.uk/info/200202/performance_and_spending/3233/government_procurement_cards,05-Apr-2022,Childrens Services,STAFFORDSHIRE FRUITS,Childrens Services,16,MISCELLANEOUS AND SPECIALTY RETAIL STORES,2022-23Q1_PC45
Sandwell Metropolitan Borough Council,http://www.sandwell.gov.uk/info/200202/performance_and_spending/3233/government_procurement_cards,05-Apr-2022,Total Borough Economy,RHUARDEN LIMITED,Total Adult Social Care,5.4,MISCELLANEOUS GENERAL MERCHANDISE,2022-23Q1_PC46
Sandwell Metropolitan Borough Council,http://www.sandwell.gov.uk/info/200202/performance_and_spending/3233/government_procurement_cards,05-Apr-2022,Total ASCHWB,AMZNMktplace,Total Adult Social Care,21.65,MISCELLANEOUS AND SPECIALTY RETAIL STORES,2022-23Q1_PC47
Sandwell Metropolitan Borough Council,http://www.sandwell.gov.uk/info/200202/performance_and_spending/3233/government_procurement_cards,06-Apr-2022,Director of Law & Governance,WWW.ICO.ORG.UK,Assistant Chief Executive (Excl SIU),60,GOVERNMENT SERVICES-NOT ELSEWHERE CLASSIFIED,2022-23Q1_PC48
Sandwell Metropolitan Borough Council,http://www.sandwell.gov.uk/info/200202/performance_and_spending/3233/government_procurement_cards,06-Apr-2022,Total Borough Economy,AMZNMKTPLACE AMAZON.CO,Total Adult Social Care,102.76,MISCELLANEOUS AND SPECIALTY RETAIL STORES,2022-23Q1_PC49
Sandwell Metropolitan Borough Council,http://www.sandwell.gov.uk/info/200202/performance_and_spending/3233/government_procurement_cards,06-Apr-2022,Total Borough Economy,FAR EAST DIRECT,Total Adult Social Care,79.99,MISCELLANEOUS AND SPECIALTY RETAIL STORES,2022-23Q1_PC50
Sandwell Metropolitan Borough Council,http://www.sandwell.gov.uk/info/200202/performance_and_spending/3233/government_procurement_cards,06-Apr-2022,Total Borough Economy,FAR EAST DIRECT UK LTD,Total Adult Social Care,488.94,SPORTING GOODS STORES,2022-23Q1_PC51
Sandwell Metropolitan Borough Council,http://www.sandwell.gov.uk/info/200202/performance_and_spending/3233/government_procurement_cards,06-Apr-2022,Total Business Strategy & Change,AMZNMKTPLACE AMAZON.CO,Assistant Chief Executive (Excl SIU),61.99,MISCELLANEOUS AND SPECIALTY RETAIL STORES,2022-23Q1_PC52
Sandwell Metropolitan Borough Council,http://www.sandwell.gov.uk/info/200202/performance_and_spending/3233/government_procurement_cards,06-Apr-2022,Total Business Strategy & Change,REMARKABLE,Assistant Chief Executive (Excl SIU),-567,ELECTRONIC SALES,2022-23Q1_PC53
Sandwell Metropolitan Borough Council,http://www.sandwell.gov.uk/info/200202/performance_and_spending/3233/government_procurement_cards,06-Apr-2022,Regeneration & Growth,WWW.KREATIVEBUNTING.CO,Regeneration And The Economy,152.75,"GIFT, CARD, NOVELTY AND SOUVENIR SHOPS",2022-23Q1_PC54
Sandwell Metropolitan Borough Council,http://www.sandwell.gov.uk/info/200202/performance_and_spending/3233/government_procurement_cards,06-Apr-2022,Total Borough Economy,SHELL UK LTD,Total Adult Social Care,58.74,SERVICE STATIONS WITH OR WITHOUT ANCILLARY SERVICE,2022-23Q1_PC55
Sandwell Metropolitan Borough Council,http://www.sandwell.gov.uk/info/200202/performance_and_spending/3233/government_procurement_cards,06-Apr-2022,Total Borough Economy,AMZNMktplace,Total Adult Social Care,136.12,MISCELLANEOUS AND SPECIALTY RETAIL STORES,2022-23Q1_PC56
Sandwell Metropolitan Borough Council,http://www.sandwell.gov.uk/info/200202/performance_and_spending/3233/government_procurement_cards,06-Apr-2022,Total Borough Economy,Amazon.co.uk 291137KH4,Total Adult Social Care,29.16,DIRECT MARKETING-OTHER DIRECT MARKETERS/NOT ELSEW.,2022-23Q1_PC57
Sandwell Metropolitan Borough Council,http://www.sandwell.gov.uk/info/200202/performance_and_spending/3233/government_procurement_cards,06-Apr-2022,Total Borough Economy,AMZNMKTPLACE AMAZON.CO,Total Adult Social Care,102.89,MISCELLANEOUS AND SPECIALTY RETAIL STORES,2022-23Q1_PC58
Sandwell Metropolitan Borough Council,http://www.sandwell.gov.uk/info/200202/performance_and_spending/3233/government_procurement_cards,06-Apr-2022,Total Borough Economy,AMZN Digital 297IR0KK4,Total Adult Social Care,8.96,RECORD SHOPS,2022-23Q1_PC59
Sandwell Metropolitan Borough Council,http://www.sandwell.gov.uk/info/200202/performance_and_spending/3233/government_procurement_cards,06-Apr-2022,Childrens Services,TESCO STORE 3351,Childrens Services,6.2,"GROCERY STORES, SUPERMARKETS",2022-23Q1_PC60
Sandwell Metropolitan Borough Council,http://www.sandwell.gov.uk/info/200202/performance_and_spending/3233/government_procurement_cards,06-Apr-2022,Director of Law & Governance,ALDI 42 772,Assistant Chief Executive (Excl SIU),13.22,"GROCERY STORES, SUPERMARKETS",2022-23Q1_PC61
Sandwell Metropolitan Borough Council,http://www.sandwell.gov.uk/info/200202/performance_and_spending/3233/government_procurement_cards,06-Apr-2022,Housing & Assets Total,B&M 049 - ASTLE PARK,Corporate Management,16.68,MISCELLANEOUS GENERAL MERCHANDISE,2022-23Q1_PC62
Sandwell Metropolitan Borough Council,http://www.sandwell.gov.uk/info/200202/performance_and_spending/3233/government_procurement_cards,06-Apr-2022,Regeneration & Growth,AMZNMktplace,Regeneration And The Economy,21.42,MISCELLANEOUS AND SPECIALTY RETAIL STORES,2022-23Q1_PC63
Sandwell Metropolitan Borough Council,http://www.sandwell.gov.uk/info/200202/performance_and_spending/3233/government_procurement_cards,06-Apr-2022,Corporate Management,Amazon.co.uk 292ND47F4,Corporate Management,16.37,DIRECT MARKETING-OTHER DIRECT MARKETERS/NOT ELSEW.,2022-23Q1_PC64
Sandwell Metropolitan Borough Council,http://www.sandwell.gov.uk/info/200202/performance_and_spending/3233/government_procurement_cards,06-Apr-2022,Total ASCHWB,NATIONAL PEN PROMOTION,Total Adult Social Care,247.5,"OFFICE, SCHOOL SUPPLY, AND STATIONERY STORES",2022-23Q1_PC65
Sandwell Metropolitan Borough Council,http://www.sandwell.gov.uk/info/200202/performance_and_spending/3233/government_procurement_cards,06-Apr-2022,Regeneration & Growth,VISIONAID TECHNOLOGIES,Regeneration And The Economy,837.5,SCHOOLS & EDUCATIONAL SVC-NOT ELSEWHERE CLASSIFIED,2022-23Q1_PC66
Sandwell Metropolitan Borough Council,http://www.sandwell.gov.uk/info/200202/performance_and_spending/3233/government_procurement_cards,06-Apr-2022,Regeneration & Growth,ONLINE ERGONOMICS LTD,Regeneration And The Economy,315.83,OFFICE AND COMMERCIAL FURNITURE,2022-23Q1_PC67
Sandwell Metropolitan Borough Council,http://www.sandwell.gov.uk/info/200202/performance_and_spending/3233/government_procurement_cards,06-Apr-2022,Regeneration & Growth,AMZNMktplace,Regeneration And The Economy,12.37,MISCELLANEOUS AND SPECIALTY RETAIL STORES,2022-23Q1_PC68
Sandwell Metropolitan Borough Council,http://www.sandwell.gov.uk/info/200202/performance_and_spending/3233/government_procurement_cards,06-Apr-2022,Regeneration & Growth,AMZNMktplace,Regeneration And The Economy,18.32,MISCELLANEOUS AND SPECIALTY RETAIL STORES,2022-23Q1_PC69
Sandwell Metropolitan Borough Council,http://www.sandwell.gov.uk/info/200202/performance_and_spending/3233/government_procurement_cards,06-Apr-2022,Director of Law & Governance,AMZNMKTPLACE AMAZON.CO,Assistant Chief Executive (Excl SIU),15.29,MISCELLANEOUS AND SPECIALTY RETAIL STORES,2022-23Q1_PC70
Sandwell Metropolitan Borough Council,http://www.sandwell.gov.uk/info/200202/performance_and_spending/3233/government_procurement_cards,06-Apr-2022,Total Housing Revenue Account,Amazon.co.uk 296O24994,Total Housing Revenue Account,16.32,DIRECT MARKETING-OTHER DIRECT MARKETERS/NOT ELSEW.,2022-23Q1_PC71
Sandwell Metropolitan Borough Council,http://www.sandwell.gov.uk/info/200202/performance_and_spending/3233/government_procurement_cards,06-Apr-2022,Total Housing Revenue Account,Amazon.co.uk 298IB97K4,Total Housing Revenue Account,16.6,DIRECT MARKETING-OTHER DIRECT MARKETERS/NOT ELSEW.,2022-23Q1_PC72
Sandwell Metropolitan Borough Council,http://www.sandwell.gov.uk/info/200202/performance_and_spending/3233/government_procurement_cards,06-Apr-2022,Regeneration & Growth,WWW.ROBUSTDETAILS.COM,Regeneration And The Economy,132,GENERAL CONTRACTORS/RESIDENTIAL BUILDINGS,2022-23Q1_PC73
Sandwell Metropolitan Borough Council,http://www.sandwell.gov.uk/info/200202/performance_and_spending/3233/government_procurement_cards,06-Apr-2022,Total ASCHWB,R & D MILLER LIMITED,Total Adult Social Care,281.5,MISCELLANEOUS PUBLISHING AND PRINTING,2022-23Q1_PC74
Sandwell Metropolitan Borough Council,http://www.sandwell.gov.uk/info/200202/performance_and_spending/3233/government_procurement_cards,06-Apr-2022,Total Borough Economy,AMZNMktplace,Total Adult Social Care,141.66,MISCELLANEOUS AND SPECIALTY RETAIL STORES,2022-23Q1_PC75
Sandwell Metropolitan Borough Council,http://www.sandwell.gov.uk/info/200202/performance_and_spending/3233/government_procurement_cards,06-Apr-2022,Childrens Services,SPACEHOPPAS PLAYZONE,Childrens Services,73.2,"GAME, TOY, AND HOBBY SHOPS",2022-23Q1_PC76
Sandwell Metropolitan Borough Council,http://www.sandwell.gov.uk/info/200202/performance_and_spending/3233/government_procurement_cards,06-Apr-2022,Individual School Budgets With Inclusion,Amazon.co.uk 2937G5904,Individual School Budgets With Inclusion,75.41,DIRECT MARKETING-OTHER DIRECT MARKETERS/NOT ELSEW.,2022-23Q1_PC77
Sandwell Metropolitan Borough Council,http://www.sandwell.gov.uk/info/200202/performance_and_spending/3233/government_procurement_cards,06-Apr-2022,Individual School Budgets With Inclusion,Amazon.co.uk 290SC1KA4,Individual School Budgets With Inclusion,103.03,DIRECT MARKETING-OTHER DIRECT MARKETERS/NOT ELSEW.,2022-23Q1_PC78
Sandwell Metropolitan Borough Council,http://www.sandwell.gov.uk/info/200202/performance_and_spending/3233/government_procurement_cards,06-Apr-2022,Individual School Budgets With Inclusion,AMZNMktplace,Individual School Budgets With Inclusion,198.92,MISCELLANEOUS AND SPECIALTY RETAIL STORES,2022-23Q1_PC79
Sandwell Metropolitan Borough Council,http://www.sandwell.gov.uk/info/200202/performance_and_spending/3233/government_procurement_cards,06-Apr-2022,Individual School Budgets With Inclusion,Amazon.co.uk 292F147G4,Individual School Budgets With Inclusion,190.08,DIRECT MARKETING-OTHER DIRECT MARKETERS/NOT ELSEW.,2022-23Q1_PC80
Sandwell Metropolitan Borough Council,http://www.sandwell.gov.uk/info/200202/performance_and_spending/3233/government_procurement_cards,06-Apr-2022,Individual School Budgets With Inclusion,Amazon.co.uk 294FR1904,Individual School Budgets With Inclusion,196.02,DIRECT MARKETING-OTHER DIRECT MARKETERS/NOT ELSEW.,2022-23Q1_PC81
Sandwell Metropolitan Borough Council,http://www.sandwell.gov.uk/info/200202/performance_and_spending/3233/government_procurement_cards,06-Apr-2022,Individual School Budgets With Inclusion,Amazon.co.uk 295QZ0KG4,Individual School Budgets With Inclusion,17.5,DIRECT MARKETING-OTHER DIRECT MARKETERS/NOT ELSEW.,2022-23Q1_PC82
Sandwell Metropolitan Borough Council,http://www.sandwell.gov.uk/info/200202/performance_and_spending/3233/government_procurement_cards,06-Apr-2022,Individual School Budgets With Inclusion,Amazon.co.uk 291S30KX4,Individual School Budgets With Inclusion,17.42,DIRECT MARKETING-OTHER DIRECT MARKETERS/NOT ELSEW.,2022-23Q1_PC83
Sandwell Metropolitan Borough Council,http://www.sandwell.gov.uk/info/200202/performance_and_spending/3233/government_procurement_cards,06-Apr-2022,Individual School Budgets With Inclusion,Amazon.co.uk 294OH29J4,Individual School Budgets With Inclusion,23.12,DIRECT MARKETING-OTHER DIRECT MARKETERS/NOT ELSEW.,2022-23Q1_PC84
Sandwell Metropolitan Borough Council,http://www.sandwell.gov.uk/info/200202/performance_and_spending/3233/government_procurement_cards,06-Apr-2022,Individual School Budgets With Inclusion,Amazon.co.uk 295RJ57Y4,Individual School Budgets With Inclusion,31.6,DIRECT MARKETING-OTHER DIRECT MARKETERS/NOT ELSEW.,2022-23Q1_PC85
Sandwell Metropolitan Borough Council,http://www.sandwell.gov.uk/info/200202/performance_and_spending/3233/government_procurement_cards,06-Apr-2022,Individual School Budgets With Inclusion,Amazon.co.uk 291O219W4,Individual School Budgets With Inclusion,30.57,DIRECT MARKETING-OTHER DIRECT MARKETERS/NOT ELSEW.,2022-23Q1_PC86
Sandwell Metropolitan Borough Council,http://www.sandwell.gov.uk/info/200202/performance_and_spending/3233/government_procurement_cards,06-Apr-2022,Individual School Budgets With Inclusion,Amazon.co.uk 290ZL09N4,Individual School Budgets With Inclusion,109.89,DIRECT MARKETING-OTHER DIRECT MARKETERS/NOT ELSEW.,2022-23Q1_PC87
Sandwell Metropolitan Borough Council,http://www.sandwell.gov.uk/info/200202/performance_and_spending/3233/government_procurement_cards,06-Apr-2022,Individual School Budgets With Inclusion,AMZNMktplace,Individual School Budgets With Inclusion,170.55,MISCELLANEOUS AND SPECIALTY RETAIL STORES,2022-23Q1_PC88
Sandwell Metropolitan Borough Council,http://www.sandwell.gov.uk/info/200202/performance_and_spending/3233/government_procurement_cards,06-Apr-2022,Director of Law & Governance,BCC CLEAN AIR ZONE,Assistant Chief Executive (Excl SIU),8,GOVERNMENT SERVICES-NOT ELSEWHERE CLASSIFIED,2022-23Q1_PC89
Sandwell Metropolitan Borough Council,http://www.sandwell.gov.uk/info/200202/performance_and_spending/3233/government_procurement_cards,07-Apr-2022,Total Business Strategy & Change,POST OFFICE COUNTER,Assistant Chief Executive (Excl SIU),2.35,POSTAL SERVICES-GOVERNMENT ONLY,2022-23Q1_PC90
Sandwell Metropolitan Borough Council,http://www.sandwell.gov.uk/info/200202/performance_and_spending/3233/government_procurement_cards,07-Apr-2022,Total ASCHWB,AMZNMKTPLACE AMAZON.CO,Total Adult Social Care,38.89,MISCELLANEOUS AND SPECIALTY RETAIL STORES,2022-23Q1_PC91
Sandwell Metropolitan Borough Council,http://www.sandwell.gov.uk/info/200202/performance_and_spending/3233/government_procurement_cards,07-Apr-2022,Director of Law & Governance,SP   FRED ALDOUS,Assistant Chief Executive (Excl SIU),15.35,"ARTIST SUPPLY STORES, CRAFT SHOPS",2022-23Q1_PC92
Sandwell Metropolitan Borough Council,http://www.sandwell.gov.uk/info/200202/performance_and_spending/3233/government_procurement_cards,07-Apr-2022,Total Borough Economy,AMZNMktplace,Total Adult Social Care,44.97,MISCELLANEOUS AND SPECIALTY RETAIL STORES,2022-23Q1_PC93
Sandwell Metropolitan Borough Council,http://www.sandwell.gov.uk/info/200202/performance_and_spending/3233/government_procurement_cards,07-Apr-2022,Total Borough Economy,NATIONAL TIMBER,Total Adult Social Care,715,"BUILDING MATERIALS, LUMBER STORES",2022-23Q1_PC94
Sandwell Metropolitan Borough Council,http://www.sandwell.gov.uk/info/200202/performance_and_spending/3233/government_procurement_cards,07-Apr-2022,Total Borough Economy,ASDA STORE 4376,Total Adult Social Care,12.75,"GROCERY STORES, SUPERMARKETS",2022-23Q1_PC95
Sandwell Metropolitan Borough Council,http://www.sandwell.gov.uk/info/200202/performance_and_spending/3233/government_procurement_cards,07-Apr-2022,Regeneration & Growth,RTPI,Regeneration And The Economy,36,"CLUBS-CNTRY,MBRSHIP(ATHLET,REC,SPRTS,PRIVATE GOLF",2022-23Q1_PC96
Sandwell Metropolitan Borough Council,http://www.sandwell.gov.uk/info/200202/performance_and_spending/3233/government_procurement_cards,07-Apr-2022,FINANCE (Inc SIU),Chartered Insurance In,Assistant Chief Executive (Excl SIU),334.6,SCHOOLS & EDUCATIONAL SVC-NOT ELSEWHERE CLASSIFIED,2022-23Q1_PC97
Sandwell Metropolitan Borough Council,http://www.sandwell.gov.uk/info/200202/performance_and_spending/3233/government_procurement_cards,07-Apr-2022,Childrens Services,ARGOS OLDBURY,Childrens Services,8.33,DISCOUNT STORES,2022-23Q1_PC98
Sandwell Metropolitan Borough Council,http://www.sandwell.gov.uk/info/200202/performance_and_spending/3233/government_procurement_cards,07-Apr-2022,Regeneration & Growth,WWW.GWR.COM,Regeneration And The Economy,89.4,PASSENGER RAILWAYS,2022-23Q1_PC99
Sandwell Metropolitan Borough Council,http://www.sandwell.gov.uk/info/200202/performance_and_spending/3233/government_procurement_cards,07-Apr-2022,Total Borough Economy,WWW.SCREWFIX.COM,Total Adult Social Care,46,"BUILDING MATERIALS, LUMBER STORES",2022-23Q1_PC100
Sandwell Metropolitan Borough Council,http://www.sandwell.gov.uk/info/200202/performance_and_spending/3233/government_procurement_cards,07-Apr-2022,Total Borough Economy,AMZNMktplace,Total Adult Social Care,59.98,MISCELLANEOUS AND SPECIALTY RETAIL STORES,2022-23Q1_PC101
Sandwell Metropolitan Borough Council,http://www.sandwell.gov.uk/info/200202/performance_and_spending/3233/government_procurement_cards,07-Apr-2022,Total Borough Economy,AMZNMKTPLACE AMAZON.CO,Total Adult Social Care,41.55,MISCELLANEOUS AND SPECIALTY RETAIL STORES,2022-23Q1_PC102
Sandwell Metropolitan Borough Council,http://www.sandwell.gov.uk/info/200202/performance_and_spending/3233/government_procurement_cards,07-Apr-2022,Total Borough Economy,AMZNMKTPLACE AMAZON.CO,Total Adult Social Care,133.32,MISCELLANEOUS AND SPECIALTY RETAIL STORES,2022-23Q1_PC103
Sandwell Metropolitan Borough Council,http://www.sandwell.gov.uk/info/200202/performance_and_spending/3233/government_procurement_cards,07-Apr-2022,Total Borough Economy,AMZNMktplace,Total Adult Social Care,20.81,MISCELLANEOUS AND SPECIALTY RETAIL STORES,2022-23Q1_PC104
Sandwell Metropolitan Borough Council,http://www.sandwell.gov.uk/info/200202/performance_and_spending/3233/government_procurement_cards,07-Apr-2022,Total Borough Economy,AMZ Amazon.co.uk,Total Adult Social Care,-48.12,DIRECT MARKETING-OTHER DIRECT MARKETERS/NOT ELSEW.,2022-23Q1_PC105
Sandwell Metropolitan Borough Council,http://www.sandwell.gov.uk/info/200202/performance_and_spending/3233/government_procurement_cards,07-Apr-2022,Total Borough Economy,Amazon.co.uk 299AL7II4,Total Adult Social Care,158.25,DIRECT MARKETING-OTHER DIRECT MARKETERS/NOT ELSEW.,2022-23Q1_PC106
Sandwell Metropolitan Borough Council,http://www.sandwell.gov.uk/info/200202/performance_and_spending/3233/government_procurement_cards,07-Apr-2022,Total Borough Economy,AMZNMKTPLACE AMAZON.CO,Total Adult Social Care,41.47,MISCELLANEOUS AND SPECIALTY RETAIL STORES,2022-23Q1_PC107
Sandwell Metropolitan Borough Council,http://www.sandwell.gov.uk/info/200202/performance_and_spending/3233/government_procurement_cards,07-Apr-2022,Total Borough Economy,AMZNMKTPLACE AMAZON.CO,Total Adult Social Care,21.66,MISCELLANEOUS AND SPECIALTY RETAIL STORES,2022-23Q1_PC108
Sandwell Metropolitan Borough Council,http://www.sandwell.gov.uk/info/200202/performance_and_spending/3233/government_procurement_cards,07-Apr-2022,Total Borough Economy,Amazon.co.uk 295FC2RI4,Total Adult Social Care,7.5,DIRECT MARKETING-OTHER DIRECT MARKETERS/NOT ELSEW.,2022-23Q1_PC109
Sandwell Metropolitan Borough Council,http://www.sandwell.gov.uk/info/200202/performance_and_spending/3233/government_procurement_cards,07-Apr-2022,Total Borough Economy,PEOPLECOUNTING.CO.UK,Total Adult Social Care,234.12,COMPUTER SOFTWARE STORES,2022-23Q1_PC110
Sandwell Metropolitan Borough Council,http://www.sandwell.gov.uk/info/200202/performance_and_spending/3233/government_procurement_cards,07-Apr-2022,Total Housing Revenue Account,AMZNMKTPLACE AMAZON.CO,Total Housing Revenue Account,156.99,MISCELLANEOUS AND SPECIALTY RETAIL STORES,2022-23Q1_PC111
Sandwell Metropolitan Borough Council,http://www.sandwell.gov.uk/info/200202/performance_and_spending/3233/government_procurement_cards,07-Apr-2022,Childrens Services,AMZNMktplace,Childrens Services,153.72,MISCELLANEOUS AND SPECIALTY RETAIL STORES,2022-23Q1_PC112
Sandwell Metropolitan Borough Council,http://www.sandwell.gov.uk/info/200202/performance_and_spending/3233/government_procurement_cards,07-Apr-2022,Total ASCHWB,ARGOS LTD,Total Adult Social Care,90.42,DISCOUNT STORES,2022-23Q1_PC113
Sandwell Metropolitan Borough Council,http://www.sandwell.gov.uk/info/200202/performance_and_spending/3233/government_procurement_cards,07-Apr-2022,Total Borough Economy,Amazon.co.uk 297TS0RW4,Total Adult Social Care,56.37,DIRECT MARKETING-OTHER DIRECT MARKETERS/NOT ELSEW.,2022-23Q1_PC114
Sandwell Metropolitan Borough Council,http://www.sandwell.gov.uk/info/200202/performance_and_spending/3233/government_procurement_cards,07-Apr-2022,Total Borough Economy,AMZNMktplace,Total Adult Social Care,48.96,MISCELLANEOUS AND SPECIALTY RETAIL STORES,2022-23Q1_PC115
Sandwell Metropolitan Borough Council,http://www.sandwell.gov.uk/info/200202/performance_and_spending/3233/government_procurement_cards,07-Apr-2022,Total Borough Economy,Amazon.co.uk 2913O2RS4,Total Adult Social Care,17.39,DIRECT MARKETING-OTHER DIRECT MARKETERS/NOT ELSEW.,2022-23Q1_PC116
Sandwell Metropolitan Borough Council,http://www.sandwell.gov.uk/info/200202/performance_and_spending/3233/government_procurement_cards,07-Apr-2022,Total Borough Economy,Amazon.co.uk 295B65RZ4,Total Adult Social Care,17.45,DIRECT MARKETING-OTHER DIRECT MARKETERS/NOT ELSEW.,2022-23Q1_PC117
Sandwell Metropolitan Borough Council,http://www.sandwell.gov.uk/info/200202/performance_and_spending/3233/government_procurement_cards,07-Apr-2022,Regeneration & Growth,THE SMART CARD STORE,Regeneration And The Economy,118.95,OFFICE PHOTOGRAPHIC PHOTOCOPY & MICROFILM EQUIPMT.,2022-23Q1_PC118
Sandwell Metropolitan Borough Council,http://www.sandwell.gov.uk/info/200202/performance_and_spending/3233/government_procurement_cards,07-Apr-2022,Total Borough Economy,WWW.OFFICETEAMCONNECT.,Total Adult Social Care,11.22,STATIONERY/OFFICE SUPPLIES/PRINTING & WRITING PAP.,2022-23Q1_PC119
Sandwell Metropolitan Borough Council,http://www.sandwell.gov.uk/info/200202/performance_and_spending/3233/government_procurement_cards,07-Apr-2022,Housing Revenue Account Capital,Amazon.co.uk 297T16RZ4,#N/A,278.57,DIRECT MARKETING-OTHER DIRECT MARKETERS/NOT ELSEW.,2022-23Q1_PC120
Sandwell Metropolitan Borough Council,http://www.sandwell.gov.uk/info/200202/performance_and_spending/3233/government_procurement_cards,07-Apr-2022,Childrens Services,SAINSBURYS S/MKTS,Childrens Services,35.9,"GROCERY STORES, SUPERMARKETS",2022-23Q1_PC121
Sandwell Metropolitan Borough Council,http://www.sandwell.gov.uk/info/200202/performance_and_spending/3233/government_procurement_cards,07-Apr-2022,Childrens Services,CANALSIDE HOLDINGS LIM,Childrens Services,14,"GROCERY STORES, SUPERMARKETS",2022-23Q1_PC122
Sandwell Metropolitan Borough Council,http://www.sandwell.gov.uk/info/200202/performance_and_spending/3233/government_procurement_cards,07-Apr-2022,Childrens Services,LIDL GB PORTHMADOG,Childrens Services,0.86,"GROCERY STORES, SUPERMARKETS",2022-23Q1_PC123
Sandwell Metropolitan Borough Council,http://www.sandwell.gov.uk/info/200202/performance_and_spending/3233/government_procurement_cards,07-Apr-2022,Childrens Services,ASDA SUPERSTORE,Childrens Services,200,"GROCERY STORES, SUPERMARKETS",2022-23Q1_PC124
Sandwell Metropolitan Borough Council,http://www.sandwell.gov.uk/info/200202/performance_and_spending/3233/government_procurement_cards,07-Apr-2022,Total ASCHWB,AMZNMktplace,Total Adult Social Care,15.97,MISCELLANEOUS AND SPECIALTY RETAIL STORES,2022-23Q1_PC125
Sandwell Metropolitan Borough Council,http://www.sandwell.gov.uk/info/200202/performance_and_spending/3233/government_procurement_cards,07-Apr-2022,FINANCE (Inc SIU),WWW.OFFICETEAMCONNECT.,Total Adult Social Care,7.36,STATIONERY/OFFICE SUPPLIES/PRINTING & WRITING PAP.,2022-23Q1_PC126
Sandwell Metropolitan Borough Council,http://www.sandwell.gov.uk/info/200202/performance_and_spending/3233/government_procurement_cards,07-Apr-2022,Director of Law & Governance,WWW.OFFICETEAMCONNECT.,Assistant Chief Executive (Excl SIU),137.93,STATIONERY/OFFICE SUPPLIES/PRINTING & WRITING PAP.,2022-23Q1_PC127
Sandwell Metropolitan Borough Council,http://www.sandwell.gov.uk/info/200202/performance_and_spending/3233/government_procurement_cards,07-Apr-2022,Total Business Strategy & Change,AMZNMktplace,Assistant Chief Executive (Excl SIU),12.39,MISCELLANEOUS AND SPECIALTY RETAIL STORES,2022-23Q1_PC128
Sandwell Metropolitan Borough Council,http://www.sandwell.gov.uk/info/200202/performance_and_spending/3233/government_procurement_cards,07-Apr-2022,Total Borough Economy,AMZNMktplace,Total Adult Social Care,182.45,MISCELLANEOUS AND SPECIALTY RETAIL STORES,2022-23Q1_PC129
Sandwell Metropolitan Borough Council,http://www.sandwell.gov.uk/info/200202/performance_and_spending/3233/government_procurement_cards,07-Apr-2022,Total Borough Economy,POST OFFICE COUNTER,Total Adult Social Care,7.79,POSTAL SERVICES-GOVERNMENT ONLY,2022-23Q1_PC130
Sandwell Metropolitan Borough Council,http://www.sandwell.gov.uk/info/200202/performance_and_spending/3233/government_procurement_cards,07-Apr-2022,Total Housing Revenue Account,POST OFFICE COUNTER,Total Housing Revenue Account,248.9,POSTAL SERVICES-GOVERNMENT ONLY,2022-23Q1_PC131
Sandwell Metropolitan Borough Council,http://www.sandwell.gov.uk/info/200202/performance_and_spending/3233/government_procurement_cards,07-Apr-2022,Total ASCHWB,AMZNMktplace,Total Adult Social Care,34.45,MISCELLANEOUS AND SPECIALTY RETAIL STORES,2022-23Q1_PC132
Sandwell Metropolitan Borough Council,http://www.sandwell.gov.uk/info/200202/performance_and_spending/3233/government_procurement_cards,07-Apr-2022,Total ASCHWB,AMZNMktplace,Total Adult Social Care,83.29,MISCELLANEOUS AND SPECIALTY RETAIL STORES,2022-23Q1_PC133
Sandwell Metropolitan Borough Council,http://www.sandwell.gov.uk/info/200202/performance_and_spending/3233/government_procurement_cards,07-Apr-2022,Total Borough Economy,CAPITAL RESOLVE LTD R/,Total Adult Social Care,97.5,OTHER SERVICES (NOT ELSEWHERE CLASSIFIED),2022-23Q1_PC134
Sandwell Metropolitan Borough Council,http://www.sandwell.gov.uk/info/200202/performance_and_spending/3233/government_procurement_cards,08-Apr-2022,Total Business Strategy & Change,SHROPSHIRESTAR.COM,Assistant Chief Executive (Excl SIU),66.04,NEWS DEALERS AND NEWSSTANDS,2022-23Q1_PC135
Sandwell Metropolitan Borough Council,http://www.sandwell.gov.uk/info/200202/performance_and_spending/3233/government_procurement_cards,08-Apr-2022,Director of Law & Governance,SP   LEISURE BARGAINS,Assistant Chief Executive (Excl SIU),624.99,COMPUTER SOFTWARE STORES,2022-23Q1_PC136
Sandwell Metropolitan Borough Council,http://www.sandwell.gov.uk/info/200202/performance_and_spending/3233/government_procurement_cards,08-Apr-2022,Total Borough Economy,AMZNMktplace,Total Adult Social Care,170,MISCELLANEOUS AND SPECIALTY RETAIL STORES,2022-23Q1_PC137
Sandwell Metropolitan Borough Council,http://www.sandwell.gov.uk/info/200202/performance_and_spending/3233/government_procurement_cards,08-Apr-2022,Total Borough Economy,TESCO PFS 4260,Total Adult Social Care,18.16,SERVICE STATIONS WITH OR WITHOUT ANCILLARY SERVICE,2022-23Q1_PC138
Sandwell Metropolitan Borough Council,http://www.sandwell.gov.uk/info/200202/performance_and_spending/3233/government_procurement_cards,08-Apr-2022,Total Business Strategy & Change,Amazon Prime 297CX0YO4,Assistant Chief Executive (Excl SIU),6.66,DIRECT MARKETING-CONTINUITY/SUBSCRIPTION MERCHANTS,2022-23Q1_PC139
Sandwell Metropolitan Borough Council,http://www.sandwell.gov.uk/info/200202/performance_and_spending/3233/government_procurement_cards,08-Apr-2022,Childrens Services,SMETHWICK MICA HAR,Childrens Services,6.25,HARDWARE STORES,2022-23Q1_PC140
Sandwell Metropolitan Borough Council,http://www.sandwell.gov.uk/info/200202/performance_and_spending/3233/government_procurement_cards,08-Apr-2022,Housing & Assets Total,TRAVELODGE,Corporate Management,530.29,TRAVELODGE,2022-23Q1_PC141
Sandwell Metropolitan Borough Council,http://www.sandwell.gov.uk/info/200202/performance_and_spending/3233/government_procurement_cards,08-Apr-2022,Total ASCHWB,Amazon.co.uk 294OP1YG4,Total Adult Social Care,49.16,DIRECT MARKETING-OTHER DIRECT MARKETERS/NOT ELSEW.,2022-23Q1_PC142
Sandwell Metropolitan Borough Council,http://www.sandwell.gov.uk/info/200202/performance_and_spending/3233/government_procurement_cards,08-Apr-2022,Total Borough Economy,AMZNMktplace,Total Adult Social Care,97.52,MISCELLANEOUS AND SPECIALTY RETAIL STORES,2022-23Q1_PC143
Sandwell Metropolitan Borough Council,http://www.sandwell.gov.uk/info/200202/performance_and_spending/3233/government_procurement_cards,08-Apr-2022,Total Borough Economy,WILKO RETAIL LIMITED,Total Adult Social Care,20.33,MISCELLANEOUS GENERAL MERCHANDISE,2022-23Q1_PC144
Sandwell Metropolitan Borough Council,http://www.sandwell.gov.uk/info/200202/performance_and_spending/3233/government_procurement_cards,08-Apr-2022,Total Borough Economy,AMZNMktplace,Total Adult Social Care,17.47,MISCELLANEOUS AND SPECIALTY RETAIL STORES,2022-23Q1_PC145
Sandwell Metropolitan Borough Council,http://www.sandwell.gov.uk/info/200202/performance_and_spending/3233/government_procurement_cards,08-Apr-2022,Total Borough Economy,Amazon.co.uk 2E9BW5CL4,Total Adult Social Care,249.83,DIRECT MARKETING-OTHER DIRECT MARKETERS/NOT ELSEW.,2022-23Q1_PC146
Sandwell Metropolitan Borough Council,http://www.sandwell.gov.uk/info/200202/performance_and_spending/3233/government_procurement_cards,08-Apr-2022,Total Borough Economy,WILKO RETAIL LIMITED,Total Adult Social Care,9.79,MISCELLANEOUS GENERAL MERCHANDISE,2022-23Q1_PC147
Sandwell Metropolitan Borough Council,http://www.sandwell.gov.uk/info/200202/performance_and_spending/3233/government_procurement_cards,08-Apr-2022,Total Borough Economy,ASDA SUPERSTORE,Total Adult Social Care,7.83,"GROCERY STORES, SUPERMARKETS",2022-23Q1_PC148
Sandwell Metropolitan Borough Council,http://www.sandwell.gov.uk/info/200202/performance_and_spending/3233/government_procurement_cards,08-Apr-2022,Total Borough Economy,Amazon.co.uk 2E6U75OE4,Total Adult Social Care,49.97,DIRECT MARKETING-OTHER DIRECT MARKETERS/NOT ELSEW.,2022-23Q1_PC149
Sandwell Metropolitan Borough Council,http://www.sandwell.gov.uk/info/200202/performance_and_spending/3233/government_procurement_cards,08-Apr-2022,Total Borough Economy,AMZNMKTPLACE AMAZON.CO,Total Adult Social Care,28.32,MISCELLANEOUS AND SPECIALTY RETAIL STORES,2022-23Q1_PC150
Sandwell Metropolitan Borough Council,http://www.sandwell.gov.uk/info/200202/performance_and_spending/3233/government_procurement_cards,08-Apr-2022,Total Borough Economy,Amazon.co.uk 2E2U39OD4,Total Adult Social Care,166.02,DIRECT MARKETING-OTHER DIRECT MARKETERS/NOT ELSEW.,2022-23Q1_PC151
Sandwell Metropolitan Borough Council,http://www.sandwell.gov.uk/info/200202/performance_and_spending/3233/government_procurement_cards,08-Apr-2022,Housing & Assets Total,AMZNMktplace,Corporate Management,79.99,MISCELLANEOUS AND SPECIALTY RETAIL STORES,2022-23Q1_PC152
Sandwell Metropolitan Borough Council,http://www.sandwell.gov.uk/info/200202/performance_and_spending/3233/government_procurement_cards,08-Apr-2022,Housing & Assets Total,AMZNMktplace,Corporate Management,79.99,MISCELLANEOUS AND SPECIALTY RETAIL STORES,2022-23Q1_PC153
Sandwell Metropolitan Borough Council,http://www.sandwell.gov.uk/info/200202/performance_and_spending/3233/government_procurement_cards,08-Apr-2022,Childrens Services,WWW.THEWORKS.CO.UK,Childrens Services,60,DISCOUNT STORES,2022-23Q1_PC154
Sandwell Metropolitan Borough Council,http://www.sandwell.gov.uk/info/200202/performance_and_spending/3233/government_procurement_cards,08-Apr-2022,Childrens Services,Amazon.co.uk 2E8D23CQ4,Childrens Services,27.67,DIRECT MARKETING-OTHER DIRECT MARKETERS/NOT ELSEW.,2022-23Q1_PC155
Sandwell Metropolitan Borough Council,http://www.sandwell.gov.uk/info/200202/performance_and_spending/3233/government_procurement_cards,08-Apr-2022,Childrens Services,Amazon.co.uk 2E7LW3CW4,Childrens Services,19.55,DIRECT MARKETING-OTHER DIRECT MARKETERS/NOT ELSEW.,2022-23Q1_PC156
Sandwell Metropolitan Borough Council,http://www.sandwell.gov.uk/info/200202/performance_and_spending/3233/government_procurement_cards,08-Apr-2022,Total Borough Economy,AMZNMktplace,Total Adult Social Care,32.47,MISCELLANEOUS AND SPECIALTY RETAIL STORES,2022-23Q1_PC157
Sandwell Metropolitan Borough Council,http://www.sandwell.gov.uk/info/200202/performance_and_spending/3233/government_procurement_cards,08-Apr-2022,Total Borough Economy,AMZNMktplace,Total Adult Social Care,11.66,MISCELLANEOUS AND SPECIALTY RETAIL STORES,2022-23Q1_PC158
Sandwell Metropolitan Borough Council,http://www.sandwell.gov.uk/info/200202/performance_and_spending/3233/government_procurement_cards,08-Apr-2022,Total Borough Economy,AMZNMKTPLACE AMAZON.CO,Total Adult Social Care,16.65,MISCELLANEOUS AND SPECIALTY RETAIL STORES,2022-23Q1_PC159
Sandwell Metropolitan Borough Council,http://www.sandwell.gov.uk/info/200202/performance_and_spending/3233/government_procurement_cards,08-Apr-2022,Childrens Services,WM MORRISONS STORE,Childrens Services,9.79,"GROCERY STORES, SUPERMARKETS",2022-23Q1_PC160
Sandwell Metropolitan Borough Council,http://www.sandwell.gov.uk/info/200202/performance_and_spending/3233/government_procurement_cards,08-Apr-2022,Childrens Services,TESCO STORES 6481,Childrens Services,41.6,"GROCERY STORES, SUPERMARKETS",2022-23Q1_PC161
Sandwell Metropolitan Borough Council,http://www.sandwell.gov.uk/info/200202/performance_and_spending/3233/government_procurement_cards,08-Apr-2022,Childrens Services,ALDI 8 778,Childrens Services,2.3,"GROCERY STORES, SUPERMARKETS",2022-23Q1_PC162
Sandwell Metropolitan Borough Council,http://www.sandwell.gov.uk/info/200202/performance_and_spending/3233/government_procurement_cards,08-Apr-2022,Childrens Services,POST OFFICE COUNTER,Childrens Services,100,POSTAL SERVICES-GOVERNMENT ONLY,2022-23Q1_PC163
Sandwell Metropolitan Borough Council,http://www.sandwell.gov.uk/info/200202/performance_and_spending/3233/government_procurement_cards,08-Apr-2022,Total ASCHWB,R & D MILLER LIMITED,Total Adult Social Care,206.02,MISCELLANEOUS PUBLISHING AND PRINTING,2022-23Q1_PC164
Sandwell Metropolitan Borough Council,http://www.sandwell.gov.uk/info/200202/performance_and_spending/3233/government_procurement_cards,08-Apr-2022,Total ASCHWB,R & D MILLER LIMITED,Total Adult Social Care,208.33,MISCELLANEOUS PUBLISHING AND PRINTING,2022-23Q1_PC165
Sandwell Metropolitan Borough Council,http://www.sandwell.gov.uk/info/200202/performance_and_spending/3233/government_procurement_cards,08-Apr-2022,Childrens Services,AMZNMktplace,Childrens Services,18.32,MISCELLANEOUS AND SPECIALTY RETAIL STORES,2022-23Q1_PC166
Sandwell Metropolitan Borough Council,http://www.sandwell.gov.uk/info/200202/performance_and_spending/3233/government_procurement_cards,08-Apr-2022,Total ASCHWB,AMZNMktplace,Total Adult Social Care,19.16,MISCELLANEOUS AND SPECIALTY RETAIL STORES,2022-23Q1_PC167
Sandwell Metropolitan Borough Council,http://www.sandwell.gov.uk/info/200202/performance_and_spending/3233/government_procurement_cards,08-Apr-2022,Total ASCHWB,AMZNMktplace,Total Adult Social Care,16.5,MISCELLANEOUS AND SPECIALTY RETAIL STORES,2022-23Q1_PC168
Sandwell Metropolitan Borough Council,http://www.sandwell.gov.uk/info/200202/performance_and_spending/3233/government_procurement_cards,08-Apr-2022,Regeneration & Growth,VISIONAID TECHNOLOGIES,Regeneration And The Economy,-644.16,SCHOOLS & EDUCATIONAL SVC-NOT ELSEWHERE CLASSIFIED,2022-23Q1_PC169
Sandwell Metropolitan Borough Council,http://www.sandwell.gov.uk/info/200202/performance_and_spending/3233/government_procurement_cards,08-Apr-2022,Regeneration & Growth,WWW.PAMTRAD.CO.UK,Regeneration And The Economy,825,ELECTRICAL PARTS AND EQUIPMENT,2022-23Q1_PC170
Sandwell Metropolitan Borough Council,http://www.sandwell.gov.uk/info/200202/performance_and_spending/3233/government_procurement_cards,08-Apr-2022,Regeneration & Growth,WWW.OFFICETEAMCONNECT.,Regeneration And The Economy,88.75,STATIONERY/OFFICE SUPPLIES/PRINTING & WRITING PAP.,2022-23Q1_PC171
Sandwell Metropolitan Borough Council,http://www.sandwell.gov.uk/info/200202/performance_and_spending/3233/government_procurement_cards,08-Apr-2022,Regeneration & Growth,PREMIER INN,Regeneration And The Economy,135,PREMIER INN,2022-23Q1_PC172
Sandwell Metropolitan Borough Council,http://www.sandwell.gov.uk/info/200202/performance_and_spending/3233/government_procurement_cards,11-Apr-2022,Total Business Strategy & Change,TSOHOST,Assistant Chief Executive (Excl SIU),49.99,DIRECT MARKETING-CONTINUITY/SUBSCRIPTION MERCHANTS,2022-23Q1_PC173
Sandwell Metropolitan Borough Council,http://www.sandwell.gov.uk/info/200202/performance_and_spending/3233/government_procurement_cards,11-Apr-2022,Childrens Services,AMZNMKTPLACE AMAZON.CO,Childrens Services,41.95,MISCELLANEOUS AND SPECIALTY RETAIL STORES,2022-23Q1_PC174
Sandwell Metropolitan Borough Council,http://www.sandwell.gov.uk/info/200202/performance_and_spending/3233/government_procurement_cards,11-Apr-2022,Total ASCHWB,WWW.OFFICETEAMCONNECT.,Total Adult Social Care,18.96,STATIONERY/OFFICE SUPPLIES/PRINTING & WRITING PAP.,2022-23Q1_PC175
Sandwell Metropolitan Borough Council,http://www.sandwell.gov.uk/info/200202/performance_and_spending/3233/government_procurement_cards,11-Apr-2022,Total ASCHWB,AMZNMktplace,Total Adult Social Care,169.9,MISCELLANEOUS AND SPECIALTY RETAIL STORES,2022-23Q1_PC176
Sandwell Metropolitan Borough Council,http://www.sandwell.gov.uk/info/200202/performance_and_spending/3233/government_procurement_cards,11-Apr-2022,Total ASCHWB,AMZNMktplace,Total Adult Social Care,192,MISCELLANEOUS AND SPECIALTY RETAIL STORES,2022-23Q1_PC177
Sandwell Metropolitan Borough Council,http://www.sandwell.gov.uk/info/200202/performance_and_spending/3233/government_procurement_cards,11-Apr-2022,Total Borough Economy,WWW.SCREWFIX.COM,Total Adult Social Care,8.58,"BUILDING MATERIALS, LUMBER STORES",2022-23Q1_PC178
Sandwell Metropolitan Borough Council,http://www.sandwell.gov.uk/info/200202/performance_and_spending/3233/government_procurement_cards,11-Apr-2022,Total Borough Economy,ICELAND,Total Adult Social Care,5.16,"GROCERY STORES, SUPERMARKETS",2022-23Q1_PC179
Sandwell Metropolitan Borough Council,http://www.sandwell.gov.uk/info/200202/performance_and_spending/3233/government_procurement_cards,11-Apr-2022,Total Borough Economy,ICELAND,Total Adult Social Care,3.25,"GROCERY STORES, SUPERMARKETS",2022-23Q1_PC180
Sandwell Metropolitan Borough Council,http://www.sandwell.gov.uk/info/200202/performance_and_spending/3233/government_procurement_cards,11-Apr-2022,Total Borough Economy,AMZNMktplace,Total Adult Social Care,19.99,MISCELLANEOUS AND SPECIALTY RETAIL STORES,2022-23Q1_PC181
Sandwell Metropolitan Borough Council,http://www.sandwell.gov.uk/info/200202/performance_and_spending/3233/government_procurement_cards,11-Apr-2022,Total Borough Economy,POUNDLAND LTD,Total Adult Social Care,19,DISCOUNT STORES,2022-23Q1_PC182
Sandwell Metropolitan Borough Council,http://www.sandwell.gov.uk/info/200202/performance_and_spending/3233/government_procurement_cards,11-Apr-2022,Total Borough Economy,MFG GREAT BARR,Total Adult Social Care,68.92,SERVICE STATIONS WITH OR WITHOUT ANCILLARY SERVICE,2022-23Q1_PC183
Sandwell Metropolitan Borough Council,http://www.sandwell.gov.uk/info/200202/performance_and_spending/3233/government_procurement_cards,11-Apr-2022,Total Borough Economy,WWW.RANDALLSFIREWOOD,Total Adult Social Care,159,"FIREPLACE, FIREPLACE SCREENS & ACCESSORIES STORES",2022-23Q1_PC184
Sandwell Metropolitan Borough Council,http://www.sandwell.gov.uk/info/200202/performance_and_spending/3233/government_procurement_cards,11-Apr-2022,Total Public Health,ASDA STORES,Public Health,18.29,"GROCERY STORES, SUPERMARKETS",2022-23Q1_PC185
Sandwell Metropolitan Borough Council,http://www.sandwell.gov.uk/info/200202/performance_and_spending/3233/government_procurement_cards,11-Apr-2022,Total Public Health,POUNDLAND LTD 1729,Public Health,7.25,DISCOUNT STORES,2022-23Q1_PC186
Sandwell Metropolitan Borough Council,http://www.sandwell.gov.uk/info/200202/performance_and_spending/3233/government_procurement_cards,11-Apr-2022,Regeneration & Growth,SMS CONNECTIONS,Regeneration And The Economy,604.15,"FUEL DEALERS-COAL, FUEL OIL, LIQ PETROLEUM, WOOD",2022-23Q1_PC187
Sandwell Metropolitan Borough Council,http://www.sandwell.gov.uk/info/200202/performance_and_spending/3233/government_procurement_cards,11-Apr-2022,Individual School Budgets With Inclusion,Flextronics,Individual School Budgets With Inclusion,40,COMPUTER MAIN./REPAIR/SERVICES NOT ELSEWHERE CLASS,2022-23Q1_PC188
Sandwell Metropolitan Borough Council,http://www.sandwell.gov.uk/info/200202/performance_and_spending/3233/government_procurement_cards,11-Apr-2022,Total Borough Economy,Trainline.COM,Total Adult Social Care,48.96,PASSENGER RAILWAYS,2022-23Q1_PC189
Sandwell Metropolitan Borough Council,http://www.sandwell.gov.uk/info/200202/performance_and_spending/3233/government_procurement_cards,11-Apr-2022,Total Borough Economy,AMZNMKTPLACE AMAZON.CO,Total Adult Social Care,206,MISCELLANEOUS AND SPECIALTY RETAIL STORES,2022-23Q1_PC190
Sandwell Metropolitan Borough Council,http://www.sandwell.gov.uk/info/200202/performance_and_spending/3233/government_procurement_cards,11-Apr-2022,Total Borough Economy,ALDI 772 177,Total Adult Social Care,390.22,"GROCERY STORES, SUPERMARKETS",2022-23Q1_PC191
Sandwell Metropolitan Borough Council,http://www.sandwell.gov.uk/info/200202/performance_and_spending/3233/government_procurement_cards,11-Apr-2022,Total Borough Economy,AMZNMKTPLACE AMAZON.CO,Total Adult Social Care,7.49,MISCELLANEOUS AND SPECIALTY RETAIL STORES,2022-23Q1_PC192
Sandwell Metropolitan Borough Council,http://www.sandwell.gov.uk/info/200202/performance_and_spending/3233/government_procurement_cards,11-Apr-2022,Total Borough Economy,AMZ Enuotek EU,Total Adult Social Care,-79.12,MISCELLANEOUS AND SPECIALTY RETAIL STORES,2022-23Q1_PC193
Sandwell Metropolitan Borough Council,http://www.sandwell.gov.uk/info/200202/performance_and_spending/3233/government_procurement_cards,11-Apr-2022,Total Borough Economy,AMZ Enuotek EU,Total Adult Social Care,-15.82,MISCELLANEOUS AND SPECIALTY RETAIL STORES,2022-23Q1_PC194
Sandwell Metropolitan Borough Council,http://www.sandwell.gov.uk/info/200202/performance_and_spending/3233/government_procurement_cards,11-Apr-2022,Total Borough Economy,AMZNMktplace,Total Adult Social Care,16.62,MISCELLANEOUS AND SPECIALTY RETAIL STORES,2022-23Q1_PC195
Sandwell Metropolitan Borough Council,http://www.sandwell.gov.uk/info/200202/performance_and_spending/3233/government_procurement_cards,11-Apr-2022,Childrens Services,AMZNMKTPLACE AMAZON.CO,Childrens Services,37.38,MISCELLANEOUS AND SPECIALTY RETAIL STORES,2022-23Q1_PC196
Sandwell Metropolitan Borough Council,http://www.sandwell.gov.uk/info/200202/performance_and_spending/3233/government_procurement_cards,11-Apr-2022,Childrens Services,WWW.THEWORKS.CO.UK,Childrens Services,158.33,DISCOUNT STORES,2022-23Q1_PC197
Sandwell Metropolitan Borough Council,http://www.sandwell.gov.uk/info/200202/performance_and_spending/3233/government_procurement_cards,11-Apr-2022,Childrens Services,Amazon.co.uk 2E8ZB4474,Childrens Services,215.4,DIRECT MARKETING-OTHER DIRECT MARKETERS/NOT ELSEW.,2022-23Q1_PC198
Sandwell Metropolitan Borough Council,http://www.sandwell.gov.uk/info/200202/performance_and_spending/3233/government_procurement_cards,11-Apr-2022,Total Borough Economy,AMZNMktplace,Total Adult Social Care,18.32,MISCELLANEOUS AND SPECIALTY RETAIL STORES,2022-23Q1_PC199
Sandwell Metropolitan Borough Council,http://www.sandwell.gov.uk/info/200202/performance_and_spending/3233/government_procurement_cards,11-Apr-2022,Total Housing Revenue Account,SAFETYSUPPL,Total Housing Revenue Account,51.55,DEPARTMENT STORES,2022-23Q1_PC200
Sandwell Metropolitan Borough Council,http://www.sandwell.gov.uk/info/200202/performance_and_spending/3233/government_procurement_cards,11-Apr-2022,Childrens Services,Amazon.co.uk 2E1VL0OS4,Childrens Services,10.62,DIRECT MARKETING-OTHER DIRECT MARKETERS/NOT ELSEW.,2022-23Q1_PC201
Sandwell Metropolitan Borough Council,http://www.sandwell.gov.uk/info/200202/performance_and_spending/3233/government_procurement_cards,11-Apr-2022,Childrens Services,HANDY DRY CLEANERS,Childrens Services,138.33,"CLEANING, GARMENT, AND LAUNDRY SERVICES",2022-23Q1_PC202
Sandwell Metropolitan Borough Council,http://www.sandwell.gov.uk/info/200202/performance_and_spending/3233/government_procurement_cards,11-Apr-2022,Childrens Services,BEEBYS BUBBLES,Childrens Services,80,"CLEANING, GARMENT, AND LAUNDRY SERVICES",2022-23Q1_PC203
Sandwell Metropolitan Borough Council,http://www.sandwell.gov.uk/info/200202/performance_and_spending/3233/government_procurement_cards,11-Apr-2022,Total ASCHWB,AMZNMktplace,Total Adult Social Care,73.3,MISCELLANEOUS AND SPECIALTY RETAIL STORES,2022-23Q1_PC204
Sandwell Metropolitan Borough Council,http://www.sandwell.gov.uk/info/200202/performance_and_spending/3233/government_procurement_cards,11-Apr-2022,Individual School Budgets With Inclusion,AMZNMktplace,Individual School Budgets With Inclusion,34.1,MISCELLANEOUS AND SPECIALTY RETAIL STORES,2022-23Q1_PC205
Sandwell Metropolitan Borough Council,http://www.sandwell.gov.uk/info/200202/performance_and_spending/3233/government_procurement_cards,11-Apr-2022,Childrens Services,AMZNMktplace,Childrens Services,5.52,MISCELLANEOUS AND SPECIALTY RETAIL STORES,2022-23Q1_PC206
Sandwell Metropolitan Borough Council,http://www.sandwell.gov.uk/info/200202/performance_and_spending/3233/government_procurement_cards,11-Apr-2022,Childrens Services,AMZNMktplace,Childrens Services,9.98,MISCELLANEOUS AND SPECIALTY RETAIL STORES,2022-23Q1_PC207
Sandwell Metropolitan Borough Council,http://www.sandwell.gov.uk/info/200202/performance_and_spending/3233/government_procurement_cards,11-Apr-2022,Childrens Services,AMZNMktplace,Childrens Services,25.17,MISCELLANEOUS AND SPECIALTY RETAIL STORES,2022-23Q1_PC208
Sandwell Metropolitan Borough Council,http://www.sandwell.gov.uk/info/200202/performance_and_spending/3233/government_procurement_cards,11-Apr-2022,Regeneration & Growth,AMZNMktplace,Regeneration And The Economy,59.62,MISCELLANEOUS AND SPECIALTY RETAIL STORES,2022-23Q1_PC209
Sandwell Metropolitan Borough Council,http://www.sandwell.gov.uk/info/200202/performance_and_spending/3233/government_procurement_cards,11-Apr-2022,Total Business Strategy & Change,Canva  03385-14862471,Assistant Chief Executive (Excl SIU),83.33,"COMMERCIAL ART, GRAPHICS, PHOTOGRAPHY",2022-23Q1_PC210
Sandwell Metropolitan Borough Council,http://www.sandwell.gov.uk/info/200202/performance_and_spending/3233/government_procurement_cards,11-Apr-2022,Individual School Budgets With Inclusion,AMZNMKTPLACE AMAZON.CO,Individual School Budgets With Inclusion,133.6,MISCELLANEOUS AND SPECIALTY RETAIL STORES,2022-23Q1_PC211
Sandwell Metropolitan Borough Council,http://www.sandwell.gov.uk/info/200202/performance_and_spending/3233/government_procurement_cards,11-Apr-2022,Regeneration & Growth,OTTER.AI,Regeneration And The Economy,78.9,COMPUTER SOFTWARE STORES,2022-23Q1_PC212
Sandwell Metropolitan Borough Council,http://www.sandwell.gov.uk/info/200202/performance_and_spending/3233/government_procurement_cards,11-Apr-2022,FINANCE (Inc SIU),Amazon Prime 2E6EP5OE4,Assistant Chief Executive (Excl SIU),6.66,DIRECT MARKETING-CONTINUITY/SUBSCRIPTION MERCHANTS,2022-23Q1_PC213
Sandwell Metropolitan Borough Council,http://www.sandwell.gov.uk/info/200202/performance_and_spending/3233/government_procurement_cards,11-Apr-2022,FINANCE (Inc SIU),PAYPAL  MIDFRDFORUM MI,Assistant Chief Executive (Excl SIU),130,"ASSOCIATIONS-CIVIC, SOCIAL, AND FRATERNAL",2022-23Q1_PC214
Sandwell Metropolitan Borough Council,http://www.sandwell.gov.uk/info/200202/performance_and_spending/3233/government_procurement_cards,12-Apr-2022,FINANCE (Inc SIU),SANDWELL M.B.C.,Assistant Chief Executive (Excl SIU),125,GOVERNMENT SERVICES-NOT ELSEWHERE CLASSIFIED,2022-23Q1_PC215
Sandwell Metropolitan Borough Council,http://www.sandwell.gov.uk/info/200202/performance_and_spending/3233/government_procurement_cards,12-Apr-2022,Director of Law & Governance,THE CARD NETWORK,Assistant Chief Executive (Excl SIU),1139.94,MISCELLANEOUS PUBLISHING AND PRINTING,2022-23Q1_PC216
Sandwell Metropolitan Borough Council,http://www.sandwell.gov.uk/info/200202/performance_and_spending/3233/government_procurement_cards,12-Apr-2022,Housing & Assets Total,THE GREAT BARR,Corporate Management,120,"LODGING-HOTELS,MOTELS,RESORTS-NOT CLASSIFIED",2022-23Q1_PC217
Sandwell Metropolitan Borough Council,http://www.sandwell.gov.uk/info/200202/performance_and_spending/3233/government_procurement_cards,12-Apr-2022,Total ASCHWB,WWW.OFFICETEAMCONNECT.,Total Adult Social Care,-16.62,STATIONERY/OFFICE SUPPLIES/PRINTING & WRITING PAP.,2022-23Q1_PC218
Sandwell Metropolitan Borough Council,http://www.sandwell.gov.uk/info/200202/performance_and_spending/3233/government_procurement_cards,12-Apr-2022,Total ASCHWB,AMZNMktplace,Total Adult Social Care,41.84,MISCELLANEOUS AND SPECIALTY RETAIL STORES,2022-23Q1_PC219
Sandwell Metropolitan Borough Council,http://www.sandwell.gov.uk/info/200202/performance_and_spending/3233/government_procurement_cards,12-Apr-2022,Total ASCHWB,Amazon.co.uk 2E3745EY4,Total Adult Social Care,22.49,DIRECT MARKETING-OTHER DIRECT MARKETERS/NOT ELSEW.,2022-23Q1_PC220
Sandwell Metropolitan Borough Council,http://www.sandwell.gov.uk/info/200202/performance_and_spending/3233/government_procurement_cards,12-Apr-2022,Director of Law & Governance,CURRYS ONLINE,Assistant Chief Executive (Excl SIU),194.99,ELECTRONIC SALES,2022-23Q1_PC221
Sandwell Metropolitan Borough Council,http://www.sandwell.gov.uk/info/200202/performance_and_spending/3233/government_procurement_cards,12-Apr-2022,Total Borough Economy,AMZNMktplace,Total Adult Social Care,78.95,MISCELLANEOUS AND SPECIALTY RETAIL STORES,2022-23Q1_PC222
Sandwell Metropolitan Borough Council,http://www.sandwell.gov.uk/info/200202/performance_and_spending/3233/government_procurement_cards,12-Apr-2022,Total Borough Economy,SEPHRA,Total Adult Social Care,191.93,"MISC FOOD STORE-CONVENIENCE,MRKT,SPLTY,VENDNG MACS",2022-23Q1_PC223
Sandwell Metropolitan Borough Council,http://www.sandwell.gov.uk/info/200202/performance_and_spending/3233/government_procurement_cards,12-Apr-2022,Total Borough Economy,TSOHOST,Total Adult Social Care,86.26,DIRECT MARKETING-CONTINUITY/SUBSCRIPTION MERCHANTS,2022-23Q1_PC224
Sandwell Metropolitan Borough Council,http://www.sandwell.gov.uk/info/200202/performance_and_spending/3233/government_procurement_cards,12-Apr-2022,Total Borough Economy,TFM FARM   COUNTRY,Total Adult Social Care,469.03,AGRICULTURAL COOPERATIVES,2022-23Q1_PC225
Sandwell Metropolitan Borough Council,http://www.sandwell.gov.uk/info/200202/performance_and_spending/3233/government_procurement_cards,12-Apr-2022,Total Borough Economy,WWW.OFFICETEAMCONNECT.,Total Adult Social Care,-52.89,STATIONERY/OFFICE SUPPLIES/PRINTING & WRITING PAP.,2022-23Q1_PC226
Sandwell Metropolitan Borough Council,http://www.sandwell.gov.uk/info/200202/performance_and_spending/3233/government_procurement_cards,12-Apr-2022,Individual School Budgets With Inclusion,EB  HEALTHY MINDS ONLI,Individual School Budgets With Inclusion,90,BUSINESS SERVICES-NOT ELSEWHERE CLASSIFIED,2022-23Q1_PC227
Sandwell Metropolitan Borough Council,http://www.sandwell.gov.uk/info/200202/performance_and_spending/3233/government_procurement_cards,12-Apr-2022,Total Housing Revenue Account,Flextronics,Total Housing Revenue Account,351.56,COMPUTER MAIN./REPAIR/SERVICES NOT ELSEWHERE CLASS,2022-23Q1_PC228
Sandwell Metropolitan Borough Council,http://www.sandwell.gov.uk/info/200202/performance_and_spending/3233/government_procurement_cards,12-Apr-2022,Childrens Services,TESCO STORES 2770,Childrens Services,118.64,"GROCERY STORES, SUPERMARKETS",2022-23Q1_PC229
Sandwell Metropolitan Borough Council,http://www.sandwell.gov.uk/info/200202/performance_and_spending/3233/government_procurement_cards,12-Apr-2022,Childrens Services,ASDA GROCERIES ONLINE,Childrens Services,-1.08,"GROCERY STORES, SUPERMARKETS",2022-23Q1_PC230
Sandwell Metropolitan Borough Council,http://www.sandwell.gov.uk/info/200202/performance_and_spending/3233/government_procurement_cards,12-Apr-2022,Childrens Services,ASDA GROCERIES ONLINE,Childrens Services,76.18,"GROCERY STORES, SUPERMARKETS",2022-23Q1_PC231
Sandwell Metropolitan Borough Council,http://www.sandwell.gov.uk/info/200202/performance_and_spending/3233/government_procurement_cards,12-Apr-2022,Childrens Services,CANALSIDE HOLDINGS LIM,Childrens Services,7,"GROCERY STORES, SUPERMARKETS",2022-23Q1_PC232
Sandwell Metropolitan Borough Council,http://www.sandwell.gov.uk/info/200202/performance_and_spending/3233/government_procurement_cards,12-Apr-2022,Corporate Management,Amazon.co.uk 2E82G8AY4,Corporate Management,26.66,DIRECT MARKETING-OTHER DIRECT MARKETERS/NOT ELSEW.,2022-23Q1_PC233
Sandwell Metropolitan Borough Council,http://www.sandwell.gov.uk/info/200202/performance_and_spending/3233/government_procurement_cards,12-Apr-2022,Individual School Budgets With Inclusion,AMZNMktplace,Individual School Budgets With Inclusion,89.47,MISCELLANEOUS AND SPECIALTY RETAIL STORES,2022-23Q1_PC234
Sandwell Metropolitan Borough Council,http://www.sandwell.gov.uk/info/200202/performance_and_spending/3233/government_procurement_cards,12-Apr-2022,Childrens Services,WWW.OFFICETEAMCONNECT.,Childrens Services,-2.42,STATIONERY/OFFICE SUPPLIES/PRINTING & WRITING PAP.,2022-23Q1_PC235
Sandwell Metropolitan Borough Council,http://www.sandwell.gov.uk/info/200202/performance_and_spending/3233/government_procurement_cards,12-Apr-2022,Childrens Services,HTTP://WWW.FORWARDPROD,Childrens Services,-20.04,STATIONERY/OFFICE SUPPLIES/PRINTING & WRITING PAP.,2022-23Q1_PC236
Sandwell Metropolitan Borough Council,http://www.sandwell.gov.uk/info/200202/performance_and_spending/3233/government_procurement_cards,12-Apr-2022,FINANCE (Inc SIU),WWW.OFFICETEAMCONNECT.,Total Adult Social Care,-11.22,STATIONERY/OFFICE SUPPLIES/PRINTING & WRITING PAP.,2022-23Q1_PC237
Sandwell Metropolitan Borough Council,http://www.sandwell.gov.uk/info/200202/performance_and_spending/3233/government_procurement_cards,12-Apr-2022,Childrens Services,SPACEHOPPAS PLAYZONE,Childrens Services,62.45,"GAME, TOY, AND HOBBY SHOPS",2022-23Q1_PC238
Sandwell Metropolitan Borough Council,http://www.sandwell.gov.uk/info/200202/performance_and_spending/3233/government_procurement_cards,12-Apr-2022,Childrens Services,SPACEHOPPAS PLAYZONE,Childrens Services,119.4,"GAME, TOY, AND HOBBY SHOPS",2022-23Q1_PC239
Sandwell Metropolitan Borough Council,http://www.sandwell.gov.uk/info/200202/performance_and_spending/3233/government_procurement_cards,13-Apr-2022,Director of Law & Governance,AMZNMktplace,Assistant Chief Executive (Excl SIU),56.62,MISCELLANEOUS AND SPECIALTY RETAIL STORES,2022-23Q1_PC240
Sandwell Metropolitan Borough Council,http://www.sandwell.gov.uk/info/200202/performance_and_spending/3233/government_procurement_cards,13-Apr-2022,Regeneration & Growth,123 REG LTD,Regeneration And The Economy,28.78,COMPUTER NETWORK/INFORMATION SERVICES,2022-23Q1_PC241
Sandwell Metropolitan Borough Council,http://www.sandwell.gov.uk/info/200202/performance_and_spending/3233/government_procurement_cards,13-Apr-2022,Total Borough Economy,AMZNMktplace,Total Adult Social Care,41.96,MISCELLANEOUS AND SPECIALTY RETAIL STORES,2022-23Q1_PC242
Sandwell Metropolitan Borough Council,http://www.sandwell.gov.uk/info/200202/performance_and_spending/3233/government_procurement_cards,13-Apr-2022,Regeneration & Growth,PROCONFERENCES.COM,Regeneration And The Economy,168,"COLLEGES, UNIV, PRO SCHOOLS, JUNIOR COLLEGES",2022-23Q1_PC243
Sandwell Metropolitan Borough Council,http://www.sandwell.gov.uk/info/200202/performance_and_spending/3233/government_procurement_cards,13-Apr-2022,Total Borough Economy,ASDA STORE 4376,Total Adult Social Care,7.7,"GROCERY STORES, SUPERMARKETS",2022-23Q1_PC244
Sandwell Metropolitan Borough Council,http://www.sandwell.gov.uk/info/200202/performance_and_spending/3233/government_procurement_cards,13-Apr-2022,Childrens Services,MENAI CLEANING SER,Childrens Services,630,"CLEANING AND MAINTENANCE, JANITORIAL SERVICES",2022-23Q1_PC245
Sandwell Metropolitan Borough Council,http://www.sandwell.gov.uk/info/200202/performance_and_spending/3233/government_procurement_cards,13-Apr-2022,Regeneration & Growth,thetrainline.com,Regeneration And The Economy,72.98,PASSENGER RAILWAYS,2022-23Q1_PC246
Sandwell Metropolitan Borough Council,http://www.sandwell.gov.uk/info/200202/performance_and_spending/3233/government_procurement_cards,13-Apr-2022,Individual School Budgets With Inclusion,Amazon.co.uk 2E0YP6PW4,Individual School Budgets With Inclusion,36.19,DIRECT MARKETING-OTHER DIRECT MARKETERS/NOT ELSEW.,2022-23Q1_PC247
Sandwell Metropolitan Borough Council,http://www.sandwell.gov.uk/info/200202/performance_and_spending/3233/government_procurement_cards,13-Apr-2022,Individual School Budgets With Inclusion,AMZNMktplace,Individual School Budgets With Inclusion,239.97,MISCELLANEOUS AND SPECIALTY RETAIL STORES,2022-23Q1_PC248
Sandwell Metropolitan Borough Council,http://www.sandwell.gov.uk/info/200202/performance_and_spending/3233/government_procurement_cards,13-Apr-2022,Individual School Budgets With Inclusion,IKEA LTD SHOP ONLINE,Individual School Budgets With Inclusion,65,"EQUIP, FURNITURE, HOME FURNSHNGS STRS (EXCPT APPL)",2022-23Q1_PC249
Sandwell Metropolitan Borough Council,http://www.sandwell.gov.uk/info/200202/performance_and_spending/3233/government_procurement_cards,13-Apr-2022,Total Borough Economy,AMZNMKTPLACE AMAZON.CO,Total Adult Social Care,-29.98,MISCELLANEOUS AND SPECIALTY RETAIL STORES,2022-23Q1_PC250
Sandwell Metropolitan Borough Council,http://www.sandwell.gov.uk/info/200202/performance_and_spending/3233/government_procurement_cards,13-Apr-2022,Total Borough Economy,AMZNMKTPLACE AMAZON.CO,Total Adult Social Care,-14.99,MISCELLANEOUS AND SPECIALTY RETAIL STORES,2022-23Q1_PC251
Sandwell Metropolitan Borough Council,http://www.sandwell.gov.uk/info/200202/performance_and_spending/3233/government_procurement_cards,13-Apr-2022,Total Borough Economy,TSOHOST,Total Adult Social Care,71.88,DIRECT MARKETING-CONTINUITY/SUBSCRIPTION MERCHANTS,2022-23Q1_PC252
Sandwell Metropolitan Borough Council,http://www.sandwell.gov.uk/info/200202/performance_and_spending/3233/government_procurement_cards,13-Apr-2022,Total Borough Economy,TSOHOST,Total Adult Social Care,32.85,DIRECT MARKETING-CONTINUITY/SUBSCRIPTION MERCHANTS,2022-23Q1_PC253
Sandwell Metropolitan Borough Council,http://www.sandwell.gov.uk/info/200202/performance_and_spending/3233/government_procurement_cards,13-Apr-2022,Total Borough Economy,TSOHOST,Total Adult Social Care,20.85,DIRECT MARKETING-CONTINUITY/SUBSCRIPTION MERCHANTS,2022-23Q1_PC254
Sandwell Metropolitan Borough Council,http://www.sandwell.gov.uk/info/200202/performance_and_spending/3233/government_procurement_cards,13-Apr-2022,Childrens Services,PACEY COMMERCIAL SERVI,Childrens Services,82.4,"ORGANIZATIONS, CHARITABLE AND SOCIAL SERVICES",2022-23Q1_PC255
Sandwell Metropolitan Borough Council,http://www.sandwell.gov.uk/info/200202/performance_and_spending/3233/government_procurement_cards,13-Apr-2022,Childrens Services,Decathlon UK Limited,Childrens Services,170.41,SPORTING GOODS STORES,2022-23Q1_PC256
Sandwell Metropolitan Borough Council,http://www.sandwell.gov.uk/info/200202/performance_and_spending/3233/government_procurement_cards,13-Apr-2022,Total Borough Economy,WILKO RETAIL LIMITED,Total Adult Social Care,12.5,MISCELLANEOUS GENERAL MERCHANDISE,2022-23Q1_PC257
Sandwell Metropolitan Borough Council,http://www.sandwell.gov.uk/info/200202/performance_and_spending/3233/government_procurement_cards,13-Apr-2022,Childrens Services,Perico,Childrens Services,110.36,FAST FOOD RESTAURANTS,2022-23Q1_PC258
Sandwell Metropolitan Borough Council,http://www.sandwell.gov.uk/info/200202/performance_and_spending/3233/government_procurement_cards,13-Apr-2022,Childrens Services,STAFFORDSHIRE FRUITS,Childrens Services,24.23,MISCELLANEOUS AND SPECIALTY RETAIL STORES,2022-23Q1_PC259
Sandwell Metropolitan Borough Council,http://www.sandwell.gov.uk/info/200202/performance_and_spending/3233/government_procurement_cards,13-Apr-2022,Individual School Budgets With Inclusion,WWW.OFFICETEAMCONNECT.,Individual School Budgets With Inclusion,-2.35,STATIONERY/OFFICE SUPPLIES/PRINTING & WRITING PAP.,2022-23Q1_PC260
Sandwell Metropolitan Borough Council,http://www.sandwell.gov.uk/info/200202/performance_and_spending/3233/government_procurement_cards,13-Apr-2022,Total ASCHWB,WWW.OFFICETEAMCONNECT.,Total Adult Social Care,-23.12,STATIONERY/OFFICE SUPPLIES/PRINTING & WRITING PAP.,2022-23Q1_PC261
Sandwell Metropolitan Borough Council,http://www.sandwell.gov.uk/info/200202/performance_and_spending/3233/government_procurement_cards,13-Apr-2022,Regeneration & Growth,AMZNMktplace,Regeneration And The Economy,11.28,MISCELLANEOUS AND SPECIALTY RETAIL STORES,2022-23Q1_PC262
Sandwell Metropolitan Borough Council,http://www.sandwell.gov.uk/info/200202/performance_and_spending/3233/government_procurement_cards,13-Apr-2022,Total Borough Economy,WWW.OFFICETEAMCONNECT.,Total Adult Social Care,43.16,STATIONERY/OFFICE SUPPLIES/PRINTING & WRITING PAP.,2022-23Q1_PC263
Sandwell Metropolitan Borough Council,http://www.sandwell.gov.uk/info/200202/performance_and_spending/3233/government_procurement_cards,13-Apr-2022,Regeneration & Growth,WWW.OFFICETEAMCONNECT.,Regeneration And The Economy,22.17,STATIONERY/OFFICE SUPPLIES/PRINTING & WRITING PAP.,2022-23Q1_PC264
Sandwell Metropolitan Borough Council,http://www.sandwell.gov.uk/info/200202/performance_and_spending/3233/government_procurement_cards,13-Apr-2022,Housing & Assets Total,Amazon.co.uk 2E4U04GT4,Corporate Management,25.68,DIRECT MARKETING-OTHER DIRECT MARKETERS/NOT ELSEW.,2022-23Q1_PC265
Sandwell Metropolitan Borough Council,http://www.sandwell.gov.uk/info/200202/performance_and_spending/3233/government_procurement_cards,13-Apr-2022,Total Borough Economy,RELIANCE MEDICAL LTD,Total Adult Social Care,20.19,DENTAL/LAB/MED/OPHTHALMIC HOSP EQUIP & SUPPLIES,2022-23Q1_PC266
Sandwell Metropolitan Borough Council,http://www.sandwell.gov.uk/info/200202/performance_and_spending/3233/government_procurement_cards,13-Apr-2022,Childrens Services,ROYAL MAIL GROUP LTD,Childrens Services,19.95,POSTAL SERVICES-GOVERNMENT ONLY,2022-23Q1_PC267
Sandwell Metropolitan Borough Council,http://www.sandwell.gov.uk/info/200202/performance_and_spending/3233/government_procurement_cards,13-Apr-2022,Regeneration & Growth,123 REG LTD,Regeneration And The Economy,55.97,COMPUTER NETWORK/INFORMATION SERVICES,2022-23Q1_PC268
Sandwell Metropolitan Borough Council,http://www.sandwell.gov.uk/info/200202/performance_and_spending/3233/government_procurement_cards,13-Apr-2022,Regeneration & Growth,123 REG LTD,Regeneration And The Economy,55.97,COMPUTER NETWORK/INFORMATION SERVICES,2022-23Q1_PC269
Sandwell Metropolitan Borough Council,http://www.sandwell.gov.uk/info/200202/performance_and_spending/3233/government_procurement_cards,13-Apr-2022,Regeneration & Growth,123 REG LTD,Regeneration And The Economy,55.97,COMPUTER NETWORK/INFORMATION SERVICES,2022-23Q1_PC270
Sandwell Metropolitan Borough Council,http://www.sandwell.gov.uk/info/200202/performance_and_spending/3233/government_procurement_cards,13-Apr-2022,Regeneration & Growth,123 REG LTD 000166687,Regeneration And The Economy,55.97,COMPUTER NETWORK/INFORMATION SERVICES,2022-23Q1_PC271
Sandwell Metropolitan Borough Council,http://www.sandwell.gov.uk/info/200202/performance_and_spending/3233/government_procurement_cards,13-Apr-2022,Total Housing Revenue Account,KNOWLEDGE EXCHANGE GRO,Total Housing Revenue Account,180,"ORGANIZATIONS, MEMBERSHIP-NOT ELSEWHERE CLASSIFIED",2022-23Q1_PC272
Sandwell Metropolitan Borough Council,http://www.sandwell.gov.uk/info/200202/performance_and_spending/3233/government_procurement_cards,13-Apr-2022,Childrens Services,FLIP OUT SANDWELL,Childrens Services,141.67,RECREATION SERVICES (NOT ELSEWHERE CLASSIFIED),2022-23Q1_PC273
Sandwell Metropolitan Borough Council,http://www.sandwell.gov.uk/info/200202/performance_and_spending/3233/government_procurement_cards,13-Apr-2022,Regeneration & Growth,NBS LTD (T/A NBS),Regeneration And The Economy,15245,COMPUTER SOFTWARE STORES,2022-23Q1_PC274
Sandwell Metropolitan Borough Council,http://www.sandwell.gov.uk/info/200202/performance_and_spending/3233/government_procurement_cards,14-Apr-2022,Corporate Management,AMZNMktplace,Corporate Management,12.98,MISCELLANEOUS AND SPECIALTY RETAIL STORES,2022-23Q1_PC275
Sandwell Metropolitan Borough Council,http://www.sandwell.gov.uk/info/200202/performance_and_spending/3233/government_procurement_cards,14-Apr-2022,Director of Law & Governance,AMZNMKTPLACE AMAZON.CO,Assistant Chief Executive (Excl SIU),111.8,MISCELLANEOUS AND SPECIALTY RETAIL STORES,2022-23Q1_PC276
Sandwell Metropolitan Borough Council,http://www.sandwell.gov.uk/info/200202/performance_and_spending/3233/government_procurement_cards,14-Apr-2022,Director of Law & Governance,Amazon.co.uk 2E39R6M74,Assistant Chief Executive (Excl SIU),11.57,DIRECT MARKETING-OTHER DIRECT MARKETERS/NOT ELSEW.,2022-23Q1_PC277
Sandwell Metropolitan Borough Council,http://www.sandwell.gov.uk/info/200202/performance_and_spending/3233/government_procurement_cards,14-Apr-2022,Total ASCHWB,Amazon.co.uk 2E5VP8V64,Total Adult Social Care,24.89,DIRECT MARKETING-OTHER DIRECT MARKETERS/NOT ELSEW.,2022-23Q1_PC278
Sandwell Metropolitan Borough Council,http://www.sandwell.gov.uk/info/200202/performance_and_spending/3233/government_procurement_cards,14-Apr-2022,Total Borough Economy,WWW.ARCO.CO.UK,Regeneration And The Economy,151.9,INDUSTRIAL SUPPLIES NOT ELSEWHERE CLASSIFIED,2022-23Q1_PC279
Sandwell Metropolitan Borough Council,http://www.sandwell.gov.uk/info/200202/performance_and_spending/3233/government_procurement_cards,14-Apr-2022,Total Borough Economy,WWW.ARCO.CO.UK,Regeneration And The Economy,205.63,INDUSTRIAL SUPPLIES NOT ELSEWHERE CLASSIFIED,2022-23Q1_PC280
Sandwell Metropolitan Borough Council,http://www.sandwell.gov.uk/info/200202/performance_and_spending/3233/government_procurement_cards,14-Apr-2022,Total Borough Economy,AMZNMktplace,Total Adult Social Care,75.82,MISCELLANEOUS AND SPECIALTY RETAIL STORES,2022-23Q1_PC281
Sandwell Metropolitan Borough Council,http://www.sandwell.gov.uk/info/200202/performance_and_spending/3233/government_procurement_cards,14-Apr-2022,Total Borough Economy,WWW.BUNZLCLEANINGSUPPL,Total Adult Social Care,118.37,"CLEANING AND MAINTENANCE, JANITORIAL SERVICES",2022-23Q1_PC282
Sandwell Metropolitan Borough Council,http://www.sandwell.gov.uk/info/200202/performance_and_spending/3233/government_procurement_cards,14-Apr-2022,Total Borough Economy,A4 LABELS.COM LIMITED,Total Adult Social Care,43.13,STATIONERY/OFFICE SUPPLIES/PRINTING & WRITING PAP.,2022-23Q1_PC283
Sandwell Metropolitan Borough Council,http://www.sandwell.gov.uk/info/200202/performance_and_spending/3233/government_procurement_cards,14-Apr-2022,Regeneration & Growth,Trainline.COM,Regeneration And The Economy,105.21,PASSENGER RAILWAYS,2022-23Q1_PC284
Sandwell Metropolitan Borough Council,http://www.sandwell.gov.uk/info/200202/performance_and_spending/3233/government_procurement_cards,14-Apr-2022,Total ASCHWB,AMZNMktplace,Total Adult Social Care,28.32,MISCELLANEOUS AND SPECIALTY RETAIL STORES,2022-23Q1_PC285
Sandwell Metropolitan Borough Council,http://www.sandwell.gov.uk/info/200202/performance_and_spending/3233/government_procurement_cards,14-Apr-2022,Childrens Services,SAINSBURY'S S/MKT,Childrens Services,7.7,"GROCERY STORES, SUPERMARKETS",2022-23Q1_PC286
Sandwell Metropolitan Borough Council,http://www.sandwell.gov.uk/info/200202/performance_and_spending/3233/government_procurement_cards,14-Apr-2022,Childrens Services,AMZNMktplace,Childrens Services,35.9,MISCELLANEOUS AND SPECIALTY RETAIL STORES,2022-23Q1_PC287
Sandwell Metropolitan Borough Council,http://www.sandwell.gov.uk/info/200202/performance_and_spending/3233/government_procurement_cards,14-Apr-2022,Childrens Services,AMZNMktplace,Childrens Services,78.72,MISCELLANEOUS AND SPECIALTY RETAIL STORES,2022-23Q1_PC288
Sandwell Metropolitan Borough Council,http://www.sandwell.gov.uk/info/200202/performance_and_spending/3233/government_procurement_cards,14-Apr-2022,Childrens Services,AMZNMktplace,Childrens Services,21.54,MISCELLANEOUS AND SPECIALTY RETAIL STORES,2022-23Q1_PC289
Sandwell Metropolitan Borough Council,http://www.sandwell.gov.uk/info/200202/performance_and_spending/3233/government_procurement_cards,14-Apr-2022,Total Borough Economy,ALDI 772 177,Total Adult Social Care,61.05,"GROCERY STORES, SUPERMARKETS",2022-23Q1_PC290
Sandwell Metropolitan Borough Council,http://www.sandwell.gov.uk/info/200202/performance_and_spending/3233/government_procurement_cards,14-Apr-2022,Total Borough Economy,LIDL GB WEST BROMWICH,Total Adult Social Care,70.95,"GROCERY STORES, SUPERMARKETS",2022-23Q1_PC291
Sandwell Metropolitan Borough Council,http://www.sandwell.gov.uk/info/200202/performance_and_spending/3233/government_procurement_cards,14-Apr-2022,Total Borough Economy,ALDI 772 177,Total Adult Social Care,206.25,"GROCERY STORES, SUPERMARKETS",2022-23Q1_PC292
Sandwell Metropolitan Borough Council,http://www.sandwell.gov.uk/info/200202/performance_and_spending/3233/government_procurement_cards,14-Apr-2022,Total Borough Economy,LIDL GB WEST BROMWICH,Total Adult Social Care,206.25,"GROCERY STORES, SUPERMARKETS",2022-23Q1_PC293
Sandwell Metropolitan Borough Council,http://www.sandwell.gov.uk/info/200202/performance_and_spending/3233/government_procurement_cards,14-Apr-2022,Total Borough Economy,Amazon.co.uk 2E8DB5VH4,Total Adult Social Care,9.92,DIRECT MARKETING-OTHER DIRECT MARKETERS/NOT ELSEW.,2022-23Q1_PC294
Sandwell Metropolitan Borough Council,http://www.sandwell.gov.uk/info/200202/performance_and_spending/3233/government_procurement_cards,14-Apr-2022,Total Housing Revenue Account,HOWDENS,Total Housing Revenue Account,80.62,"BUILDING MATERIALS, LUMBER STORES",2022-23Q1_PC295
Sandwell Metropolitan Borough Council,http://www.sandwell.gov.uk/info/200202/performance_and_spending/3233/government_procurement_cards,14-Apr-2022,Total Housing Revenue Account,NORDAN UK LTD,Total Housing Revenue Account,103.15,"BUILDING MATERIALS, LUMBER STORES",2022-23Q1_PC296
Sandwell Metropolitan Borough Council,http://www.sandwell.gov.uk/info/200202/performance_and_spending/3233/government_procurement_cards,14-Apr-2022,Director of Law & Governance,SAINSBURYS,Assistant Chief Executive (Excl SIU),18.71,"GROCERY STORES, SUPERMARKETS",2022-23Q1_PC297
Sandwell Metropolitan Borough Council,http://www.sandwell.gov.uk/info/200202/performance_and_spending/3233/government_procurement_cards,14-Apr-2022,Childrens Services,ASDA GROCERIES ONLINE,Childrens Services,-0.18,"GROCERY STORES, SUPERMARKETS",2022-23Q1_PC298
Sandwell Metropolitan Borough Council,http://www.sandwell.gov.uk/info/200202/performance_and_spending/3233/government_procurement_cards,14-Apr-2022,Total ASCHWB,AMZNMktplace,Total Adult Social Care,41.65,MISCELLANEOUS AND SPECIALTY RETAIL STORES,2022-23Q1_PC299
Sandwell Metropolitan Borough Council,http://www.sandwell.gov.uk/info/200202/performance_and_spending/3233/government_procurement_cards,14-Apr-2022,Individual School Budgets With Inclusion,AMZNMktplace,Individual School Budgets With Inclusion,56.56,MISCELLANEOUS AND SPECIALTY RETAIL STORES,2022-23Q1_PC300
Sandwell Metropolitan Borough Council,http://www.sandwell.gov.uk/info/200202/performance_and_spending/3233/government_procurement_cards,14-Apr-2022,Childrens Services,AMZNMktplace,Childrens Services,19.6,MISCELLANEOUS AND SPECIALTY RETAIL STORES,2022-23Q1_PC301
Sandwell Metropolitan Borough Council,http://www.sandwell.gov.uk/info/200202/performance_and_spending/3233/government_procurement_cards,14-Apr-2022,Total ASCHWB,AMZNMKTPLACE AMAZON.CO,Total Adult Social Care,16.9,MISCELLANEOUS AND SPECIALTY RETAIL STORES,2022-23Q1_PC302
Sandwell Metropolitan Borough Council,http://www.sandwell.gov.uk/info/200202/performance_and_spending/3233/government_procurement_cards,14-Apr-2022,Childrens Services,Flextronics,Childrens Services,40,COMPUTER MAIN./REPAIR/SERVICES NOT ELSEWHERE CLASS,2022-23Q1_PC303
Sandwell Metropolitan Borough Council,http://www.sandwell.gov.uk/info/200202/performance_and_spending/3233/government_procurement_cards,14-Apr-2022,Total Borough Economy,SAINSBURYS S/MKTS,Total Adult Social Care,14.55,"GROCERY STORES, SUPERMARKETS",2022-23Q1_PC304
Sandwell Metropolitan Borough Council,http://www.sandwell.gov.uk/info/200202/performance_and_spending/3233/government_procurement_cards,15-Apr-2022,Corporate Management,Amazon.co.uk 2E41V8HN4,Corporate Management,18.48,DIRECT MARKETING-OTHER DIRECT MARKETERS/NOT ELSEW.,2022-23Q1_PC305
Sandwell Metropolitan Borough Council,http://www.sandwell.gov.uk/info/200202/performance_and_spending/3233/government_procurement_cards,15-Apr-2022,Director of Law & Governance,Amazon Prime 2E2QR7MR4,Assistant Chief Executive (Excl SIU),6.66,DIRECT MARKETING-CONTINUITY/SUBSCRIPTION MERCHANTS,2022-23Q1_PC306
Sandwell Metropolitan Borough Council,http://www.sandwell.gov.uk/info/200202/performance_and_spending/3233/government_procurement_cards,15-Apr-2022,Housing & Assets Total,STORAGE KING WALSALL,Corporate Management,186,"PUBLIC WAREHOUSING-FARM, REFRIG GOODS, HHG STORAGE",2022-23Q1_PC307
Sandwell Metropolitan Borough Council,http://www.sandwell.gov.uk/info/200202/performance_and_spending/3233/government_procurement_cards,15-Apr-2022,Housing & Assets Total,TRAVELODGE,Corporate Management,214.14,TRAVELODGE,2022-23Q1_PC308
Sandwell Metropolitan Borough Council,http://www.sandwell.gov.uk/info/200202/performance_and_spending/3233/government_procurement_cards,15-Apr-2022,Childrens Services,EB  YPQI PQA BASICS-ON,Childrens Services,25,BUSINESS SERVICES-NOT ELSEWHERE CLASSIFIED,2022-23Q1_PC309
Sandwell Metropolitan Borough Council,http://www.sandwell.gov.uk/info/200202/performance_and_spending/3233/government_procurement_cards,15-Apr-2022,Childrens Services,EB  YPQI PQA BASICS-ON,Childrens Services,25,BUSINESS SERVICES-NOT ELSEWHERE CLASSIFIED,2022-23Q1_PC310
Sandwell Metropolitan Borough Council,http://www.sandwell.gov.uk/info/200202/performance_and_spending/3233/government_procurement_cards,15-Apr-2022,Total ASCHWB,AMZNMktplace,Total Adult Social Care,26.5,MISCELLANEOUS AND SPECIALTY RETAIL STORES,2022-23Q1_PC311
Sandwell Metropolitan Borough Council,http://www.sandwell.gov.uk/info/200202/performance_and_spending/3233/government_procurement_cards,15-Apr-2022,Total ASCHWB,AMZNMKTPLACE AMAZON.CO,Total Adult Social Care,14.98,MISCELLANEOUS AND SPECIALTY RETAIL STORES,2022-23Q1_PC312
Sandwell Metropolitan Borough Council,http://www.sandwell.gov.uk/info/200202/performance_and_spending/3233/government_procurement_cards,15-Apr-2022,FINANCE (Inc SIU),WWW.CIPFA.ORG.UK,Assistant Chief Executive (Excl SIU),110,"ORGANIZATIONS, MEMBERSHIP-NOT ELSEWHERE CLASSIFIED",2022-23Q1_PC313
Sandwell Metropolitan Borough Council,http://www.sandwell.gov.uk/info/200202/performance_and_spending/3233/government_procurement_cards,15-Apr-2022,FINANCE (Inc SIU),WWW.CIPFA.ORG.UK,Assistant Chief Executive (Excl SIU),110,"ORGANIZATIONS, MEMBERSHIP-NOT ELSEWHERE CLASSIFIED",2022-23Q1_PC314
Sandwell Metropolitan Borough Council,http://www.sandwell.gov.uk/info/200202/performance_and_spending/3233/government_procurement_cards,15-Apr-2022,Housing & Assets Total,WWW.VICARAGELODGE.COM,Corporate Management,50,"LODGING-HOTELS,MOTELS,RESORTS-NOT CLASSIFIED",2022-23Q1_PC315
Sandwell Metropolitan Borough Council,http://www.sandwell.gov.uk/info/200202/performance_and_spending/3233/government_procurement_cards,15-Apr-2022,Housing & Assets Total,IBIS STYLES HOTEL,Corporate Management,412.5,"LODGING-HOTELS,MOTELS,RESORTS-NOT CLASSIFIED",2022-23Q1_PC316
Sandwell Metropolitan Borough Council,http://www.sandwell.gov.uk/info/200202/performance_and_spending/3233/government_procurement_cards,15-Apr-2022,Director of Law & Governance,AMZNMKTPLACE AMAZON.CO,Assistant Chief Executive (Excl SIU),86.36,MISCELLANEOUS AND SPECIALTY RETAIL STORES,2022-23Q1_PC317
Sandwell Metropolitan Borough Council,http://www.sandwell.gov.uk/info/200202/performance_and_spending/3233/government_procurement_cards,15-Apr-2022,Total ASCHWB,SLINGSBY,Total Adult Social Care,165,"COMPUTERS, COMPUTER PERIPHERAL EQUIPMENT, SOFTWARE",2022-23Q1_PC318
Sandwell Metropolitan Borough Council,http://www.sandwell.gov.uk/info/200202/performance_and_spending/3233/government_procurement_cards,15-Apr-2022,Total Borough Economy,LIDL GB GREAT BRIDGE,Total Adult Social Care,93,"GROCERY STORES, SUPERMARKETS",2022-23Q1_PC319
Sandwell Metropolitan Borough Council,http://www.sandwell.gov.uk/info/200202/performance_and_spending/3233/government_procurement_cards,15-Apr-2022,Total Borough Economy,LIDL GB GREAT BRIDGE,Total Adult Social Care,93,"GROCERY STORES, SUPERMARKETS",2022-23Q1_PC320
Sandwell Metropolitan Borough Council,http://www.sandwell.gov.uk/info/200202/performance_and_spending/3233/government_procurement_cards,15-Apr-2022,Total Borough Economy,PAYPAL  AVANSAS,Total Adult Social Care,12.99,"OFFICE, SCHOOL SUPPLY, AND STATIONERY STORES",2022-23Q1_PC321
Sandwell Metropolitan Borough Council,http://www.sandwell.gov.uk/info/200202/performance_and_spending/3233/government_procurement_cards,15-Apr-2022,Total Borough Economy,PAYPAL  BAKER ROSS,Total Adult Social Care,85.97,"GAME, TOY, AND HOBBY SHOPS",2022-23Q1_PC322
Sandwell Metropolitan Borough Council,http://www.sandwell.gov.uk/info/200202/performance_and_spending/3233/government_procurement_cards,15-Apr-2022,Total Borough Economy,Amazon.co.uk 2E6DX9H54,Total Adult Social Care,8.91,DIRECT MARKETING-OTHER DIRECT MARKETERS/NOT ELSEW.,2022-23Q1_PC323
Sandwell Metropolitan Borough Council,http://www.sandwell.gov.uk/info/200202/performance_and_spending/3233/government_procurement_cards,15-Apr-2022,Total Borough Economy,Amazon.co.uk 2E3G53HY4,Total Adult Social Care,10.75,DIRECT MARKETING-OTHER DIRECT MARKETERS/NOT ELSEW.,2022-23Q1_PC324
Sandwell Metropolitan Borough Council,http://www.sandwell.gov.uk/info/200202/performance_and_spending/3233/government_procurement_cards,15-Apr-2022,Total Borough Economy,SAINSBURYS S/MKTS,Total Adult Social Care,7,"GROCERY STORES, SUPERMARKETS",2022-23Q1_PC325
Sandwell Metropolitan Borough Council,http://www.sandwell.gov.uk/info/200202/performance_and_spending/3233/government_procurement_cards,15-Apr-2022,Total Housing Revenue Account,TRAVIS PERKINS,Total Housing Revenue Account,23.74,"BUILDING MATERIALS, LUMBER STORES",2022-23Q1_PC326
Sandwell Metropolitan Borough Council,http://www.sandwell.gov.uk/info/200202/performance_and_spending/3233/government_procurement_cards,15-Apr-2022,Childrens Services,Perico - Delivery,Childrens Services,114.36,FAST FOOD RESTAURANTS,2022-23Q1_PC327
Sandwell Metropolitan Borough Council,http://www.sandwell.gov.uk/info/200202/performance_and_spending/3233/government_procurement_cards,15-Apr-2022,Childrens Services,WM MORRISONS STORE,Childrens Services,11.63,"GROCERY STORES, SUPERMARKETS",2022-23Q1_PC328
Sandwell Metropolitan Borough Council,http://www.sandwell.gov.uk/info/200202/performance_and_spending/3233/government_procurement_cards,15-Apr-2022,Childrens Services,AMZNMktplace,Childrens Services,49.7,MISCELLANEOUS AND SPECIALTY RETAIL STORES,2022-23Q1_PC329
Sandwell Metropolitan Borough Council,http://www.sandwell.gov.uk/info/200202/performance_and_spending/3233/government_procurement_cards,15-Apr-2022,Total ASCHWB,AMZNMktplace,Total Adult Social Care,3.58,MISCELLANEOUS AND SPECIALTY RETAIL STORES,2022-23Q1_PC330
Sandwell Metropolitan Borough Council,http://www.sandwell.gov.uk/info/200202/performance_and_spending/3233/government_procurement_cards,15-Apr-2022,FINANCE (Inc SIU),PAYPAL  AMPACSECURI,Total Adult Social Care,141.5,NONDURABLE GOODS (NOT ELSEWHERE CLASSIFIED),2022-23Q1_PC331
Sandwell Metropolitan Borough Council,http://www.sandwell.gov.uk/info/200202/performance_and_spending/3233/government_procurement_cards,15-Apr-2022,FINANCE (Inc SIU),PAYPAL  AMPACSECURI,Total Adult Social Care,141.5,NONDURABLE GOODS (NOT ELSEWHERE CLASSIFIED),2022-23Q1_PC332
Sandwell Metropolitan Borough Council,http://www.sandwell.gov.uk/info/200202/performance_and_spending/3233/government_procurement_cards,15-Apr-2022,Total Borough Economy,RHUARDEN LIMITED,Total Adult Social Care,31.5,MISCELLANEOUS GENERAL MERCHANDISE,2022-23Q1_PC333
Sandwell Metropolitan Borough Council,http://www.sandwell.gov.uk/info/200202/performance_and_spending/3233/government_procurement_cards,15-Apr-2022,Total Borough Economy,WWW.OFFICETEAMCONNECT.,Total Adult Social Care,21.72,STATIONERY/OFFICE SUPPLIES/PRINTING & WRITING PAP.,2022-23Q1_PC334
Sandwell Metropolitan Borough Council,http://www.sandwell.gov.uk/info/200202/performance_and_spending/3233/government_procurement_cards,15-Apr-2022,Total ASCHWB,Amazon Prime 2E9JV7MZ4,Total Adult Social Care,6.66,DIRECT MARKETING-CONTINUITY/SUBSCRIPTION MERCHANTS,2022-23Q1_PC335
Sandwell Metropolitan Borough Council,http://www.sandwell.gov.uk/info/200202/performance_and_spending/3233/government_procurement_cards,18-Apr-2022,Total ASCHWB,WWW.OFFICETEAMCONNECT.,Total Adult Social Care,62.11,STATIONERY/OFFICE SUPPLIES/PRINTING & WRITING PAP.,2022-23Q1_PC336
Sandwell Metropolitan Borough Council,http://www.sandwell.gov.uk/info/200202/performance_and_spending/3233/government_procurement_cards,18-Apr-2022,Total ASCHWB,WWW.OFFICETEAMCONNECT.,Total Adult Social Care,4.62,STATIONERY/OFFICE SUPPLIES/PRINTING & WRITING PAP.,2022-23Q1_PC337
Sandwell Metropolitan Borough Council,http://www.sandwell.gov.uk/info/200202/performance_and_spending/3233/government_procurement_cards,18-Apr-2022,Total Borough Economy,BESTWAY WHOLESALE,Total Adult Social Care,97.7,DAIRY PRODUCTS STORES,2022-23Q1_PC338
Sandwell Metropolitan Borough Council,http://www.sandwell.gov.uk/info/200202/performance_and_spending/3233/government_procurement_cards,18-Apr-2022,Total Borough Economy,ASDA SUPERSTORE,Total Adult Social Care,46.7,"GROCERY STORES, SUPERMARKETS",2022-23Q1_PC339
Sandwell Metropolitan Borough Council,http://www.sandwell.gov.uk/info/200202/performance_and_spending/3233/government_procurement_cards,18-Apr-2022,Total Borough Economy,ASDA SUPERSTORE,Total Adult Social Care,63.8,"GROCERY STORES, SUPERMARKETS",2022-23Q1_PC340
Sandwell Metropolitan Borough Council,http://www.sandwell.gov.uk/info/200202/performance_and_spending/3233/government_procurement_cards,18-Apr-2022,Total Borough Economy,ARGOS LTD,Total Adult Social Care,26.94,DISCOUNT STORES,2022-23Q1_PC341
Sandwell Metropolitan Borough Council,http://www.sandwell.gov.uk/info/200202/performance_and_spending/3233/government_procurement_cards,18-Apr-2022,Regeneration & Growth,Amazon Prime 2E4QX38X4,Regeneration And The Economy,80,DIRECT MARKETING-CONTINUITY/SUBSCRIPTION MERCHANTS,2022-23Q1_PC342
Sandwell Metropolitan Borough Council,http://www.sandwell.gov.uk/info/200202/performance_and_spending/3233/government_procurement_cards,18-Apr-2022,Total Housing Revenue Account,AMZNMktplace,Total Housing Revenue Account,156.99,MISCELLANEOUS AND SPECIALTY RETAIL STORES,2022-23Q1_PC343
Sandwell Metropolitan Borough Council,http://www.sandwell.gov.uk/info/200202/performance_and_spending/3233/government_procurement_cards,18-Apr-2022,Childrens Services,Spotify P1AE96B25A,Childrens Services,8.32,DIGITAL GOODS AUDIOVISUAL MEDIA,2022-23Q1_PC344
Sandwell Metropolitan Borough Council,http://www.sandwell.gov.uk/info/200202/performance_and_spending/3233/government_procurement_cards,18-Apr-2022,Total Borough Economy,WILKO RETAIL LIMITED,Total Adult Social Care,13.33,MISCELLANEOUS GENERAL MERCHANDISE,2022-23Q1_PC345
Sandwell Metropolitan Borough Council,http://www.sandwell.gov.uk/info/200202/performance_and_spending/3233/government_procurement_cards,18-Apr-2022,Total Borough Economy,B&M 697 - WEST BROMWIC,Total Adult Social Care,2.5,MISCELLANEOUS GENERAL MERCHANDISE,2022-23Q1_PC346
Sandwell Metropolitan Borough Council,http://www.sandwell.gov.uk/info/200202/performance_and_spending/3233/government_procurement_cards,18-Apr-2022,Total Borough Economy,SAINSBURYS S/MKTS,Total Adult Social Care,20.83,"GROCERY STORES, SUPERMARKETS",2022-23Q1_PC347
Sandwell Metropolitan Borough Council,http://www.sandwell.gov.uk/info/200202/performance_and_spending/3233/government_procurement_cards,18-Apr-2022,Total Housing Revenue Account,WWW.SCREWFIX.COM,Total Housing Revenue Account,74.99,"BUILDING MATERIALS, LUMBER STORES",2022-23Q1_PC348
Sandwell Metropolitan Borough Council,http://www.sandwell.gov.uk/info/200202/performance_and_spending/3233/government_procurement_cards,18-Apr-2022,Total Borough Economy,WETRANSFER,Total Adult Social Care,8.53,"COMP PROGRAMING,DATA PRCSNG,INTGRTD SYS DSGN SRVS",2022-23Q1_PC349
Sandwell Metropolitan Borough Council,http://www.sandwell.gov.uk/info/200202/performance_and_spending/3233/government_procurement_cards,18-Apr-2022,Total Borough Economy,LIDL GB GREAT BRIDGE,Total Adult Social Care,179.03,"GROCERY STORES, SUPERMARKETS",2022-23Q1_PC350
Sandwell Metropolitan Borough Council,http://www.sandwell.gov.uk/info/200202/performance_and_spending/3233/government_procurement_cards,18-Apr-2022,Total Borough Economy,LIDL GB GREAT BRIDGE,Total Adult Social Care,134.85,"GROCERY STORES, SUPERMARKETS",2022-23Q1_PC351
Sandwell Metropolitan Borough Council,http://www.sandwell.gov.uk/info/200202/performance_and_spending/3233/government_procurement_cards,18-Apr-2022,Total Borough Economy,ASDA SUPERSTORE,Total Adult Social Care,194.21,"GROCERY STORES, SUPERMARKETS",2022-23Q1_PC352
Sandwell Metropolitan Borough Council,http://www.sandwell.gov.uk/info/200202/performance_and_spending/3233/government_procurement_cards,18-Apr-2022,Total Borough Economy,ALDI 42 772,Total Adult Social Care,949.73,"GROCERY STORES, SUPERMARKETS",2022-23Q1_PC353
Sandwell Metropolitan Borough Council,http://www.sandwell.gov.uk/info/200202/performance_and_spending/3233/government_procurement_cards,19-Apr-2022,FINANCE (Inc SIU),WILKO RETAIL LIMITED,Assistant Chief Executive (Excl SIU),3.4,MISCELLANEOUS GENERAL MERCHANDISE,2022-23Q1_PC354
Sandwell Metropolitan Borough Council,http://www.sandwell.gov.uk/info/200202/performance_and_spending/3233/government_procurement_cards,19-Apr-2022,Total Borough Economy,AMZNMKTPLACE AMAZON.CO,Total Adult Social Care,9.99,MISCELLANEOUS AND SPECIALTY RETAIL STORES,2022-23Q1_PC355
Sandwell Metropolitan Borough Council,http://www.sandwell.gov.uk/info/200202/performance_and_spending/3233/government_procurement_cards,19-Apr-2022,Total Borough Economy,eBay O 21-08521-24937,Total Adult Social Care,19.45,DEPARTMENT STORES,2022-23Q1_PC356
Sandwell Metropolitan Borough Council,http://www.sandwell.gov.uk/info/200202/performance_and_spending/3233/government_procurement_cards,19-Apr-2022,Childrens Services,TESCO STORES 2770,Childrens Services,15.53,"GROCERY STORES, SUPERMARKETS",2022-23Q1_PC357
Sandwell Metropolitan Borough Council,http://www.sandwell.gov.uk/info/200202/performance_and_spending/3233/government_procurement_cards,20-Apr-2022,FINANCE (Inc SIU),THE WORKS,Assistant Chief Executive (Excl SIU),13.5,DISCOUNT STORES,2022-23Q1_PC358
Sandwell Metropolitan Borough Council,http://www.sandwell.gov.uk/info/200202/performance_and_spending/3233/government_procurement_cards,20-Apr-2022,FINANCE (Inc SIU),SAINSBURYS S/MKTS,Assistant Chief Executive (Excl SIU),24.5,"GROCERY STORES, SUPERMARKETS",2022-23Q1_PC359
Sandwell Metropolitan Borough Council,http://www.sandwell.gov.uk/info/200202/performance_and_spending/3233/government_procurement_cards,20-Apr-2022,Director of Law & Governance,AMZNMktplace,Assistant Chief Executive (Excl SIU),14.25,MISCELLANEOUS AND SPECIALTY RETAIL STORES,2022-23Q1_PC360
Sandwell Metropolitan Borough Council,http://www.sandwell.gov.uk/info/200202/performance_and_spending/3233/government_procurement_cards,20-Apr-2022,Housing & Assets Total,TRAVELODGE,Corporate Management,380.39,TRAVELODGE,2022-23Q1_PC361
Sandwell Metropolitan Borough Council,http://www.sandwell.gov.uk/info/200202/performance_and_spending/3233/government_procurement_cards,20-Apr-2022,Housing & Assets Total,WWW.VICARAGELODGE.COM,Corporate Management,1050,"LODGING-HOTELS,MOTELS,RESORTS-NOT CLASSIFIED",2022-23Q1_PC362
Sandwell Metropolitan Borough Council,http://www.sandwell.gov.uk/info/200202/performance_and_spending/3233/government_procurement_cards,20-Apr-2022,Total ASCHWB,AMZNMktplace,Total Adult Social Care,53.92,MISCELLANEOUS AND SPECIALTY RETAIL STORES,2022-23Q1_PC363
Sandwell Metropolitan Borough Council,http://www.sandwell.gov.uk/info/200202/performance_and_spending/3233/government_procurement_cards,20-Apr-2022,Total Borough Economy,Amazon.co.uk 2E6V41R94,Total Adult Social Care,17,DIRECT MARKETING-OTHER DIRECT MARKETERS/NOT ELSEW.,2022-23Q1_PC364
Sandwell Metropolitan Borough Council,http://www.sandwell.gov.uk/info/200202/performance_and_spending/3233/government_procurement_cards,20-Apr-2022,Total Business Strategy & Change,AMZ THE LITTLE BRAND,Assistant Chief Executive (Excl SIU),-35.99,MISCELLANEOUS AND SPECIALTY RETAIL STORES,2022-23Q1_PC365
Sandwell Metropolitan Borough Council,http://www.sandwell.gov.uk/info/200202/performance_and_spending/3233/government_procurement_cards,20-Apr-2022,Total Borough Economy,AMZNMktplace,Total Adult Social Care,33.07,MISCELLANEOUS AND SPECIALTY RETAIL STORES,2022-23Q1_PC366
Sandwell Metropolitan Borough Council,http://www.sandwell.gov.uk/info/200202/performance_and_spending/3233/government_procurement_cards,20-Apr-2022,Total ASCHWB,MEDISUPPLIES LTD,Total Adult Social Care,41.46,MISCELLANEOUS AND SPECIALTY RETAIL STORES,2022-23Q1_PC367
Sandwell Metropolitan Borough Council,http://www.sandwell.gov.uk/info/200202/performance_and_spending/3233/government_procurement_cards,20-Apr-2022,Housing & Assets Total,Amazon Prime 2E7059II4,Corporate Management,7.99,DIRECT MARKETING-CONTINUITY/SUBSCRIPTION MERCHANTS,2022-23Q1_PC368
Sandwell Metropolitan Borough Council,http://www.sandwell.gov.uk/info/200202/performance_and_spending/3233/government_procurement_cards,20-Apr-2022,Total Housing Revenue Account,AMZNMktplace,Total Housing Revenue Account,11.28,MISCELLANEOUS AND SPECIALTY RETAIL STORES,2022-23Q1_PC369
Sandwell Metropolitan Borough Council,http://www.sandwell.gov.uk/info/200202/performance_and_spending/3233/government_procurement_cards,20-Apr-2022,Total Housing Revenue Account,AMZNMktplace,Total Housing Revenue Account,8.74,MISCELLANEOUS AND SPECIALTY RETAIL STORES,2022-23Q1_PC370
Sandwell Metropolitan Borough Council,http://www.sandwell.gov.uk/info/200202/performance_and_spending/3233/government_procurement_cards,20-Apr-2022,Childrens Services,TESCO STORES 2770,Childrens Services,-15.53,"GROCERY STORES, SUPERMARKETS",2022-23Q1_PC371
Sandwell Metropolitan Borough Council,http://www.sandwell.gov.uk/info/200202/performance_and_spending/3233/government_procurement_cards,20-Apr-2022,Regeneration & Growth,Amazon.co.uk 2E3YL2WH4,Regeneration And The Economy,10.74,DIRECT MARKETING-OTHER DIRECT MARKETERS/NOT ELSEW.,2022-23Q1_PC372
Sandwell Metropolitan Borough Council,http://www.sandwell.gov.uk/info/200202/performance_and_spending/3233/government_procurement_cards,20-Apr-2022,Housing & Assets Total,Amazon.co.uk 2E31P9R24,Corporate Management,65.17,DIRECT MARKETING-OTHER DIRECT MARKETERS/NOT ELSEW.,2022-23Q1_PC373
Sandwell Metropolitan Borough Council,http://www.sandwell.gov.uk/info/200202/performance_and_spending/3233/government_procurement_cards,20-Apr-2022,Housing & Assets Total,AMZNMktplace,Corporate Management,7.24,MISCELLANEOUS AND SPECIALTY RETAIL STORES,2022-23Q1_PC374
Sandwell Metropolitan Borough Council,http://www.sandwell.gov.uk/info/200202/performance_and_spending/3233/government_procurement_cards,20-Apr-2022,Housing & Assets Total,AMZNMktplace,Corporate Management,26.66,MISCELLANEOUS AND SPECIALTY RETAIL STORES,2022-23Q1_PC375
Sandwell Metropolitan Borough Council,http://www.sandwell.gov.uk/info/200202/performance_and_spending/3233/government_procurement_cards,20-Apr-2022,Regeneration & Growth,POST OFFICE COUNTER,Regeneration And The Economy,2.85,POSTAL SERVICES-GOVERNMENT ONLY,2022-23Q1_PC376
Sandwell Metropolitan Borough Council,http://www.sandwell.gov.uk/info/200202/performance_and_spending/3233/government_procurement_cards,20-Apr-2022,Childrens Services,Amazon Prime 2E9057I84,Childrens Services,6.66,DIRECT MARKETING-CONTINUITY/SUBSCRIPTION MERCHANTS,2022-23Q1_PC377
Sandwell Metropolitan Borough Council,http://www.sandwell.gov.uk/info/200202/performance_and_spending/3233/government_procurement_cards,21-Apr-2022,Corporate Management,Trainline.COM,Corporate Management,146.79,PASSENGER RAILWAYS,2022-23Q1_PC378
Sandwell Metropolitan Borough Council,http://www.sandwell.gov.uk/info/200202/performance_and_spending/3233/government_procurement_cards,21-Apr-2022,Total Business Strategy & Change,AMZNMktplace,Assistant Chief Executive (Excl SIU),27,MISCELLANEOUS AND SPECIALTY RETAIL STORES,2022-23Q1_PC379
Sandwell Metropolitan Borough Council,http://www.sandwell.gov.uk/info/200202/performance_and_spending/3233/government_procurement_cards,21-Apr-2022,FINANCE (Inc SIU),SAINSBURYS S/MKTS,Assistant Chief Executive (Excl SIU),11,"GROCERY STORES, SUPERMARKETS",2022-23Q1_PC380
Sandwell Metropolitan Borough Council,http://www.sandwell.gov.uk/info/200202/performance_and_spending/3233/government_procurement_cards,21-Apr-2022,Housing & Assets Total,TRAVELODGE,Corporate Management,279.42,TRAVELODGE,2022-23Q1_PC381
Sandwell Metropolitan Borough Council,http://www.sandwell.gov.uk/info/200202/performance_and_spending/3233/government_procurement_cards,21-Apr-2022,Housing & Assets Total,WWW.VICARAGELODGE.COM,Corporate Management,1050,"LODGING-HOTELS,MOTELS,RESORTS-NOT CLASSIFIED",2022-23Q1_PC382
Sandwell Metropolitan Borough Council,http://www.sandwell.gov.uk/info/200202/performance_and_spending/3233/government_procurement_cards,21-Apr-2022,Total Borough Economy,AMZNMktplace,Total Adult Social Care,9.99,MISCELLANEOUS AND SPECIALTY RETAIL STORES,2022-23Q1_PC383
Sandwell Metropolitan Borough Council,http://www.sandwell.gov.uk/info/200202/performance_and_spending/3233/government_procurement_cards,21-Apr-2022,Total Borough Economy,POST OFFICE COUNTER,Total Adult Social Care,2.9,POSTAL SERVICES-GOVERNMENT ONLY,2022-23Q1_PC384
Sandwell Metropolitan Borough Council,http://www.sandwell.gov.uk/info/200202/performance_and_spending/3233/government_procurement_cards,21-Apr-2022,Total Borough Economy,IKEA LTD 142 BIRMINGHA,Total Adult Social Care,15,"EQUIP, FURNITURE, HOME FURNSHNGS STRS (EXCPT APPL)",2022-23Q1_PC385
Sandwell Metropolitan Borough Council,http://www.sandwell.gov.uk/info/200202/performance_and_spending/3233/government_procurement_cards,21-Apr-2022,Housing & Assets Total,LOAVES N FISHES,Corporate Management,45,"ORGANIZATIONS, CHARITABLE AND SOCIAL SERVICES",2022-23Q1_PC386
Sandwell Metropolitan Borough Council,http://www.sandwell.gov.uk/info/200202/performance_and_spending/3233/government_procurement_cards,21-Apr-2022,Total Borough Economy,AMZNMktplace,Total Adult Social Care,21.14,MISCELLANEOUS AND SPECIALTY RETAIL STORES,2022-23Q1_PC387
Sandwell Metropolitan Borough Council,http://www.sandwell.gov.uk/info/200202/performance_and_spending/3233/government_procurement_cards,21-Apr-2022,Total Borough Economy,AMZNMktplace,Total Adult Social Care,15.81,MISCELLANEOUS AND SPECIALTY RETAIL STORES,2022-23Q1_PC388
Sandwell Metropolitan Borough Council,http://www.sandwell.gov.uk/info/200202/performance_and_spending/3233/government_procurement_cards,21-Apr-2022,Total Housing Revenue Account,AMZNMKTPLACE AMAZON.CO,Total Housing Revenue Account,10.97,MISCELLANEOUS AND SPECIALTY RETAIL STORES,2022-23Q1_PC389
Sandwell Metropolitan Borough Council,http://www.sandwell.gov.uk/info/200202/performance_and_spending/3233/government_procurement_cards,21-Apr-2022,Childrens Services,Twinkl,Childrens Services,44.9,SCHOOLS & EDUCATIONAL SVC-NOT ELSEWHERE CLASSIFIED,2022-23Q1_PC390
Sandwell Metropolitan Borough Council,http://www.sandwell.gov.uk/info/200202/performance_and_spending/3233/government_procurement_cards,21-Apr-2022,Director of Law & Governance,SUNITAS SWEET CENTRE,Assistant Chief Executive (Excl SIU),33,"EATING PLACES, RESTAURANTS",2022-23Q1_PC391
Sandwell Metropolitan Borough Council,http://www.sandwell.gov.uk/info/200202/performance_and_spending/3233/government_procurement_cards,21-Apr-2022,Childrens Services,AMZNMktplace,Childrens Services,74.69,MISCELLANEOUS AND SPECIALTY RETAIL STORES,2022-23Q1_PC392
Sandwell Metropolitan Borough Council,http://www.sandwell.gov.uk/info/200202/performance_and_spending/3233/government_procurement_cards,21-Apr-2022,Total Business Strategy & Change,Amazon.co.uk 2P3J66CS4,Assistant Chief Executive (Excl SIU),32.6,DIRECT MARKETING-OTHER DIRECT MARKETERS/NOT ELSEW.,2022-23Q1_PC393
Sandwell Metropolitan Borough Council,http://www.sandwell.gov.uk/info/200202/performance_and_spending/3233/government_procurement_cards,21-Apr-2022,Total Housing Revenue Account,AMZNMKTPLACE AMAZON.CO,Total Housing Revenue Account,23.45,MISCELLANEOUS AND SPECIALTY RETAIL STORES,2022-23Q1_PC394
Sandwell Metropolitan Borough Council,http://www.sandwell.gov.uk/info/200202/performance_and_spending/3233/government_procurement_cards,21-Apr-2022,Total Housing Revenue Account,AMZNMKTPLACE AMAZON.CO,Total Housing Revenue Account,102.2,MISCELLANEOUS AND SPECIALTY RETAIL STORES,2022-23Q1_PC395
Sandwell Metropolitan Borough Council,http://www.sandwell.gov.uk/info/200202/performance_and_spending/3233/government_procurement_cards,21-Apr-2022,Total Housing Revenue Account,AMZNMKTPLACE AMAZON.CO,Total Housing Revenue Account,12.98,MISCELLANEOUS AND SPECIALTY RETAIL STORES,2022-23Q1_PC396
Sandwell Metropolitan Borough Council,http://www.sandwell.gov.uk/info/200202/performance_and_spending/3233/government_procurement_cards,21-Apr-2022,Total Housing Revenue Account,AMZNMKTPLACE AMAZON.CO,Total Housing Revenue Account,94.5,MISCELLANEOUS AND SPECIALTY RETAIL STORES,2022-23Q1_PC397
Sandwell Metropolitan Borough Council,http://www.sandwell.gov.uk/info/200202/performance_and_spending/3233/government_procurement_cards,21-Apr-2022,Total Housing Revenue Account,AMZNMKTPLACE AMAZON.CO,Total Housing Revenue Account,20.31,MISCELLANEOUS AND SPECIALTY RETAIL STORES,2022-23Q1_PC398
Sandwell Metropolitan Borough Council,http://www.sandwell.gov.uk/info/200202/performance_and_spending/3233/government_procurement_cards,22-Apr-2022,Director of Law & Governance,Amazon Prime 2P5I92F04,Assistant Chief Executive (Excl SIU),6.66,DIRECT MARKETING-CONTINUITY/SUBSCRIPTION MERCHANTS,2022-23Q1_PC399
Sandwell Metropolitan Borough Council,http://www.sandwell.gov.uk/info/200202/performance_and_spending/3233/government_procurement_cards,22-Apr-2022,Director of Law & Governance,AMZNMktplace,Assistant Chief Executive (Excl SIU),207.9,MISCELLANEOUS AND SPECIALTY RETAIL STORES,2022-23Q1_PC400
Sandwell Metropolitan Borough Council,http://www.sandwell.gov.uk/info/200202/performance_and_spending/3233/government_procurement_cards,22-Apr-2022,Total ASCHWB,ADOBE STOCK,Total Adult Social Care,19.99,COMPUTER SOFTWARE STORES,2022-23Q1_PC401
Sandwell Metropolitan Borough Council,http://www.sandwell.gov.uk/info/200202/performance_and_spending/3233/government_procurement_cards,22-Apr-2022,Total ASCHWB,AMZNMKTPLACE AMAZON.CO,Total Adult Social Care,-38.89,MISCELLANEOUS AND SPECIALTY RETAIL STORES,2022-23Q1_PC402
Sandwell Metropolitan Borough Council,http://www.sandwell.gov.uk/info/200202/performance_and_spending/3233/government_procurement_cards,22-Apr-2022,Total Borough Economy,Vistaprint,Total Adult Social Care,110.92,BUSINESS SERVICES-NOT ELSEWHERE CLASSIFIED,2022-23Q1_PC403
Sandwell Metropolitan Borough Council,http://www.sandwell.gov.uk/info/200202/performance_and_spending/3233/government_procurement_cards,22-Apr-2022,Regeneration & Growth,WWW.CSCS.UK.COM,Regeneration And The Economy,30,"ORGANIZATIONS, MEMBERSHIP-NOT ELSEWHERE CLASSIFIED",2022-23Q1_PC404
Sandwell Metropolitan Borough Council,http://www.sandwell.gov.uk/info/200202/performance_and_spending/3233/government_procurement_cards,22-Apr-2022,Total Borough Economy,PADDLE.NET  SNAPWIDGET,Total Adult Social Care,4.51,DIGITAL GOODS SOFTWARE APPLICATIONS,2022-23Q1_PC405
Sandwell Metropolitan Borough Council,http://www.sandwell.gov.uk/info/200202/performance_and_spending/3233/government_procurement_cards,22-Apr-2022,Childrens Services,Amazon.co.uk 2P5FS6LU4,Childrens Services,11.35,DIRECT MARKETING-OTHER DIRECT MARKETERS/NOT ELSEW.,2022-23Q1_PC406
Sandwell Metropolitan Borough Council,http://www.sandwell.gov.uk/info/200202/performance_and_spending/3233/government_procurement_cards,22-Apr-2022,Total ASCHWB,COMPLETE CARE SHOP,Total Adult Social Care,124.75,DENTAL/LAB/MED/OPHTHALMIC HOSP EQUIP & SUPPLIES,2022-23Q1_PC407
Sandwell Metropolitan Borough Council,http://www.sandwell.gov.uk/info/200202/performance_and_spending/3233/government_procurement_cards,22-Apr-2022,Total ASCHWB,AMZNMktplace,Total Adult Social Care,79.03,MISCELLANEOUS AND SPECIALTY RETAIL STORES,2022-23Q1_PC408
Sandwell Metropolitan Borough Council,http://www.sandwell.gov.uk/info/200202/performance_and_spending/3233/government_procurement_cards,22-Apr-2022,Regeneration & Growth,AMZNMktplace,Regeneration And The Economy,122.31,MISCELLANEOUS AND SPECIALTY RETAIL STORES,2022-23Q1_PC409
Sandwell Metropolitan Borough Council,http://www.sandwell.gov.uk/info/200202/performance_and_spending/3233/government_procurement_cards,22-Apr-2022,Total Borough Economy,TSOHOST,Total Adult Social Care,769.89,DIRECT MARKETING-CONTINUITY/SUBSCRIPTION MERCHANTS,2022-23Q1_PC410
Sandwell Metropolitan Borough Council,http://www.sandwell.gov.uk/info/200202/performance_and_spending/3233/government_procurement_cards,22-Apr-2022,Total Borough Economy,Amazon.co.uk 2P0L63LR4,Total Adult Social Care,9.95,DIRECT MARKETING-OTHER DIRECT MARKETERS/NOT ELSEW.,2022-23Q1_PC411
Sandwell Metropolitan Borough Council,http://www.sandwell.gov.uk/info/200202/performance_and_spending/3233/government_procurement_cards,22-Apr-2022,Total Borough Economy,AMZNMKTPLACE AMAZON.CO,Total Adult Social Care,24.96,MISCELLANEOUS AND SPECIALTY RETAIL STORES,2022-23Q1_PC412
Sandwell Metropolitan Borough Council,http://www.sandwell.gov.uk/info/200202/performance_and_spending/3233/government_procurement_cards,22-Apr-2022,Total Housing Revenue Account,DATATOOLS.CO.UK,Total Housing Revenue Account,210,HARDWARE STORES,2022-23Q1_PC413
Sandwell Metropolitan Borough Council,http://www.sandwell.gov.uk/info/200202/performance_and_spending/3233/government_procurement_cards,22-Apr-2022,Childrens Services,Perico,Childrens Services,108.39,FAST FOOD RESTAURANTS,2022-23Q1_PC414
Sandwell Metropolitan Borough Council,http://www.sandwell.gov.uk/info/200202/performance_and_spending/3233/government_procurement_cards,22-Apr-2022,Director of Law & Governance,THOMSON REUTERS UK LTD,Assistant Chief Executive (Excl SIU),135,PROFESSIONAL SERVICES-NOT ELSEWHERE CLASSIFIED,2022-23Q1_PC415
Sandwell Metropolitan Borough Council,http://www.sandwell.gov.uk/info/200202/performance_and_spending/3233/government_procurement_cards,22-Apr-2022,Childrens Services,WWW.OFFICETEAMCONNECT.,Childrens Services,242.65,STATIONERY/OFFICE SUPPLIES/PRINTING & WRITING PAP.,2022-23Q1_PC416
Sandwell Metropolitan Borough Council,http://www.sandwell.gov.uk/info/200202/performance_and_spending/3233/government_procurement_cards,22-Apr-2022,Housing & Assets Total,Amazon Prime 2P9UV2F64,Corporate Management,7.99,DIRECT MARKETING-CONTINUITY/SUBSCRIPTION MERCHANTS,2022-23Q1_PC417
Sandwell Metropolitan Borough Council,http://www.sandwell.gov.uk/info/200202/performance_and_spending/3233/government_procurement_cards,22-Apr-2022,Childrens Services,TESCO SUBSCRIPTION,Childrens Services,6.66,DIRECT MARKETING-CONTINUITY/SUBSCRIPTION MERCHANTS,2022-23Q1_PC418
Sandwell Metropolitan Borough Council,http://www.sandwell.gov.uk/info/200202/performance_and_spending/3233/government_procurement_cards,22-Apr-2022,Total Borough Economy,CANVA  I03397-17677646,Total Adult Social Care,9.16,PHOTOGRAPHIC STUDIOS,2022-23Q1_PC419
Sandwell Metropolitan Borough Council,http://www.sandwell.gov.uk/info/200202/performance_and_spending/3233/government_procurement_cards,25-Apr-2022,Corporate Management,FS  JotForm,Corporate Management,18.28,DIGITAL GOODS SOFTWARE APPLICATIONS,2022-23Q1_PC420
Sandwell Metropolitan Borough Council,http://www.sandwell.gov.uk/info/200202/performance_and_spending/3233/government_procurement_cards,25-Apr-2022,Housing & Assets Total,IBIS STYLES HOTEL,Corporate Management,663,"LODGING-HOTELS,MOTELS,RESORTS-NOT CLASSIFIED",2022-23Q1_PC421
Sandwell Metropolitan Borough Council,http://www.sandwell.gov.uk/info/200202/performance_and_spending/3233/government_procurement_cards,25-Apr-2022,Housing & Assets Total,TRAVELODGE,Corporate Management,298.81,TRAVELODGE,2022-23Q1_PC422
Sandwell Metropolitan Borough Council,http://www.sandwell.gov.uk/info/200202/performance_and_spending/3233/government_procurement_cards,25-Apr-2022,Total ASCHWB,AMZNMktplace,Total Adult Social Care,153.93,MISCELLANEOUS AND SPECIALTY RETAIL STORES,2022-23Q1_PC423
Sandwell Metropolitan Borough Council,http://www.sandwell.gov.uk/info/200202/performance_and_spending/3233/government_procurement_cards,25-Apr-2022,Total Borough Economy,WWW.RANDALLSFIREWOOD,Total Adult Social Care,159,"FIREPLACE, FIREPLACE SCREENS & ACCESSORIES STORES",2022-23Q1_PC424
Sandwell Metropolitan Borough Council,http://www.sandwell.gov.uk/info/200202/performance_and_spending/3233/government_procurement_cards,25-Apr-2022,Total ASCHWB,AMZNMktplace,Total Adult Social Care,8.32,MISCELLANEOUS AND SPECIALTY RETAIL STORES,2022-23Q1_PC425
Sandwell Metropolitan Borough Council,http://www.sandwell.gov.uk/info/200202/performance_and_spending/3233/government_procurement_cards,25-Apr-2022,Total ASCHWB,ARGOS OLDBURY,Total Adult Social Care,33.33,DISCOUNT STORES,2022-23Q1_PC426
Sandwell Metropolitan Borough Council,http://www.sandwell.gov.uk/info/200202/performance_and_spending/3233/government_procurement_cards,25-Apr-2022,Total ASCHWB,WWW.SCREWFIX.COM,Total Adult Social Care,37.49,"BUILDING MATERIALS, LUMBER STORES",2022-23Q1_PC427
Sandwell Metropolitan Borough Council,http://www.sandwell.gov.uk/info/200202/performance_and_spending/3233/government_procurement_cards,25-Apr-2022,Regeneration & Growth,AMZNMKTPLACE AMAZON.CO,Regeneration And The Economy,19.82,MISCELLANEOUS AND SPECIALTY RETAIL STORES,2022-23Q1_PC428
Sandwell Metropolitan Borough Council,http://www.sandwell.gov.uk/info/200202/performance_and_spending/3233/government_procurement_cards,25-Apr-2022,Childrens Services,UBER    EATS,Childrens Services,71.17,"EATING PLACES, RESTAURANTS",2022-23Q1_PC429
Sandwell Metropolitan Borough Council,http://www.sandwell.gov.uk/info/200202/performance_and_spending/3233/government_procurement_cards,25-Apr-2022,Director of Law & Governance,SAINSBURYS,Assistant Chief Executive (Excl SIU),6.01,"GROCERY STORES, SUPERMARKETS",2022-23Q1_PC430
Sandwell Metropolitan Borough Council,http://www.sandwell.gov.uk/info/200202/performance_and_spending/3233/government_procurement_cards,25-Apr-2022,Total Borough Economy,TIMPSON LTD,Total Adult Social Care,20,MISCELLANEOUS AND SPECIALTY RETAIL STORES,2022-23Q1_PC431
Sandwell Metropolitan Borough Council,http://www.sandwell.gov.uk/info/200202/performance_and_spending/3233/government_procurement_cards,25-Apr-2022,Total Borough Economy,VIKING UK,Total Adult Social Care,65.85,STATIONERY/OFFICE SUPPLIES/PRINTING & WRITING PAP.,2022-23Q1_PC432
Sandwell Metropolitan Borough Council,http://www.sandwell.gov.uk/info/200202/performance_and_spending/3233/government_procurement_cards,25-Apr-2022,Total Borough Economy,VIKING UK,Total Adult Social Care,67.35,STATIONERY/OFFICE SUPPLIES/PRINTING & WRITING PAP.,2022-23Q1_PC433
Sandwell Metropolitan Borough Council,http://www.sandwell.gov.uk/info/200202/performance_and_spending/3233/government_procurement_cards,25-Apr-2022,Childrens Services,AMZNMktplace,Childrens Services,29.99,MISCELLANEOUS AND SPECIALTY RETAIL STORES,2022-23Q1_PC434
Sandwell Metropolitan Borough Council,http://www.sandwell.gov.uk/info/200202/performance_and_spending/3233/government_procurement_cards,26-Apr-2022,Childrens Services,EB  YPQI PQA BASICS-ON,Childrens Services,-25,BUSINESS SERVICES-NOT ELSEWHERE CLASSIFIED,2022-23Q1_PC435
Sandwell Metropolitan Borough Council,http://www.sandwell.gov.uk/info/200202/performance_and_spending/3233/government_procurement_cards,26-Apr-2022,Childrens Services,EB  YPQI PQA BASICS-ON,Childrens Services,-25,BUSINESS SERVICES-NOT ELSEWHERE CLASSIFIED,2022-23Q1_PC436
Sandwell Metropolitan Borough Council,http://www.sandwell.gov.uk/info/200202/performance_and_spending/3233/government_procurement_cards,26-Apr-2022,Total ASCHWB,Amazon.co.uk 2P45N4X94,Total Adult Social Care,20.89,DIRECT MARKETING-OTHER DIRECT MARKETERS/NOT ELSEW.,2022-23Q1_PC437
Sandwell Metropolitan Borough Council,http://www.sandwell.gov.uk/info/200202/performance_and_spending/3233/government_procurement_cards,26-Apr-2022,Total ASCHWB,AMZNMktplace,Total Adult Social Care,54.94,MISCELLANEOUS AND SPECIALTY RETAIL STORES,2022-23Q1_PC438
Sandwell Metropolitan Borough Council,http://www.sandwell.gov.uk/info/200202/performance_and_spending/3233/government_procurement_cards,26-Apr-2022,Total ASCHWB,AMZNMktplace,Total Adult Social Care,26.97,MISCELLANEOUS AND SPECIALTY RETAIL STORES,2022-23Q1_PC439
Sandwell Metropolitan Borough Council,http://www.sandwell.gov.uk/info/200202/performance_and_spending/3233/government_procurement_cards,26-Apr-2022,Regeneration & Growth,NYA Vendaid,Regeneration And The Economy,1.5,"MISC FOOD STORE-CONVENIENCE,MRKT,SPLTY,VENDNG MACS",2022-23Q1_PC440
Sandwell Metropolitan Borough Council,http://www.sandwell.gov.uk/info/200202/performance_and_spending/3233/government_procurement_cards,26-Apr-2022,Total Borough Economy,AMZNFreeTime,Total Adult Social Care,3.99,RECORD SHOPS,2022-23Q1_PC441
Sandwell Metropolitan Borough Council,http://www.sandwell.gov.uk/info/200202/performance_and_spending/3233/government_procurement_cards,26-Apr-2022,Total Borough Economy,PRINTED.COM,Total Adult Social Care,34.02,MISCELLANEOUS PUBLISHING AND PRINTING,2022-23Q1_PC442
Sandwell Metropolitan Borough Council,http://www.sandwell.gov.uk/info/200202/performance_and_spending/3233/government_procurement_cards,26-Apr-2022,Total Borough Economy,Vistaprint,Total Adult Social Care,166.2,BUSINESS SERVICES-NOT ELSEWHERE CLASSIFIED,2022-23Q1_PC443
Sandwell Metropolitan Borough Council,http://www.sandwell.gov.uk/info/200202/performance_and_spending/3233/government_procurement_cards,26-Apr-2022,Regeneration & Growth,WWW.CERTSURE.COM,Regeneration And The Economy,450,MISCELLANEOUS AND SPECIALTY RETAIL STORES,2022-23Q1_PC444
Sandwell Metropolitan Borough Council,http://www.sandwell.gov.uk/info/200202/performance_and_spending/3233/government_procurement_cards,26-Apr-2022,Housing & Assets Total,TRAVELODGE,Corporate Management,392.62,TRAVELODGE,2022-23Q1_PC445
Sandwell Metropolitan Borough Council,http://www.sandwell.gov.uk/info/200202/performance_and_spending/3233/government_procurement_cards,26-Apr-2022,Total ASCHWB,AMZNMktplace,Total Adult Social Care,14.98,MISCELLANEOUS AND SPECIALTY RETAIL STORES,2022-23Q1_PC446
Sandwell Metropolitan Borough Council,http://www.sandwell.gov.uk/info/200202/performance_and_spending/3233/government_procurement_cards,26-Apr-2022,Childrens Services,ANIMOTO INC,Childrens Services,160,DIRECT MARKETING-CONTINUITY/SUBSCRIPTION MERCHANTS,2022-23Q1_PC447
Sandwell Metropolitan Borough Council,http://www.sandwell.gov.uk/info/200202/performance_and_spending/3233/government_procurement_cards,26-Apr-2022,Total ASCHWB,PARTYRAMA,Total Adult Social Care,34.61,"GAME, TOY, AND HOBBY SHOPS",2022-23Q1_PC448
Sandwell Metropolitan Borough Council,http://www.sandwell.gov.uk/info/200202/performance_and_spending/3233/government_procurement_cards,26-Apr-2022,Childrens Services,ASDA GROCERIES ONLINE,Childrens Services,149.05,"GROCERY STORES, SUPERMARKETS",2022-23Q1_PC449
Sandwell Metropolitan Borough Council,http://www.sandwell.gov.uk/info/200202/performance_and_spending/3233/government_procurement_cards,26-Apr-2022,Childrens Services,ASDA GROCERIES ONLINE,Childrens Services,-0.57,"GROCERY STORES, SUPERMARKETS",2022-23Q1_PC450
Sandwell Metropolitan Borough Council,http://www.sandwell.gov.uk/info/200202/performance_and_spending/3233/government_procurement_cards,26-Apr-2022,Childrens Services,ASDA GROCERIES ONLINE,Childrens Services,202.48,"GROCERY STORES, SUPERMARKETS",2022-23Q1_PC451
Sandwell Metropolitan Borough Council,http://www.sandwell.gov.uk/info/200202/performance_and_spending/3233/government_procurement_cards,26-Apr-2022,Childrens Services,STAFFORDSHIRE FRUITS,Childrens Services,8,MISCELLANEOUS AND SPECIALTY RETAIL STORES,2022-23Q1_PC452
Sandwell Metropolitan Borough Council,http://www.sandwell.gov.uk/info/200202/performance_and_spending/3233/government_procurement_cards,26-Apr-2022,Housing & Assets Total,ASDA STORES,Corporate Management,17.03,"GROCERY STORES, SUPERMARKETS",2022-23Q1_PC453
Sandwell Metropolitan Borough Council,http://www.sandwell.gov.uk/info/200202/performance_and_spending/3233/government_procurement_cards,26-Apr-2022,Total ASCHWB,THE TOWEL SHOP,Total Adult Social Care,117.4,ACCESSORY AND APPAREL STORES-MISCELLANEOUS,2022-23Q1_PC454
Sandwell Metropolitan Borough Council,http://www.sandwell.gov.uk/info/200202/performance_and_spending/3233/government_procurement_cards,26-Apr-2022,Total ASCHWB,SAFETYSUPPL,Total Adult Social Care,28.65,DEPARTMENT STORES,2022-23Q1_PC455
Sandwell Metropolitan Borough Council,http://www.sandwell.gov.uk/info/200202/performance_and_spending/3233/government_procurement_cards,26-Apr-2022,Total ASCHWB,LINENS LTD,Total Adult Social Care,124,MISCELLANEOUS HOUSE FURNISHING SPECIALTY SHOPS,2022-23Q1_PC456
Sandwell Metropolitan Borough Council,http://www.sandwell.gov.uk/info/200202/performance_and_spending/3233/government_procurement_cards,26-Apr-2022,Total ASCHWB,Curtains Direct 2U,Total Adult Social Care,99.2,"DRAPERY, UPOLSTERY, AND WINDOW COVERINGS STORES",2022-23Q1_PC457
Sandwell Metropolitan Borough Council,http://www.sandwell.gov.uk/info/200202/performance_and_spending/3233/government_procurement_cards,26-Apr-2022,Housing & Assets Total,AMZNMktplace,Corporate Management,88.9,MISCELLANEOUS AND SPECIALTY RETAIL STORES,2022-23Q1_PC458
Sandwell Metropolitan Borough Council,http://www.sandwell.gov.uk/info/200202/performance_and_spending/3233/government_procurement_cards,26-Apr-2022,Childrens Services,BOOKWHEN- SOFTWARE SUB,Childrens Services,190,COMPUTER SOFTWARE STORES,2022-23Q1_PC459
Sandwell Metropolitan Borough Council,http://www.sandwell.gov.uk/info/200202/performance_and_spending/3233/government_procurement_cards,26-Apr-2022,Total ASCHWB,POSTURITE LTD,Total Adult Social Care,159.14,MISCELLANEOUS HOUSE FURNISHING SPECIALTY SHOPS,2022-23Q1_PC460
Sandwell Metropolitan Borough Council,http://www.sandwell.gov.uk/info/200202/performance_and_spending/3233/government_procurement_cards,26-Apr-2022,Total ASCHWB,AMZNMktplace,Total Adult Social Care,79.17,MISCELLANEOUS AND SPECIALTY RETAIL STORES,2022-23Q1_PC461
Sandwell Metropolitan Borough Council,http://www.sandwell.gov.uk/info/200202/performance_and_spending/3233/government_procurement_cards,26-Apr-2022,Total ASCHWB,ONEDIRECT UK,Total Adult Social Care,68.92,DIGITAL GOODS MULTI CATEGORY,2022-23Q1_PC462
Sandwell Metropolitan Borough Council,http://www.sandwell.gov.uk/info/200202/performance_and_spending/3233/government_procurement_cards,26-Apr-2022,Total Borough Economy,AMZNMktplace,Total Adult Social Care,40.8,MISCELLANEOUS AND SPECIALTY RETAIL STORES,2022-23Q1_PC463
Sandwell Metropolitan Borough Council,http://www.sandwell.gov.uk/info/200202/performance_and_spending/3233/government_procurement_cards,26-Apr-2022,Regeneration & Growth,TVLICENSING.CO.UK,Regeneration And The Economy,159,"CONSULTING, MANAGEMENT, AND PUBLIC RELATIONS SVCS",2022-23Q1_PC464
Sandwell Metropolitan Borough Council,http://www.sandwell.gov.uk/info/200202/performance_and_spending/3233/government_procurement_cards,27-Apr-2022,FINANCE (Inc SIU),SAINSBURYS S/MKTS,Assistant Chief Executive (Excl SIU),16.75,"GROCERY STORES, SUPERMARKETS",2022-23Q1_PC465
Sandwell Metropolitan Borough Council,http://www.sandwell.gov.uk/info/200202/performance_and_spending/3233/government_procurement_cards,27-Apr-2022,FINANCE (Inc SIU),SAINSBURYS S/MKTS,Assistant Chief Executive (Excl SIU),12.7,"GROCERY STORES, SUPERMARKETS",2022-23Q1_PC466
Sandwell Metropolitan Borough Council,http://www.sandwell.gov.uk/info/200202/performance_and_spending/3233/government_procurement_cards,27-Apr-2022,FINANCE (Inc SIU),ROBINSON BAKERY,Assistant Chief Executive (Excl SIU),23.5,BAKERIES,2022-23Q1_PC467
Sandwell Metropolitan Borough Council,http://www.sandwell.gov.uk/info/200202/performance_and_spending/3233/government_procurement_cards,27-Apr-2022,Director of Law & Governance,AMZNMktplace,Assistant Chief Executive (Excl SIU),76.64,MISCELLANEOUS AND SPECIALTY RETAIL STORES,2022-23Q1_PC468
Sandwell Metropolitan Borough Council,http://www.sandwell.gov.uk/info/200202/performance_and_spending/3233/government_procurement_cards,27-Apr-2022,Childrens Services,WWW.CGPBOOKS.CO.UK,Childrens Services,50.8,MISCELLANEOUS AND SPECIALTY RETAIL STORES,2022-23Q1_PC469
Sandwell Metropolitan Borough Council,http://www.sandwell.gov.uk/info/200202/performance_and_spending/3233/government_procurement_cards,27-Apr-2022,Childrens Services,WM MORRISONS STORE,Childrens Services,7.74,"GROCERY STORES, SUPERMARKETS",2022-23Q1_PC470
Sandwell Metropolitan Borough Council,http://www.sandwell.gov.uk/info/200202/performance_and_spending/3233/government_procurement_cards,27-Apr-2022,Childrens Services,TESCO STORES 6481,Childrens Services,7.7,"GROCERY STORES, SUPERMARKETS",2022-23Q1_PC471
Sandwell Metropolitan Borough Council,http://www.sandwell.gov.uk/info/200202/performance_and_spending/3233/government_procurement_cards,27-Apr-2022,Director of Law & Governance,CARTRIDGEPEOPLE.COM,Assistant Chief Executive (Excl SIU),138.9,STATIONERY/OFFICE SUPPLIES/PRINTING & WRITING PAP.,2022-23Q1_PC472
Sandwell Metropolitan Borough Council,http://www.sandwell.gov.uk/info/200202/performance_and_spending/3233/government_procurement_cards,27-Apr-2022,Total ASCHWB,A TO Z TYRES,Total Adult Social Care,208.33,AUTOMOTIVE SERVICE SHOPS,2022-23Q1_PC473
Sandwell Metropolitan Borough Council,http://www.sandwell.gov.uk/info/200202/performance_and_spending/3233/government_procurement_cards,27-Apr-2022,Total Housing Revenue Account,WESTERN POWER DISTRIBU,Total Housing Revenue Account,636.93,"UTLTS-ELCTRC, GAS, HEATING OIL, SANITARY, WATER",2022-23Q1_PC474
Sandwell Metropolitan Borough Council,http://www.sandwell.gov.uk/info/200202/performance_and_spending/3233/government_procurement_cards,27-Apr-2022,Director of Law & Governance,AMZNMKTPLACE AMAZON.CO,Assistant Chief Executive (Excl SIU),-86.36,MISCELLANEOUS AND SPECIALTY RETAIL STORES,2022-23Q1_PC475
Sandwell Metropolitan Borough Council,http://www.sandwell.gov.uk/info/200202/performance_and_spending/3233/government_procurement_cards,27-Apr-2022,Regeneration & Growth,AMZNMKTPLACE AMAZON.CO,Regeneration And The Economy,64.16,MISCELLANEOUS AND SPECIALTY RETAIL STORES,2022-23Q1_PC476
Sandwell Metropolitan Borough Council,http://www.sandwell.gov.uk/info/200202/performance_and_spending/3233/government_procurement_cards,27-Apr-2022,Total Borough Economy,ASDA STORE,Total Adult Social Care,15,"GROCERY STORES, SUPERMARKETS",2022-23Q1_PC477
Sandwell Metropolitan Borough Council,http://www.sandwell.gov.uk/info/200202/performance_and_spending/3233/government_procurement_cards,27-Apr-2022,Total Borough Economy,Amazon.co.uk 2P84255P4,Total Adult Social Care,16.89,DIRECT MARKETING-OTHER DIRECT MARKETERS/NOT ELSEW.,2022-23Q1_PC478
Sandwell Metropolitan Borough Council,http://www.sandwell.gov.uk/info/200202/performance_and_spending/3233/government_procurement_cards,27-Apr-2022,Total Borough Economy,AMZNMktplace,Total Adult Social Care,39.46,MISCELLANEOUS AND SPECIALTY RETAIL STORES,2022-23Q1_PC479
Sandwell Metropolitan Borough Council,http://www.sandwell.gov.uk/info/200202/performance_and_spending/3233/government_procurement_cards,27-Apr-2022,Total Borough Economy,Amazon.co.uk 2P0RT05W4,Total Adult Social Care,81.49,DIRECT MARKETING-OTHER DIRECT MARKETERS/NOT ELSEW.,2022-23Q1_PC480
Sandwell Metropolitan Borough Council,http://www.sandwell.gov.uk/info/200202/performance_and_spending/3233/government_procurement_cards,27-Apr-2022,Total Borough Economy,Amazon.co.uk 2P2TZ35U4,Total Adult Social Care,57.54,DIRECT MARKETING-OTHER DIRECT MARKETERS/NOT ELSEW.,2022-23Q1_PC481
Sandwell Metropolitan Borough Council,http://www.sandwell.gov.uk/info/200202/performance_and_spending/3233/government_procurement_cards,27-Apr-2022,Total Borough Economy,Amazon.co.uk 2P1XR55U4,Total Adult Social Care,32.38,DIRECT MARKETING-OTHER DIRECT MARKETERS/NOT ELSEW.,2022-23Q1_PC482
Sandwell Metropolitan Borough Council,http://www.sandwell.gov.uk/info/200202/performance_and_spending/3233/government_procurement_cards,27-Apr-2022,Total Borough Economy,AMZNMktplace,Total Adult Social Care,75.77,MISCELLANEOUS AND SPECIALTY RETAIL STORES,2022-23Q1_PC483
Sandwell Metropolitan Borough Council,http://www.sandwell.gov.uk/info/200202/performance_and_spending/3233/government_procurement_cards,27-Apr-2022,Total Borough Economy,AMZNMktplace,Total Adult Social Care,16.65,MISCELLANEOUS AND SPECIALTY RETAIL STORES,2022-23Q1_PC484
Sandwell Metropolitan Borough Council,http://www.sandwell.gov.uk/info/200202/performance_and_spending/3233/government_procurement_cards,27-Apr-2022,Childrens Services,TESCO STORES 2770,Childrens Services,130.59,"GROCERY STORES, SUPERMARKETS",2022-23Q1_PC485
Sandwell Metropolitan Borough Council,http://www.sandwell.gov.uk/info/200202/performance_and_spending/3233/government_procurement_cards,27-Apr-2022,Housing & Assets Total,ASDA STORES,Corporate Management,37.51,"GROCERY STORES, SUPERMARKETS",2022-23Q1_PC486
Sandwell Metropolitan Borough Council,http://www.sandwell.gov.uk/info/200202/performance_and_spending/3233/government_procurement_cards,27-Apr-2022,Total ASCHWB,R & D MILLER LIMITED,Total Adult Social Care,208.33,MISCELLANEOUS PUBLISHING AND PRINTING,2022-23Q1_PC487
Sandwell Metropolitan Borough Council,http://www.sandwell.gov.uk/info/200202/performance_and_spending/3233/government_procurement_cards,27-Apr-2022,Total ASCHWB,R & D MILLER LIMITED,Total Adult Social Care,208.33,MISCELLANEOUS PUBLISHING AND PRINTING,2022-23Q1_PC488
Sandwell Metropolitan Borough Council,http://www.sandwell.gov.uk/info/200202/performance_and_spending/3233/government_procurement_cards,27-Apr-2022,Total ASCHWB,R & D MILLER LIMITED,Total Adult Social Care,194.33,MISCELLANEOUS PUBLISHING AND PRINTING,2022-23Q1_PC489
Sandwell Metropolitan Borough Council,http://www.sandwell.gov.uk/info/200202/performance_and_spending/3233/government_procurement_cards,27-Apr-2022,Total ASCHWB,WWW.JOHNLEWIS.COM,Total Adult Social Care,58.33,DEPARTMENT STORES,2022-23Q1_PC490
Sandwell Metropolitan Borough Council,http://www.sandwell.gov.uk/info/200202/performance_and_spending/3233/government_procurement_cards,27-Apr-2022,Childrens Services,ROYAL MAIL GROUP LTD,Childrens Services,22.8,POSTAL SERVICES-GOVERNMENT ONLY,2022-23Q1_PC491
Sandwell Metropolitan Borough Council,http://www.sandwell.gov.uk/info/200202/performance_and_spending/3233/government_procurement_cards,27-Apr-2022,Total ASCHWB,AMZNMktplace,Total Adult Social Care,33.32,MISCELLANEOUS AND SPECIALTY RETAIL STORES,2022-23Q1_PC492
Sandwell Metropolitan Borough Council,http://www.sandwell.gov.uk/info/200202/performance_and_spending/3233/government_procurement_cards,27-Apr-2022,Total Borough Economy,Amazon Prime 2P25G4VO4,Total Adult Social Care,7.99,DIRECT MARKETING-CONTINUITY/SUBSCRIPTION MERCHANTS,2022-23Q1_PC493
Sandwell Metropolitan Borough Council,http://www.sandwell.gov.uk/info/200202/performance_and_spending/3233/government_procurement_cards,28-Apr-2022,Childrens Services,ASDA GROCERIES ONLINE,Childrens Services,-1.5,"GROCERY STORES, SUPERMARKETS",2022-23Q1_PC494
Sandwell Metropolitan Borough Council,http://www.sandwell.gov.uk/info/200202/performance_and_spending/3233/government_procurement_cards,28-Apr-2022,Childrens Services,ASDA GROCERIES ONLINE,Childrens Services,69.65,"GROCERY STORES, SUPERMARKETS",2022-23Q1_PC495
Sandwell Metropolitan Borough Council,http://www.sandwell.gov.uk/info/200202/performance_and_spending/3233/government_procurement_cards,28-Apr-2022,Childrens Services,YORKSHIRE PURCHASING O,Childrens Services,5.94,STATIONERY/OFFICE SUPPLIES/PRINTING & WRITING PAP.,2022-23Q1_PC496
Sandwell Metropolitan Borough Council,http://www.sandwell.gov.uk/info/200202/performance_and_spending/3233/government_procurement_cards,28-Apr-2022,Total Business Strategy & Change,AMZNMKTPLACE AMAZON.CO,Total Adult Social Care,154.9,MISCELLANEOUS AND SPECIALTY RETAIL STORES,2022-23Q1_PC497
Sandwell Metropolitan Borough Council,http://www.sandwell.gov.uk/info/200202/performance_and_spending/3233/government_procurement_cards,28-Apr-2022,Total ASCHWB,AMZNMKTPLACE AMAZON.CO,Total Adult Social Care,20.98,MISCELLANEOUS AND SPECIALTY RETAIL STORES,2022-23Q1_PC498
Sandwell Metropolitan Borough Council,http://www.sandwell.gov.uk/info/200202/performance_and_spending/3233/government_procurement_cards,28-Apr-2022,Total Borough Economy,AMZNMktplace,Total Adult Social Care,25.9,MISCELLANEOUS AND SPECIALTY RETAIL STORES,2022-23Q1_PC499
Sandwell Metropolitan Borough Council,http://www.sandwell.gov.uk/info/200202/performance_and_spending/3233/government_procurement_cards,28-Apr-2022,Total Public Health,AMZNMKTPLACE AMAZON.CO,Public Health,201.87,MISCELLANEOUS AND SPECIALTY RETAIL STORES,2022-23Q1_PC500
Sandwell Metropolitan Borough Council,http://www.sandwell.gov.uk/info/200202/performance_and_spending/3233/government_procurement_cards,28-Apr-2022,Total ASCHWB,DVSA,Total Adult Social Care,21.67,GOVERNMENT SERVICES-NOT ELSEWHERE CLASSIFIED,2022-23Q1_PC501
Sandwell Metropolitan Borough Council,http://www.sandwell.gov.uk/info/200202/performance_and_spending/3233/government_procurement_cards,28-Apr-2022,Total ASCHWB,DVSA,Total Adult Social Care,9.17,GOVERNMENT SERVICES-NOT ELSEWHERE CLASSIFIED,2022-23Q1_PC502
Sandwell Metropolitan Borough Council,http://www.sandwell.gov.uk/info/200202/performance_and_spending/3233/government_procurement_cards,28-Apr-2022,Housing & Assets Total,AMZNMKTPLACE AMAZON.CO,Corporate Management,8.32,MISCELLANEOUS AND SPECIALTY RETAIL STORES,2022-23Q1_PC503
Sandwell Metropolitan Borough Council,http://www.sandwell.gov.uk/info/200202/performance_and_spending/3233/government_procurement_cards,28-Apr-2022,Total ASCHWB,AMZNMKTPLACE AMAZON.CO,Total Adult Social Care,41.66,MISCELLANEOUS AND SPECIALTY RETAIL STORES,2022-23Q1_PC504
Sandwell Metropolitan Borough Council,http://www.sandwell.gov.uk/info/200202/performance_and_spending/3233/government_procurement_cards,28-Apr-2022,Total Borough Economy,Amazon.co.uk 2P6ZT16E4,Total Adult Social Care,10.02,DIRECT MARKETING-OTHER DIRECT MARKETERS/NOT ELSEW.,2022-23Q1_PC505
Sandwell Metropolitan Borough Council,http://www.sandwell.gov.uk/info/200202/performance_and_spending/3233/government_procurement_cards,28-Apr-2022,Total Borough Economy,AMZNMKTPLACE AMAZON.CO,Total Adult Social Care,12.49,MISCELLANEOUS AND SPECIALTY RETAIL STORES,2022-23Q1_PC506
Sandwell Metropolitan Borough Council,http://www.sandwell.gov.uk/info/200202/performance_and_spending/3233/government_procurement_cards,28-Apr-2022,Childrens Services,GOMPELS HEALTHCARE,Childrens Services,149.11,WHOLESALE CLUBS,2022-23Q1_PC507
Sandwell Metropolitan Borough Council,http://www.sandwell.gov.uk/info/200202/performance_and_spending/3233/government_procurement_cards,28-Apr-2022,Childrens Services,AMZNMktplace,Childrens Services,68.68,MISCELLANEOUS AND SPECIALTY RETAIL STORES,2022-23Q1_PC508
Sandwell Metropolitan Borough Council,http://www.sandwell.gov.uk/info/200202/performance_and_spending/3233/government_procurement_cards,28-Apr-2022,Childrens Services,Amazon Prime 2P94H9H14,Childrens Services,0.99,DIRECT MARKETING-CONTINUITY/SUBSCRIPTION MERCHANTS,2022-23Q1_PC509
Sandwell Metropolitan Borough Council,http://www.sandwell.gov.uk/info/200202/performance_and_spending/3233/government_procurement_cards,28-Apr-2022,Total Borough Economy,AMZNMKTPLACE AMAZON.CO,Total Adult Social Care,17.49,MISCELLANEOUS AND SPECIALTY RETAIL STORES,2022-23Q1_PC510
Sandwell Metropolitan Borough Council,http://www.sandwell.gov.uk/info/200202/performance_and_spending/3233/government_procurement_cards,28-Apr-2022,Total Borough Economy,AMZNMktplace,Total Adult Social Care,7.43,MISCELLANEOUS AND SPECIALTY RETAIL STORES,2022-23Q1_PC511
Sandwell Metropolitan Borough Council,http://www.sandwell.gov.uk/info/200202/performance_and_spending/3233/government_procurement_cards,28-Apr-2022,Total Housing Revenue Account,J K BUILDING SUPPLIES,Total Housing Revenue Account,731.25,CONSTRUCTION MATERIALS NOT ELSEWHERE CLASSIFIED,2022-23Q1_PC512
Sandwell Metropolitan Borough Council,http://www.sandwell.gov.uk/info/200202/performance_and_spending/3233/government_procurement_cards,28-Apr-2022,Total Housing Revenue Account,WWW.SCREWFIX.COM,Total Housing Revenue Account,332.48,"BUILDING MATERIALS, LUMBER STORES",2022-23Q1_PC513
Sandwell Metropolitan Borough Council,http://www.sandwell.gov.uk/info/200202/performance_and_spending/3233/government_procurement_cards,28-Apr-2022,Housing Revenue Account Capital,AMZNMktplace,#N/A,99.8,MISCELLANEOUS AND SPECIALTY RETAIL STORES,2022-23Q1_PC514
Sandwell Metropolitan Borough Council,http://www.sandwell.gov.uk/info/200202/performance_and_spending/3233/government_procurement_cards,28-Apr-2022,Childrens Services,SAINSBURYS S/MKTS,Childrens Services,44.75,"GROCERY STORES, SUPERMARKETS",2022-23Q1_PC515
Sandwell Metropolitan Borough Council,http://www.sandwell.gov.uk/info/200202/performance_and_spending/3233/government_procurement_cards,28-Apr-2022,Total ASCHWB,AMZNMKTPLACE AMAZON.CO,Total Adult Social Care,35.97,MISCELLANEOUS AND SPECIALTY RETAIL STORES,2022-23Q1_PC516
Sandwell Metropolitan Borough Council,http://www.sandwell.gov.uk/info/200202/performance_and_spending/3233/government_procurement_cards,28-Apr-2022,Childrens Services,WWW.OFFICETEAMCONNECT.,Childrens Services,237.07,STATIONERY/OFFICE SUPPLIES/PRINTING & WRITING PAP.,2022-23Q1_PC517
Sandwell Metropolitan Borough Council,http://www.sandwell.gov.uk/info/200202/performance_and_spending/3233/government_procurement_cards,28-Apr-2022,Total Borough Economy,Amazon Prime 2P06F9B24,Total Adult Social Care,0.82,DIRECT MARKETING-CONTINUITY/SUBSCRIPTION MERCHANTS,2022-23Q1_PC518
Sandwell Metropolitan Borough Council,http://www.sandwell.gov.uk/info/200202/performance_and_spending/3233/government_procurement_cards,29-Apr-2022,Corporate Management,AMZN Mktp UK 2P6H866L4,Corporate Management,144.48,BOOK STORES,2022-23Q1_PC519
Sandwell Metropolitan Borough Council,http://www.sandwell.gov.uk/info/200202/performance_and_spending/3233/government_procurement_cards,29-Apr-2022,Total Borough Economy,EUROFFICE.CO.UK,Total Adult Social Care,30.92,"OFFICE, SCHOOL SUPPLY, AND STATIONERY STORES",2022-23Q1_PC520
Sandwell Metropolitan Borough Council,http://www.sandwell.gov.uk/info/200202/performance_and_spending/3233/government_procurement_cards,29-Apr-2022,Director of Law & Governance,SAINSBURYS S/MKTS,Total Adult Social Care,8.15,"GROCERY STORES, SUPERMARKETS",2022-23Q1_PC521
Sandwell Metropolitan Borough Council,http://www.sandwell.gov.uk/info/200202/performance_and_spending/3233/government_procurement_cards,29-Apr-2022,FINANCE (Inc SIU),AMZNMktplace,Total Adult Social Care,4.24,MISCELLANEOUS AND SPECIALTY RETAIL STORES,2022-23Q1_PC522
Sandwell Metropolitan Borough Council,http://www.sandwell.gov.uk/info/200202/performance_and_spending/3233/government_procurement_cards,29-Apr-2022,Housing & Assets Total,WWW.OFFICETEAMCONNECT.,Corporate Management,30,STATIONERY/OFFICE SUPPLIES/PRINTING & WRITING PAP.,2022-23Q1_PC523
Sandwell Metropolitan Borough Council,http://www.sandwell.gov.uk/info/200202/performance_and_spending/3233/government_procurement_cards,29-Apr-2022,Housing & Assets Total,IBIS STYLES HOTEL,Corporate Management,98.5,"LODGING-HOTELS,MOTELS,RESORTS-NOT CLASSIFIED",2022-23Q1_PC524
Sandwell Metropolitan Borough Council,http://www.sandwell.gov.uk/info/200202/performance_and_spending/3233/government_procurement_cards,29-Apr-2022,Childrens Services,IKEA LTD SHOP ONLINE,Childrens Services,-65,"EQUIP, FURNITURE, HOME FURNSHNGS STRS (EXCPT APPL)",2022-23Q1_PC525
Sandwell Metropolitan Borough Council,http://www.sandwell.gov.uk/info/200202/performance_and_spending/3233/government_procurement_cards,29-Apr-2022,Director of Law & Governance,AMZNMKTPLACE AMAZON.CO,Assistant Chief Executive (Excl SIU),19.9,MISCELLANEOUS AND SPECIALTY RETAIL STORES,2022-23Q1_PC526
Sandwell Metropolitan Borough Council,http://www.sandwell.gov.uk/info/200202/performance_and_spending/3233/government_procurement_cards,29-Apr-2022,Total Public Health,STATIONERY OFFICE BOOK,Public Health,52.95,BOOK STORES,2022-23Q1_PC527
Sandwell Metropolitan Borough Council,http://www.sandwell.gov.uk/info/200202/performance_and_spending/3233/government_procurement_cards,29-Apr-2022,Total Borough Economy,Trainline,Total Adult Social Care,101.8,PASSENGER RAILWAYS,2022-23Q1_PC528
Sandwell Metropolitan Borough Council,http://www.sandwell.gov.uk/info/200202/performance_and_spending/3233/government_procurement_cards,29-Apr-2022,Total Borough Economy,AMZNMktplace,Total Adult Social Care,33.47,MISCELLANEOUS AND SPECIALTY RETAIL STORES,2022-23Q1_PC529
Sandwell Metropolitan Borough Council,http://www.sandwell.gov.uk/info/200202/performance_and_spending/3233/government_procurement_cards,29-Apr-2022,Total Borough Economy,WWW.OFFICETEAMCONNECT.,Total Adult Social Care,424,STATIONERY/OFFICE SUPPLIES/PRINTING & WRITING PAP.,2022-23Q1_PC530
Sandwell Metropolitan Borough Council,http://www.sandwell.gov.uk/info/200202/performance_and_spending/3233/government_procurement_cards,29-Apr-2022,Total Borough Economy,AMZNMktplace,Total Adult Social Care,10.82,MISCELLANEOUS AND SPECIALTY RETAIL STORES,2022-23Q1_PC531
Sandwell Metropolitan Borough Council,http://www.sandwell.gov.uk/info/200202/performance_and_spending/3233/government_procurement_cards,29-Apr-2022,Childrens Services,ALDI 9 772,Childrens Services,30.9,"GROCERY STORES, SUPERMARKETS",2022-23Q1_PC532
Sandwell Metropolitan Borough Council,http://www.sandwell.gov.uk/info/200202/performance_and_spending/3233/government_procurement_cards,29-Apr-2022,Total ASCHWB,AMZNMKTPLACE AMAZON.CO,Total Adult Social Care,24.37,MISCELLANEOUS AND SPECIALTY RETAIL STORES,2022-23Q1_PC533
Sandwell Metropolitan Borough Council,http://www.sandwell.gov.uk/info/200202/performance_and_spending/3233/government_procurement_cards,29-Apr-2022,Total ASCHWB,AMZ Puluo,Total Adult Social Care,-41.65,MISCELLANEOUS AND SPECIALTY RETAIL STORES,2022-23Q1_PC534
Sandwell Metropolitan Borough Council,http://www.sandwell.gov.uk/info/200202/performance_and_spending/3233/government_procurement_cards,29-Apr-2022,Total ASCHWB,Amazon.co.uk 2P23V1SN4,Total Adult Social Care,23.35,DIRECT MARKETING-OTHER DIRECT MARKETERS/NOT ELSEW.,2022-23Q1_PC535
Sandwell Metropolitan Borough Council,http://www.sandwell.gov.uk/info/200202/performance_and_spending/3233/government_procurement_cards,29-Apr-2022,Total Borough Economy,VIKING UK,Total Adult Social Care,51.39,STATIONERY/OFFICE SUPPLIES/PRINTING & WRITING PAP.,2022-23Q1_PC536
Sandwell Metropolitan Borough Council,http://www.sandwell.gov.uk/info/200202/performance_and_spending/3233/government_procurement_cards,29-Apr-2022,Total Business Strategy & Change,HMD Global Oy,Assistant Chief Executive (Excl SIU),124.99,TELECOMMUNICATION EQUIPMENT INCL TELEPHONE SALES,2022-23Q1_PC537
Sandwell Metropolitan Borough Council,http://www.sandwell.gov.uk/info/200202/performance_and_spending/3233/government_procurement_cards,29-Apr-2022,Childrens Services,POST OFFICE COUNTER,Childrens Services,95,POSTAL SERVICES-GOVERNMENT ONLY,2022-23Q1_PC538
Sandwell Metropolitan Borough Council,http://www.sandwell.gov.uk/info/200202/performance_and_spending/3233/government_procurement_cards,29-Apr-2022,Regeneration & Growth,123 REG LTD,Regeneration And The Economy,-55.97,COMPUTER NETWORK/INFORMATION SERVICES,2022-23Q1_PC539
Sandwell Metropolitan Borough Council,http://www.sandwell.gov.uk/info/200202/performance_and_spending/3233/government_procurement_cards,29-Apr-2022,Regeneration & Growth,123 REG LTD,Regeneration And The Economy,-55.97,COMPUTER NETWORK/INFORMATION SERVICES,2022-23Q1_PC540
Sandwell Metropolitan Borough Council,http://www.sandwell.gov.uk/info/200202/performance_and_spending/3233/government_procurement_cards,29-Apr-2022,Regeneration & Growth,123 REG LTD,Regeneration And The Economy,-55.97,COMPUTER NETWORK/INFORMATION SERVICES,2022-23Q1_PC541
Sandwell Metropolitan Borough Council,http://www.sandwell.gov.uk/info/200202/performance_and_spending/3233/government_procurement_cards,29-Apr-2022,FINANCE (Inc SIU),PAYPAL  MIDFRDFORUM MI,Assistant Chief Executive (Excl SIU),65,"ASSOCIATIONS-CIVIC, SOCIAL, AND FRATERNAL",2022-23Q1_PC542
Sandwell Metropolitan Borough Council,http://www.sandwell.gov.uk/info/200202/performance_and_spending/3233/government_procurement_cards,29-Apr-2022,Total Borough Economy,POST OFFICE COUNTER,Total Adult Social Care,158.33,POSTAL SERVICES-GOVERNMENT ONLY,2022-23Q1_PC543
Sandwell Metropolitan Borough Council,http://www.sandwell.gov.uk/info/200202/performance_and_spending/3233/government_procurement_cards,29-Apr-2022,Total Borough Economy,SECURITY INDUSTRY AUTH,Total Adult Social Care,158.33,GOVERNMENT SERVICES-NOT ELSEWHERE CLASSIFIED,2022-23Q1_PC544
Sandwell Metropolitan Borough Council,http://www.sandwell.gov.uk/info/200202/performance_and_spending/3233/government_procurement_cards,02-May-2022,Total Business Strategy & Change,CLOUD_01B69F-A012F3-CD,Assistant Chief Executive (Excl SIU),206.6,COMPUTER NETWORK/INFORMATION SERVICES,2022-23Q1_PC545
Sandwell Metropolitan Borough Council,http://www.sandwell.gov.uk/info/200202/performance_and_spending/3233/government_procurement_cards,02-May-2022,Childrens Services,COUNTY BATTERY SERVICE,Childrens Services,94,ELECTRICAL PARTS AND EQUIPMENT,2022-23Q1_PC546
Sandwell Metropolitan Borough Council,http://www.sandwell.gov.uk/info/200202/performance_and_spending/3233/government_procurement_cards,02-May-2022,Childrens Services,STAFFORDSHIRE FRUITS,Childrens Services,8,MISCELLANEOUS AND SPECIALTY RETAIL STORES,2022-23Q1_PC547
Sandwell Metropolitan Borough Council,http://www.sandwell.gov.uk/info/200202/performance_and_spending/3233/government_procurement_cards,02-May-2022,Childrens Services,WWW.SCREWFIX.COM,Childrens Services,7.99,"BUILDING MATERIALS, LUMBER STORES",2022-23Q1_PC548
Sandwell Metropolitan Borough Council,http://www.sandwell.gov.uk/info/200202/performance_and_spending/3233/government_procurement_cards,02-May-2022,Total ASCHWB,Amazon Prime 2P29C1KV4,Total Adult Social Care,6.66,DIRECT MARKETING-CONTINUITY/SUBSCRIPTION MERCHANTS,2022-23Q1_PC549
Sandwell Metropolitan Borough Council,http://www.sandwell.gov.uk/info/200202/performance_and_spending/3233/government_procurement_cards,02-May-2022,Regeneration & Growth,AMZNMktplace,Regeneration And The Economy,90.72,MISCELLANEOUS AND SPECIALTY RETAIL STORES,2022-23Q1_PC550
Sandwell Metropolitan Borough Council,http://www.sandwell.gov.uk/info/200202/performance_and_spending/3233/government_procurement_cards,02-May-2022,Total Borough Economy,Amazon Prime 2P8TI2974,Total Adult Social Care,6.66,DIRECT MARKETING-CONTINUITY/SUBSCRIPTION MERCHANTS,2022-23Q1_PC551
Sandwell Metropolitan Borough Council,http://www.sandwell.gov.uk/info/200202/performance_and_spending/3233/government_procurement_cards,02-May-2022,Total ASCHWB,AMZNMKTPLACE AMAZON.CO,Total Adult Social Care,5.27,MISCELLANEOUS AND SPECIALTY RETAIL STORES,2022-23Q1_PC552
Sandwell Metropolitan Borough Council,http://www.sandwell.gov.uk/info/200202/performance_and_spending/3233/government_procurement_cards,02-May-2022,Regeneration & Growth,SMS CONNECTIONS,Regeneration And The Economy,2161,"FUEL DEALERS-COAL, FUEL OIL, LIQ PETROLEUM, WOOD",2022-23Q1_PC553
Sandwell Metropolitan Borough Council,http://www.sandwell.gov.uk/info/200202/performance_and_spending/3233/government_procurement_cards,02-May-2022,Director of Law & Governance,TIMPSON LTD,Assistant Chief Executive (Excl SIU),15,MISCELLANEOUS AND SPECIALTY RETAIL STORES,2022-23Q1_PC554
Sandwell Metropolitan Borough Council,http://www.sandwell.gov.uk/info/200202/performance_and_spending/3233/government_procurement_cards,02-May-2022,Director of Law & Governance,POUNDLAND,Assistant Chief Executive (Excl SIU),15,DISCOUNT STORES,2022-23Q1_PC555
Sandwell Metropolitan Borough Council,http://www.sandwell.gov.uk/info/200202/performance_and_spending/3233/government_procurement_cards,02-May-2022,Director of Law & Governance,T J MORRIS LTD,Assistant Chief Executive (Excl SIU),2.99,HARDWARE STORES,2022-23Q1_PC556
Sandwell Metropolitan Borough Council,http://www.sandwell.gov.uk/info/200202/performance_and_spending/3233/government_procurement_cards,02-May-2022,Childrens Services,AMZNMKTPLACE AMAZON.CO,Childrens Services,29.81,MISCELLANEOUS AND SPECIALTY RETAIL STORES,2022-23Q1_PC557
Sandwell Metropolitan Borough Council,http://www.sandwell.gov.uk/info/200202/performance_and_spending/3233/government_procurement_cards,02-May-2022,Total ASCHWB,AMZNMktplace,Total Adult Social Care,108.32,MISCELLANEOUS AND SPECIALTY RETAIL STORES,2022-23Q1_PC558
Sandwell Metropolitan Borough Council,http://www.sandwell.gov.uk/info/200202/performance_and_spending/3233/government_procurement_cards,02-May-2022,Total ASCHWB,AMZNMktplace,Total Adult Social Care,108.32,MISCELLANEOUS AND SPECIALTY RETAIL STORES,2022-23Q1_PC559
Sandwell Metropolitan Borough Council,http://www.sandwell.gov.uk/info/200202/performance_and_spending/3233/government_procurement_cards,02-May-2022,Total ASCHWB,AMZNMktplace,Total Adult Social Care,108.32,MISCELLANEOUS AND SPECIALTY RETAIL STORES,2022-23Q1_PC560
Sandwell Metropolitan Borough Council,http://www.sandwell.gov.uk/info/200202/performance_and_spending/3233/government_procurement_cards,02-May-2022,Total ASCHWB,AMZNMktplace,Total Adult Social Care,108.32,MISCELLANEOUS AND SPECIALTY RETAIL STORES,2022-23Q1_PC561
Sandwell Metropolitan Borough Council,http://www.sandwell.gov.uk/info/200202/performance_and_spending/3233/government_procurement_cards,02-May-2022,FINANCE (Inc SIU),AMZNMKTPLACE AMAZON.CO,Assistant Chief Executive (Excl SIU),13.32,MISCELLANEOUS AND SPECIALTY RETAIL STORES,2022-23Q1_PC562
Sandwell Metropolitan Borough Council,http://www.sandwell.gov.uk/info/200202/performance_and_spending/3233/government_procurement_cards,02-May-2022,FINANCE (Inc SIU),Flextronics,Assistant Chief Executive (Excl SIU),40,COMPUTER MAIN./REPAIR/SERVICES NOT ELSEWHERE CLASS,2022-23Q1_PC563
Sandwell Metropolitan Borough Council,http://www.sandwell.gov.uk/info/200202/performance_and_spending/3233/government_procurement_cards,02-May-2022,Total Borough Economy,AMZNMktplace,Total Adult Social Care,8.57,MISCELLANEOUS AND SPECIALTY RETAIL STORES,2022-23Q1_PC564
Sandwell Metropolitan Borough Council,http://www.sandwell.gov.uk/info/200202/performance_and_spending/3233/government_procurement_cards,02-May-2022,Total Borough Economy,SumUp   Harris Shoe Re,Total Adult Social Care,12.47,MISCELLANEOUS AND SPECIALTY RETAIL STORES,2022-23Q1_PC565
Sandwell Metropolitan Borough Council,http://www.sandwell.gov.uk/info/200202/performance_and_spending/3233/government_procurement_cards,02-May-2022,Total Housing Revenue Account,DAVENPORT BURGESS,Total Housing Revenue Account,65.95,"HAT CLEANING SHOPS, SHOE REPAIR SHOPS, SHOE SHINE",2022-23Q1_PC566
Sandwell Metropolitan Borough Council,http://www.sandwell.gov.uk/info/200202/performance_and_spending/3233/government_procurement_cards,02-May-2022,Childrens Services,TESCO STORES 2770,Childrens Services,41.4,"GROCERY STORES, SUPERMARKETS",2022-23Q1_PC567
Sandwell Metropolitan Borough Council,http://www.sandwell.gov.uk/info/200202/performance_and_spending/3233/government_procurement_cards,02-May-2022,Total Borough Economy,HERON FOODS HALESOWEN,Total Adult Social Care,8.48,"GROCERY STORES, SUPERMARKETS",2022-23Q1_PC568
Sandwell Metropolitan Borough Council,http://www.sandwell.gov.uk/info/200202/performance_and_spending/3233/government_procurement_cards,02-May-2022,Total Borough Economy,POUNDLAND LTD,Total Adult Social Care,5.25,DISCOUNT STORES,2022-23Q1_PC569
Sandwell Metropolitan Borough Council,http://www.sandwell.gov.uk/info/200202/performance_and_spending/3233/government_procurement_cards,02-May-2022,Total Housing Revenue Account,WWW.SCREWFIX.COM,Total Housing Revenue Account,29.99,"BUILDING MATERIALS, LUMBER STORES",2022-23Q1_PC570
Sandwell Metropolitan Borough Council,http://www.sandwell.gov.uk/info/200202/performance_and_spending/3233/government_procurement_cards,02-May-2022,FINANCE (Inc SIU),AMZNMktplace,Total Adult Social Care,53.32,MISCELLANEOUS AND SPECIALTY RETAIL STORES,2022-23Q1_PC571
Sandwell Metropolitan Borough Council,http://www.sandwell.gov.uk/info/200202/performance_and_spending/3233/government_procurement_cards,02-May-2022,Total ASCHWB,WWW.OFFICETEAMCONNECT.,Total Adult Social Care,66.21,STATIONERY/OFFICE SUPPLIES/PRINTING & WRITING PAP.,2022-23Q1_PC572
Sandwell Metropolitan Borough Council,http://www.sandwell.gov.uk/info/200202/performance_and_spending/3233/government_procurement_cards,02-May-2022,Total Borough Economy,AMZNMktplace,Total Adult Social Care,9.95,MISCELLANEOUS AND SPECIALTY RETAIL STORES,2022-23Q1_PC573
Sandwell Metropolitan Borough Council,http://www.sandwell.gov.uk/info/200202/performance_and_spending/3233/government_procurement_cards,02-May-2022,Total Housing Revenue Account,CAPITA GAS,Total Housing Revenue Account,29.25,"ORGANIZATIONS, MEMBERSHIP-NOT ELSEWHERE CLASSIFIED",2022-23Q1_PC574
Sandwell Metropolitan Borough Council,http://www.sandwell.gov.uk/info/200202/performance_and_spending/3233/government_procurement_cards,02-May-2022,Total Housing Revenue Account,CAPITA GAS,Total Housing Revenue Account,20,"ORGANIZATIONS, MEMBERSHIP-NOT ELSEWHERE CLASSIFIED",2022-23Q1_PC575
Sandwell Metropolitan Borough Council,http://www.sandwell.gov.uk/info/200202/performance_and_spending/3233/government_procurement_cards,02-May-2022,Childrens Services,Evri,Childrens Services,50.56,"FREIGHT CARRIER,TRUCKING-LCL/LNG DIST, MVG/STORAGE",2022-23Q1_PC576
Sandwell Metropolitan Borough Council,http://www.sandwell.gov.uk/info/200202/performance_and_spending/3233/government_procurement_cards,02-May-2022,Childrens Services,SPACEHOPPAS PLAYZONE,Childrens Services,65.62,"GAME, TOY, AND HOBBY SHOPS",2022-23Q1_PC577
Sandwell Metropolitan Borough Council,http://www.sandwell.gov.uk/info/200202/performance_and_spending/3233/government_procurement_cards,03-May-2022,Director of Law & Governance,AMZNMktplace,Assistant Chief Executive (Excl SIU),50,MISCELLANEOUS AND SPECIALTY RETAIL STORES,2022-23Q1_PC578
Sandwell Metropolitan Borough Council,http://www.sandwell.gov.uk/info/200202/performance_and_spending/3233/government_procurement_cards,03-May-2022,Childrens Services,Norton  AP1397048981,Childrens Services,64.99,COMPUTER SOFTWARE STORES,2022-23Q1_PC579
Sandwell Metropolitan Borough Council,http://www.sandwell.gov.uk/info/200202/performance_and_spending/3233/government_procurement_cards,03-May-2022,Total ASCHWB,AMZNMktplace,Total Adult Social Care,94.1,MISCELLANEOUS AND SPECIALTY RETAIL STORES,2022-23Q1_PC580
Sandwell Metropolitan Borough Council,http://www.sandwell.gov.uk/info/200202/performance_and_spending/3233/government_procurement_cards,03-May-2022,Total Borough Economy,SAINSBURYS S/MKTS,Total Adult Social Care,6.5,"GROCERY STORES, SUPERMARKETS",2022-23Q1_PC581
Sandwell Metropolitan Borough Council,http://www.sandwell.gov.uk/info/200202/performance_and_spending/3233/government_procurement_cards,04-May-2022,Total Housing Revenue Account,JUSTPARK,Total Housing Revenue Account,52.2,AUTOMOBILE PARKING LOTS AND GARAGES,2022-23Q1_PC582
Sandwell Metropolitan Borough Council,http://www.sandwell.gov.uk/info/200202/performance_and_spending/3233/government_procurement_cards,04-May-2022,Total Housing Revenue Account,TRAVIS PERKINS,Total Housing Revenue Account,64.13,"BUILDING MATERIALS, LUMBER STORES",2022-23Q1_PC583
Sandwell Metropolitan Borough Council,http://www.sandwell.gov.uk/info/200202/performance_and_spending/3233/government_procurement_cards,04-May-2022,Childrens Services,TESCO STORES 2770,Childrens Services,163.97,"GROCERY STORES, SUPERMARKETS",2022-23Q1_PC584
Sandwell Metropolitan Borough Council,http://www.sandwell.gov.uk/info/200202/performance_and_spending/3233/government_procurement_cards,04-May-2022,Regeneration & Growth,ROYAL MAIL ONLINE SHOP,Regeneration And The Economy,247.5,POSTAL SERVICES-GOVERNMENT ONLY,2022-23Q1_PC585
Sandwell Metropolitan Borough Council,http://www.sandwell.gov.uk/info/200202/performance_and_spending/3233/government_procurement_cards,04-May-2022,Corporate Management,THE CROWN HOTEL HARROG,Corporate Management,2060,"BAR,LOUNGE,DISCO,NIGHTCLUB,TAVERN-ALCOHOLIC DRINKS",2022-23Q1_PC586
Sandwell Metropolitan Borough Council,http://www.sandwell.gov.uk/info/200202/performance_and_spending/3233/government_procurement_cards,04-May-2022,Childrens Services,CARTRIDGEPEOPLE.COM,Childrens Services,81.9,STATIONERY/OFFICE SUPPLIES/PRINTING & WRITING PAP.,2022-23Q1_PC587
Sandwell Metropolitan Borough Council,http://www.sandwell.gov.uk/info/200202/performance_and_spending/3233/government_procurement_cards,04-May-2022,Childrens Services,MEDISUPPLIES LTD,Childrens Services,94.32,MISCELLANEOUS AND SPECIALTY RETAIL STORES,2022-23Q1_PC588
Sandwell Metropolitan Borough Council,http://www.sandwell.gov.uk/info/200202/performance_and_spending/3233/government_procurement_cards,04-May-2022,Regeneration & Growth,Hotel at Booking.com,Regeneration And The Economy,303,"LODGING-HOTELS,MOTELS,RESORTS-NOT CLASSIFIED",2022-23Q1_PC589
Sandwell Metropolitan Borough Council,http://www.sandwell.gov.uk/info/200202/performance_and_spending/3233/government_procurement_cards,04-May-2022,Total Borough Economy,PODBEAN.COM,Total Adult Social Care,32.12,COMPUTER NETWORK/INFORMATION SERVICES,2022-23Q1_PC590
Sandwell Metropolitan Borough Council,http://www.sandwell.gov.uk/info/200202/performance_and_spending/3233/government_procurement_cards,04-May-2022,Total ASCHWB,AMZNMKTPLACE AMAZON.CO,Total Adult Social Care,12.48,MISCELLANEOUS AND SPECIALTY RETAIL STORES,2022-23Q1_PC591
Sandwell Metropolitan Borough Council,http://www.sandwell.gov.uk/info/200202/performance_and_spending/3233/government_procurement_cards,04-May-2022,Housing & Assets Total,POST OFFICE COUNTER,Corporate Management,45.6,POSTAL SERVICES-GOVERNMENT ONLY,2022-23Q1_PC592
Sandwell Metropolitan Borough Council,http://www.sandwell.gov.uk/info/200202/performance_and_spending/3233/government_procurement_cards,04-May-2022,Housing & Assets Total,ASDA STORES,Corporate Management,18.19,"GROCERY STORES, SUPERMARKETS",2022-23Q1_PC593
Sandwell Metropolitan Borough Council,http://www.sandwell.gov.uk/info/200202/performance_and_spending/3233/government_procurement_cards,04-May-2022,Childrens Services,MARKS&SPENCER PLC SA,Childrens Services,2.65,"GROCERY STORES, SUPERMARKETS",2022-23Q1_PC594
Sandwell Metropolitan Borough Council,http://www.sandwell.gov.uk/info/200202/performance_and_spending/3233/government_procurement_cards,04-May-2022,Childrens Services,TESCO STORES 6197,Childrens Services,56,"GROCERY STORES, SUPERMARKETS",2022-23Q1_PC595
Sandwell Metropolitan Borough Council,http://www.sandwell.gov.uk/info/200202/performance_and_spending/3233/government_procurement_cards,04-May-2022,Childrens Services,ASDA GROCERIES ONLINE,Childrens Services,194.44,"GROCERY STORES, SUPERMARKETS",2022-23Q1_PC596
Sandwell Metropolitan Borough Council,http://www.sandwell.gov.uk/info/200202/performance_and_spending/3233/government_procurement_cards,04-May-2022,Childrens Services,ASDA GROCERIES ONLINE,Childrens Services,-1.1,"GROCERY STORES, SUPERMARKETS",2022-23Q1_PC597
Sandwell Metropolitan Borough Council,http://www.sandwell.gov.uk/info/200202/performance_and_spending/3233/government_procurement_cards,04-May-2022,Childrens Services,ASDA GROCERIES ONLINE,Childrens Services,97.26,"GROCERY STORES, SUPERMARKETS",2022-23Q1_PC598
Sandwell Metropolitan Borough Council,http://www.sandwell.gov.uk/info/200202/performance_and_spending/3233/government_procurement_cards,04-May-2022,Housing & Assets Total,TRAVELODGE,Corporate Management,444.93,TRAVELODGE,2022-23Q1_PC599
Sandwell Metropolitan Borough Council,http://www.sandwell.gov.uk/info/200202/performance_and_spending/3233/government_procurement_cards,04-May-2022,Total Housing Revenue Account,AMZNMktplace,Total Housing Revenue Account,44,MISCELLANEOUS AND SPECIALTY RETAIL STORES,2022-23Q1_PC600
Sandwell Metropolitan Borough Council,http://www.sandwell.gov.uk/info/200202/performance_and_spending/3233/government_procurement_cards,04-May-2022,Individual School Budgets With Inclusion,Flextronics,Individual School Budgets With Inclusion,198.8,COMPUTER MAIN./REPAIR/SERVICES NOT ELSEWHERE CLASS,2022-23Q1_PC601
Sandwell Metropolitan Borough Council,http://www.sandwell.gov.uk/info/200202/performance_and_spending/3233/government_procurement_cards,04-May-2022,Total Business Strategy & Change,AMZNMktplace,Assistant Chief Executive (Excl SIU),37.98,MISCELLANEOUS AND SPECIALTY RETAIL STORES,2022-23Q1_PC602
Sandwell Metropolitan Borough Council,http://www.sandwell.gov.uk/info/200202/performance_and_spending/3233/government_procurement_cards,05-May-2022,Childrens Services,HIGHSPEEDTRAINING.CO.U,Childrens Services,24,"SCHOOLS, BUSINESS AND SECRETARIAL",2022-23Q1_PC603
Sandwell Metropolitan Borough Council,http://www.sandwell.gov.uk/info/200202/performance_and_spending/3233/government_procurement_cards,05-May-2022,Total Housing Revenue Account,C I H,Total Housing Revenue Account,229,"ASSOCIATIONS-CIVIC, SOCIAL, AND FRATERNAL",2022-23Q1_PC604
Sandwell Metropolitan Borough Council,http://www.sandwell.gov.uk/info/200202/performance_and_spending/3233/government_procurement_cards,05-May-2022,Total Housing Revenue Account,C I H,Total Housing Revenue Account,229,"ASSOCIATIONS-CIVIC, SOCIAL, AND FRATERNAL",2022-23Q1_PC605
Sandwell Metropolitan Borough Council,http://www.sandwell.gov.uk/info/200202/performance_and_spending/3233/government_procurement_cards,05-May-2022,Total ASCHWB,AMZNMktplace,Total Adult Social Care,124.93,MISCELLANEOUS AND SPECIALTY RETAIL STORES,2022-23Q1_PC606
Sandwell Metropolitan Borough Council,http://www.sandwell.gov.uk/info/200202/performance_and_spending/3233/government_procurement_cards,05-May-2022,FINANCE (Inc SIU),SMARTY CO UK,Assistant Chief Executive (Excl SIU),10,TELECOM INCL PREPAID/RECURRING PHONE SVCS,2022-23Q1_PC607
Sandwell Metropolitan Borough Council,http://www.sandwell.gov.uk/info/200202/performance_and_spending/3233/government_procurement_cards,05-May-2022,Director of Law & Governance,WWW.OFFICETEAMCONNECT.,Assistant Chief Executive (Excl SIU),64.14,STATIONERY/OFFICE SUPPLIES/PRINTING & WRITING PAP.,2022-23Q1_PC608
Sandwell Metropolitan Borough Council,http://www.sandwell.gov.uk/info/200202/performance_and_spending/3233/government_procurement_cards,05-May-2022,Director of Law & Governance,WWW.FIRSTFENCE.CO.UK,Assistant Chief Executive (Excl SIU),250,BUSINESS SERVICES-NOT ELSEWHERE CLASSIFIED,2022-23Q1_PC609
Sandwell Metropolitan Borough Council,http://www.sandwell.gov.uk/info/200202/performance_and_spending/3233/government_procurement_cards,05-May-2022,Director of Law & Governance,WWW.FIRSTFENCE.CO.UK,Assistant Chief Executive (Excl SIU),250,BUSINESS SERVICES-NOT ELSEWHERE CLASSIFIED,2022-23Q1_PC610
Sandwell Metropolitan Borough Council,http://www.sandwell.gov.uk/info/200202/performance_and_spending/3233/government_procurement_cards,05-May-2022,Childrens Services,Amazon Prime 2D47G83E4,Childrens Services,7.99,DIRECT MARKETING-CONTINUITY/SUBSCRIPTION MERCHANTS,2022-23Q1_PC611
Sandwell Metropolitan Borough Council,http://www.sandwell.gov.uk/info/200202/performance_and_spending/3233/government_procurement_cards,05-May-2022,Childrens Services,Amazon.co.uk 2D2IS5JI4,Childrens Services,299.97,DIRECT MARKETING-OTHER DIRECT MARKETERS/NOT ELSEW.,2022-23Q1_PC612
Sandwell Metropolitan Borough Council,http://www.sandwell.gov.uk/info/200202/performance_and_spending/3233/government_procurement_cards,05-May-2022,Total Borough Economy,SP TOOL TALK,Total Adult Social Care,133.39,HARDWARE STORES,2022-23Q1_PC613
Sandwell Metropolitan Borough Council,http://www.sandwell.gov.uk/info/200202/performance_and_spending/3233/government_procurement_cards,05-May-2022,Total Borough Economy,SP TOOL TALK,Total Adult Social Care,133.39,HARDWARE STORES,2022-23Q1_PC614
Sandwell Metropolitan Borough Council,http://www.sandwell.gov.uk/info/200202/performance_and_spending/3233/government_procurement_cards,05-May-2022,Total Borough Economy,Amazon Prime 2D8RZ83N4,Total Adult Social Care,7.99,DIRECT MARKETING-CONTINUITY/SUBSCRIPTION MERCHANTS,2022-23Q1_PC615
Sandwell Metropolitan Borough Council,http://www.sandwell.gov.uk/info/200202/performance_and_spending/3233/government_procurement_cards,05-May-2022,Total ASCHWB,WWW.OFFICETEAMCONNECT.,Total Adult Social Care,65.92,STATIONERY/OFFICE SUPPLIES/PRINTING & WRITING PAP.,2022-23Q1_PC616
Sandwell Metropolitan Borough Council,http://www.sandwell.gov.uk/info/200202/performance_and_spending/3233/government_procurement_cards,05-May-2022,Individual School Budgets With Inclusion,AMZNMktplace,Individual School Budgets With Inclusion,9.98,MISCELLANEOUS AND SPECIALTY RETAIL STORES,2022-23Q1_PC617
Sandwell Metropolitan Borough Council,http://www.sandwell.gov.uk/info/200202/performance_and_spending/3233/government_procurement_cards,05-May-2022,Total Borough Economy,AMZNMKTPLACE AMAZON.CO,Total Adult Social Care,19.98,MISCELLANEOUS AND SPECIALTY RETAIL STORES,2022-23Q1_PC618
Sandwell Metropolitan Borough Council,http://www.sandwell.gov.uk/info/200202/performance_and_spending/3233/government_procurement_cards,05-May-2022,Total Borough Economy,AMZNMktplace,Total Adult Social Care,92.87,MISCELLANEOUS AND SPECIALTY RETAIL STORES,2022-23Q1_PC619
Sandwell Metropolitan Borough Council,http://www.sandwell.gov.uk/info/200202/performance_and_spending/3233/government_procurement_cards,05-May-2022,Total Borough Economy,GSPRODUCTS.CO.UK,Total Adult Social Care,48.71,MISCELLANEOUS AND SPECIALTY RETAIL STORES,2022-23Q1_PC620
Sandwell Metropolitan Borough Council,http://www.sandwell.gov.uk/info/200202/performance_and_spending/3233/government_procurement_cards,05-May-2022,Total Borough Economy,PROFESSIONAL PLAN,Total Adult Social Care,121.45,COMPUTER SOFTWARE STORES,2022-23Q1_PC621
Sandwell Metropolitan Borough Council,http://www.sandwell.gov.uk/info/200202/performance_and_spending/3233/government_procurement_cards,05-May-2022,Total Borough Economy,MANOMANO,Total Adult Social Care,429,HOUSEHOLD APPLIANCE STORES,2022-23Q1_PC622
Sandwell Metropolitan Borough Council,http://www.sandwell.gov.uk/info/200202/performance_and_spending/3233/government_procurement_cards,05-May-2022,Total Borough Economy,ONLINE 4 U LTD,Total Adult Social Care,500,PET SHOPS - PET FOODS AND SUPPLIES,2022-23Q1_PC623
Sandwell Metropolitan Borough Council,http://www.sandwell.gov.uk/info/200202/performance_and_spending/3233/government_procurement_cards,05-May-2022,Childrens Services,ASDA SUPERSTORE 04236,Childrens Services,40.33,"GROCERY STORES, SUPERMARKETS",2022-23Q1_PC624
Sandwell Metropolitan Borough Council,http://www.sandwell.gov.uk/info/200202/performance_and_spending/3233/government_procurement_cards,06-May-2022,Total Housing Revenue Account,WWW.KANE.CO.UK,Total Housing Revenue Account,1407.6,HARDWARE EQUIPMENT AND SUPPLIES,2022-23Q1_PC625
Sandwell Metropolitan Borough Council,http://www.sandwell.gov.uk/info/200202/performance_and_spending/3233/government_procurement_cards,06-May-2022,Total Borough Economy,Trainline,Total Adult Social Care,11.95,PASSENGER RAILWAYS,2022-23Q1_PC626
Sandwell Metropolitan Borough Council,http://www.sandwell.gov.uk/info/200202/performance_and_spending/3233/government_procurement_cards,06-May-2022,Total Borough Economy,Trainline,Total Adult Social Care,46.5,PASSENGER RAILWAYS,2022-23Q1_PC627
Sandwell Metropolitan Borough Council,http://www.sandwell.gov.uk/info/200202/performance_and_spending/3233/government_procurement_cards,06-May-2022,Director of Law & Governance,THE RANGE,Assistant Chief Executive (Excl SIU),3.99,MISCELLANEOUS HOUSE FURNISHING SPECIALTY SHOPS,2022-23Q1_PC628
Sandwell Metropolitan Borough Council,http://www.sandwell.gov.uk/info/200202/performance_and_spending/3233/government_procurement_cards,06-May-2022,Director of Law & Governance,THE RANGE,Assistant Chief Executive (Excl SIU),-3.99,MISCELLANEOUS HOUSE FURNISHING SPECIALTY SHOPS,2022-23Q1_PC629
Sandwell Metropolitan Borough Council,http://www.sandwell.gov.uk/info/200202/performance_and_spending/3233/government_procurement_cards,06-May-2022,Total ASCHWB,AMZNMktplace,Total Adult Social Care,71.96,MISCELLANEOUS AND SPECIALTY RETAIL STORES,2022-23Q1_PC630
Sandwell Metropolitan Borough Council,http://www.sandwell.gov.uk/info/200202/performance_and_spending/3233/government_procurement_cards,06-May-2022,Childrens Services,AMZNMktplace,Childrens Services,8.74,MISCELLANEOUS AND SPECIALTY RETAIL STORES,2022-23Q1_PC631
Sandwell Metropolitan Borough Council,http://www.sandwell.gov.uk/info/200202/performance_and_spending/3233/government_procurement_cards,06-May-2022,Childrens Services,AMZNMktplace,Childrens Services,12.22,MISCELLANEOUS AND SPECIALTY RETAIL STORES,2022-23Q1_PC632
Sandwell Metropolitan Borough Council,http://www.sandwell.gov.uk/info/200202/performance_and_spending/3233/government_procurement_cards,06-May-2022,Regeneration & Growth,ROYAL MAIL ONLINE SHOP,Regeneration And The Economy,231,POSTAL SERVICES-GOVERNMENT ONLY,2022-23Q1_PC633
Sandwell Metropolitan Borough Council,http://www.sandwell.gov.uk/info/200202/performance_and_spending/3233/government_procurement_cards,06-May-2022,Childrens Services,ASDA STORES 4253,Childrens Services,7.9,"GROCERY STORES, SUPERMARKETS",2022-23Q1_PC634
Sandwell Metropolitan Borough Council,http://www.sandwell.gov.uk/info/200202/performance_and_spending/3233/government_procurement_cards,06-May-2022,Childrens Services,TESCO STORES 3057,Childrens Services,44.27,"GROCERY STORES, SUPERMARKETS",2022-23Q1_PC635
Sandwell Metropolitan Borough Council,http://www.sandwell.gov.uk/info/200202/performance_and_spending/3233/government_procurement_cards,06-May-2022,Childrens Services,BAKER ROSS,Childrens Services,36.85,"ARTIST SUPPLY STORES, CRAFT SHOPS",2022-23Q1_PC636
Sandwell Metropolitan Borough Council,http://www.sandwell.gov.uk/info/200202/performance_and_spending/3233/government_procurement_cards,06-May-2022,Childrens Services,FLIP OUT SANDWELL,Childrens Services,240,RECREATION SERVICES (NOT ELSEWHERE CLASSIFIED),2022-23Q1_PC637
Sandwell Metropolitan Borough Council,http://www.sandwell.gov.uk/info/200202/performance_and_spending/3233/government_procurement_cards,06-May-2022,Childrens Services,FLIP OUT SANDWELL,Childrens Services,66,RECREATION SERVICES (NOT ELSEWHERE CLASSIFIED),2022-23Q1_PC638
Sandwell Metropolitan Borough Council,http://www.sandwell.gov.uk/info/200202/performance_and_spending/3233/government_procurement_cards,06-May-2022,Childrens Services,ROYAL MAIL GROUP LTD,Childrens Services,19.95,POSTAL SERVICES-GOVERNMENT ONLY,2022-23Q1_PC639
Sandwell Metropolitan Borough Council,http://www.sandwell.gov.uk/info/200202/performance_and_spending/3233/government_procurement_cards,06-May-2022,Total Borough Economy,Amazon.co.uk 2D57U2AG4,Total Adult Social Care,176.24,DIRECT MARKETING-OTHER DIRECT MARKETERS/NOT ELSEW.,2022-23Q1_PC640
Sandwell Metropolitan Borough Council,http://www.sandwell.gov.uk/info/200202/performance_and_spending/3233/government_procurement_cards,06-May-2022,Total ASCHWB,Amazon.co.uk 2D1DV20A4,Total Adult Social Care,34.2,DIRECT MARKETING-OTHER DIRECT MARKETERS/NOT ELSEW.,2022-23Q1_PC641
Sandwell Metropolitan Borough Council,http://www.sandwell.gov.uk/info/200202/performance_and_spending/3233/government_procurement_cards,06-May-2022,Total ASCHWB,WWW.JUSTGLOVES.CO.UK,Total Adult Social Care,190.8,MISCELLANEOUS AND SPECIALTY RETAIL STORES,2022-23Q1_PC642
Sandwell Metropolitan Borough Council,http://www.sandwell.gov.uk/info/200202/performance_and_spending/3233/government_procurement_cards,06-May-2022,Director of Law & Governance,UBER    EATS,Assistant Chief Executive (Excl SIU),40.63,"EATING PLACES, RESTAURANTS",2022-23Q1_PC643
Sandwell Metropolitan Borough Council,http://www.sandwell.gov.uk/info/200202/performance_and_spending/3233/government_procurement_cards,06-May-2022,Childrens Services,SANDWELL M B C,Childrens Services,123.6,GOVERNMENT SERVICES-NOT ELSEWHERE CLASSIFIED,2022-23Q1_PC644
Sandwell Metropolitan Borough Council,http://www.sandwell.gov.uk/info/200202/performance_and_spending/3233/government_procurement_cards,06-May-2022,Total ASCHWB,TVLICENSING.CO.UK,Total Adult Social Care,159,"CONSULTING, MANAGEMENT, AND PUBLIC RELATIONS SVCS",2022-23Q1_PC645
Sandwell Metropolitan Borough Council,http://www.sandwell.gov.uk/info/200202/performance_and_spending/3233/government_procurement_cards,06-May-2022,Total ASCHWB,AMZNMKTPLACE AMAZON.CO,Total Adult Social Care,19.98,MISCELLANEOUS AND SPECIALTY RETAIL STORES,2022-23Q1_PC646
Sandwell Metropolitan Borough Council,http://www.sandwell.gov.uk/info/200202/performance_and_spending/3233/government_procurement_cards,06-May-2022,Total Borough Economy,AMZNMktplace,Total Adult Social Care,24.53,MISCELLANEOUS AND SPECIALTY RETAIL STORES,2022-23Q1_PC647
Sandwell Metropolitan Borough Council,http://www.sandwell.gov.uk/info/200202/performance_and_spending/3233/government_procurement_cards,06-May-2022,Total Public Health,Just Eat,Public Health,109.05,FAST FOOD RESTAURANTS,2022-23Q1_PC648
Sandwell Metropolitan Borough Council,http://www.sandwell.gov.uk/info/200202/performance_and_spending/3233/government_procurement_cards,06-May-2022,Total Public Health,SumUp   The Fish  Chi,Public Health,5.5,"GROCERY STORES, SUPERMARKETS",2022-23Q1_PC649
Sandwell Metropolitan Borough Council,http://www.sandwell.gov.uk/info/200202/performance_and_spending/3233/government_procurement_cards,06-May-2022,Total Borough Economy,WWW KELVINPOWERTOOLS C,Total Adult Social Care,169,HARDWARE STORES,2022-23Q1_PC650
Sandwell Metropolitan Borough Council,http://www.sandwell.gov.uk/info/200202/performance_and_spending/3233/government_procurement_cards,06-May-2022,Total Borough Economy,Shopfitting Warehouse,Total Adult Social Care,198,OFFICE AND COMMERCIAL FURNITURE,2022-23Q1_PC651
Sandwell Metropolitan Borough Council,http://www.sandwell.gov.uk/info/200202/performance_and_spending/3233/government_procurement_cards,06-May-2022,Total Borough Economy,MANOMANO,Total Adult Social Care,249.99,HOUSEHOLD APPLIANCE STORES,2022-23Q1_PC652
Sandwell Metropolitan Borough Council,http://www.sandwell.gov.uk/info/200202/performance_and_spending/3233/government_procurement_cards,09-May-2022,FINANCE (Inc SIU),WWW.OFFICETEAMCONNECT.,Assistant Chief Executive (Excl SIU),74.28,STATIONERY/OFFICE SUPPLIES/PRINTING & WRITING PAP.,2022-23Q1_PC653
Sandwell Metropolitan Borough Council,http://www.sandwell.gov.uk/info/200202/performance_and_spending/3233/government_procurement_cards,09-May-2022,FINANCE (Inc SIU),Amazon Prime 2D2LR05F4,Assistant Chief Executive (Excl SIU),7.99,DIRECT MARKETING-CONTINUITY/SUBSCRIPTION MERCHANTS,2022-23Q1_PC654
Sandwell Metropolitan Borough Council,http://www.sandwell.gov.uk/info/200202/performance_and_spending/3233/government_procurement_cards,09-May-2022,Childrens Services,JANSANUK,Childrens Services,224.28,INDUSTRIAL SUPPLIES NOT ELSEWHERE CLASSIFIED,2022-23Q1_PC655
Sandwell Metropolitan Borough Council,http://www.sandwell.gov.uk/info/200202/performance_and_spending/3233/government_procurement_cards,09-May-2022,Childrens Services,WWW.JOHNLEWIS.COM,Childrens Services,199.92,DEPARTMENT STORES,2022-23Q1_PC656
Sandwell Metropolitan Borough Council,http://www.sandwell.gov.uk/info/200202/performance_and_spending/3233/government_procurement_cards,09-May-2022,Childrens Services,ALDI 772 177,Childrens Services,38.32,"GROCERY STORES, SUPERMARKETS",2022-23Q1_PC657
Sandwell Metropolitan Borough Council,http://www.sandwell.gov.uk/info/200202/performance_and_spending/3233/government_procurement_cards,09-May-2022,Childrens Services,ALDI 772 177,Childrens Services,17.7,"GROCERY STORES, SUPERMARKETS",2022-23Q1_PC658
Sandwell Metropolitan Borough Council,http://www.sandwell.gov.uk/info/200202/performance_and_spending/3233/government_procurement_cards,09-May-2022,Childrens Services,AMZNMKTPLACE AMAZON.CO,Childrens Services,41.21,MISCELLANEOUS AND SPECIALTY RETAIL STORES,2022-23Q1_PC659
Sandwell Metropolitan Borough Council,http://www.sandwell.gov.uk/info/200202/performance_and_spending/3233/government_procurement_cards,09-May-2022,Childrens Services,WWW.OFFICETEAMCONNECT.,Childrens Services,64.68,STATIONERY/OFFICE SUPPLIES/PRINTING & WRITING PAP.,2022-23Q1_PC660
Sandwell Metropolitan Borough Council,http://www.sandwell.gov.uk/info/200202/performance_and_spending/3233/government_procurement_cards,09-May-2022,Childrens Services,Hermes Parcelnet Ltd T,Childrens Services,17.74,"FREIGHT CARRIER,TRUCKING-LCL/LNG DIST, MVG/STORAGE",2022-23Q1_PC661
Sandwell Metropolitan Borough Council,http://www.sandwell.gov.uk/info/200202/performance_and_spending/3233/government_procurement_cards,09-May-2022,Childrens Services,Hermes Parcelnet Ltd T,Childrens Services,11.88,"FREIGHT CARRIER,TRUCKING-LCL/LNG DIST, MVG/STORAGE",2022-23Q1_PC662
Sandwell Metropolitan Borough Council,http://www.sandwell.gov.uk/info/200202/performance_and_spending/3233/government_procurement_cards,09-May-2022,Total Borough Economy,AMZNMktplace,Total Adult Social Care,52.58,MISCELLANEOUS AND SPECIALTY RETAIL STORES,2022-23Q1_PC663
Sandwell Metropolitan Borough Council,http://www.sandwell.gov.uk/info/200202/performance_and_spending/3233/government_procurement_cards,09-May-2022,Total ASCHWB,AMZNMKTPLACE AMAZON.CO,Total Adult Social Care,18.09,MISCELLANEOUS AND SPECIALTY RETAIL STORES,2022-23Q1_PC664
Sandwell Metropolitan Borough Council,http://www.sandwell.gov.uk/info/200202/performance_and_spending/3233/government_procurement_cards,09-May-2022,Childrens Services,DVLA DRIVER ONLINE,Childrens Services,34,GOVERNMENT SERVICES-NOT ELSEWHERE CLASSIFIED,2022-23Q1_PC665
Sandwell Metropolitan Borough Council,http://www.sandwell.gov.uk/info/200202/performance_and_spending/3233/government_procurement_cards,09-May-2022,Housing & Assets Total,ASDA STORES,Corporate Management,83.78,"GROCERY STORES, SUPERMARKETS",2022-23Q1_PC666
Sandwell Metropolitan Borough Council,http://www.sandwell.gov.uk/info/200202/performance_and_spending/3233/government_procurement_cards,09-May-2022,Total Borough Economy,DUNELM (SOFT FURNISHIN,Total Adult Social Care,82.5,"DRAPERY, UPOLSTERY, AND WINDOW COVERINGS STORES",2022-23Q1_PC667
Sandwell Metropolitan Borough Council,http://www.sandwell.gov.uk/info/200202/performance_and_spending/3233/government_procurement_cards,09-May-2022,Childrens Services,ASDA STORE,Childrens Services,2.5,"GROCERY STORES, SUPERMARKETS",2022-23Q1_PC668
Sandwell Metropolitan Borough Council,http://www.sandwell.gov.uk/info/200202/performance_and_spending/3233/government_procurement_cards,09-May-2022,Total Borough Economy,WWW.SCREWFIX.COM,Total Adult Social Care,34.99,"BUILDING MATERIALS, LUMBER STORES",2022-23Q1_PC669
Sandwell Metropolitan Borough Council,http://www.sandwell.gov.uk/info/200202/performance_and_spending/3233/government_procurement_cards,09-May-2022,Total Borough Economy,AMZNMktplace,Total Adult Social Care,152.5,MISCELLANEOUS AND SPECIALTY RETAIL STORES,2022-23Q1_PC670
Sandwell Metropolitan Borough Council,http://www.sandwell.gov.uk/info/200202/performance_and_spending/3233/government_procurement_cards,09-May-2022,Total ASCHWB,ARGOS LTD,Total Adult Social Care,152.94,DISCOUNT STORES,2022-23Q1_PC671
Sandwell Metropolitan Borough Council,http://www.sandwell.gov.uk/info/200202/performance_and_spending/3233/government_procurement_cards,09-May-2022,Total ASCHWB,AMZNMktplace,Total Adult Social Care,24.95,MISCELLANEOUS AND SPECIALTY RETAIL STORES,2022-23Q1_PC672
Sandwell Metropolitan Borough Council,http://www.sandwell.gov.uk/info/200202/performance_and_spending/3233/government_procurement_cards,09-May-2022,Total ASCHWB,AMZNMktplace,Total Adult Social Care,7.64,MISCELLANEOUS AND SPECIALTY RETAIL STORES,2022-23Q1_PC673
Sandwell Metropolitan Borough Council,http://www.sandwell.gov.uk/info/200202/performance_and_spending/3233/government_procurement_cards,09-May-2022,Total ASCHWB,AMZNMktplace,Total Adult Social Care,13.2,MISCELLANEOUS AND SPECIALTY RETAIL STORES,2022-23Q1_PC674
Sandwell Metropolitan Borough Council,http://www.sandwell.gov.uk/info/200202/performance_and_spending/3233/government_procurement_cards,09-May-2022,Childrens Services,TESCO STORES 6481,Childrens Services,7.2,"GROCERY STORES, SUPERMARKETS",2022-23Q1_PC675
Sandwell Metropolitan Borough Council,http://www.sandwell.gov.uk/info/200202/performance_and_spending/3233/government_procurement_cards,09-May-2022,Total Business Strategy & Change,Amazon Prime 2D0J98X34,Assistant Chief Executive (Excl SIU),7.99,DIRECT MARKETING-CONTINUITY/SUBSCRIPTION MERCHANTS,2022-23Q1_PC676
Sandwell Metropolitan Borough Council,http://www.sandwell.gov.uk/info/200202/performance_and_spending/3233/government_procurement_cards,09-May-2022,Housing & Assets Total,THE APOLLO HOTEL,Corporate Management,1000,"LODGING-HOTELS,MOTELS,RESORTS-NOT CLASSIFIED",2022-23Q1_PC677
Sandwell Metropolitan Borough Council,http://www.sandwell.gov.uk/info/200202/performance_and_spending/3233/government_procurement_cards,09-May-2022,Housing & Assets Total,PREMIER INN,Corporate Management,222.5,PREMIER INN,2022-23Q1_PC678
Sandwell Metropolitan Borough Council,http://www.sandwell.gov.uk/info/200202/performance_and_spending/3233/government_procurement_cards,09-May-2022,Total Housing Revenue Account,AMZNMktplace,Total Housing Revenue Account,52.42,MISCELLANEOUS AND SPECIALTY RETAIL STORES,2022-23Q1_PC679
Sandwell Metropolitan Borough Council,http://www.sandwell.gov.uk/info/200202/performance_and_spending/3233/government_procurement_cards,09-May-2022,Individual School Budgets With Inclusion,Amazon.co.uk 2D84T2GZ4,Individual School Budgets With Inclusion,11.18,DIRECT MARKETING-OTHER DIRECT MARKETERS/NOT ELSEW.,2022-23Q1_PC680
Sandwell Metropolitan Borough Council,http://www.sandwell.gov.uk/info/200202/performance_and_spending/3233/government_procurement_cards,09-May-2022,Total ASCHWB,HOLIDAY INNS,Total Adult Social Care,135,HOLIDAY INNS,2022-23Q1_PC681
Sandwell Metropolitan Borough Council,http://www.sandwell.gov.uk/info/200202/performance_and_spending/3233/government_procurement_cards,09-May-2022,Total Borough Economy,AMZNMKTPLACE AMAZON.CO,Total Adult Social Care,69.49,MISCELLANEOUS AND SPECIALTY RETAIL STORES,2022-23Q1_PC682
Sandwell Metropolitan Borough Council,http://www.sandwell.gov.uk/info/200202/performance_and_spending/3233/government_procurement_cards,09-May-2022,Total Borough Economy,AMZNMktplace,Total Adult Social Care,62.96,MISCELLANEOUS AND SPECIALTY RETAIL STORES,2022-23Q1_PC683
Sandwell Metropolitan Borough Council,http://www.sandwell.gov.uk/info/200202/performance_and_spending/3233/government_procurement_cards,09-May-2022,Total Borough Economy,AMZNMktplace,Total Adult Social Care,159.82,MISCELLANEOUS AND SPECIALTY RETAIL STORES,2022-23Q1_PC684
Sandwell Metropolitan Borough Council,http://www.sandwell.gov.uk/info/200202/performance_and_spending/3233/government_procurement_cards,09-May-2022,Childrens Services,TESCO STORES 2770,Childrens Services,26,"GROCERY STORES, SUPERMARKETS",2022-23Q1_PC685
Sandwell Metropolitan Borough Council,http://www.sandwell.gov.uk/info/200202/performance_and_spending/3233/government_procurement_cards,10-May-2022,Total Borough Economy,ARTS MARKETING ASS,Total Adult Social Care,84,"ORGANIZATIONS, CHARITABLE AND SOCIAL SERVICES",2022-23Q1_PC686
Sandwell Metropolitan Borough Council,http://www.sandwell.gov.uk/info/200202/performance_and_spending/3233/government_procurement_cards,10-May-2022,Housing & Assets Total,TRAVELODGE,Corporate Management,225.37,TRAVELODGE,2022-23Q1_PC687
Sandwell Metropolitan Borough Council,http://www.sandwell.gov.uk/info/200202/performance_and_spending/3233/government_procurement_cards,10-May-2022,Childrens Services,TESCO STORES 2770,Childrens Services,146.98,"GROCERY STORES, SUPERMARKETS",2022-23Q1_PC688
Sandwell Metropolitan Borough Council,http://www.sandwell.gov.uk/info/200202/performance_and_spending/3233/government_procurement_cards,10-May-2022,Director of Law & Governance,SANDWELL M.B.C.,Assistant Chief Executive (Excl SIU),187.5,GOVERNMENT SERVICES-NOT ELSEWHERE CLASSIFIED,2022-23Q1_PC689
Sandwell Metropolitan Borough Council,http://www.sandwell.gov.uk/info/200202/performance_and_spending/3233/government_procurement_cards,10-May-2022,Childrens Services,AMZNMktplace,Childrens Services,11.18,MISCELLANEOUS AND SPECIALTY RETAIL STORES,2022-23Q1_PC690
Sandwell Metropolitan Borough Council,http://www.sandwell.gov.uk/info/200202/performance_and_spending/3233/government_procurement_cards,10-May-2022,Childrens Services,JUNGLE BUGS,Childrens Services,136.2,RECREATION SERVICES (NOT ELSEWHERE CLASSIFIED),2022-23Q1_PC691
Sandwell Metropolitan Borough Council,http://www.sandwell.gov.uk/info/200202/performance_and_spending/3233/government_procurement_cards,10-May-2022,Total Borough Economy,Postpack Ltd,Total Adult Social Care,58.66,"COMMERCIAL EQUIPMENT, NOT ELSEWHERE CLASSIFIED",2022-23Q1_PC692
Sandwell Metropolitan Borough Council,http://www.sandwell.gov.uk/info/200202/performance_and_spending/3233/government_procurement_cards,10-May-2022,Total Borough Economy,AMZNMKTPLACE AMAZON.CO,Total Adult Social Care,13.99,MISCELLANEOUS AND SPECIALTY RETAIL STORES,2022-23Q1_PC693
Sandwell Metropolitan Borough Council,http://www.sandwell.gov.uk/info/200202/performance_and_spending/3233/government_procurement_cards,10-May-2022,Total Borough Economy,Amazon.co.uk 2D2B496O4,Total Adult Social Care,19.6,DIRECT MARKETING-OTHER DIRECT MARKETERS/NOT ELSEW.,2022-23Q1_PC694
Sandwell Metropolitan Borough Council,http://www.sandwell.gov.uk/info/200202/performance_and_spending/3233/government_procurement_cards,10-May-2022,Total ASCHWB,Amazon Prime 2D57P9BV4,Total Adult Social Care,0.99,DIRECT MARKETING-CONTINUITY/SUBSCRIPTION MERCHANTS,2022-23Q1_PC695
Sandwell Metropolitan Borough Council,http://www.sandwell.gov.uk/info/200202/performance_and_spending/3233/government_procurement_cards,10-May-2022,Total Borough Economy,AMZNMktplace,Total Adult Social Care,6.99,MISCELLANEOUS AND SPECIALTY RETAIL STORES,2022-23Q1_PC696
Sandwell Metropolitan Borough Council,http://www.sandwell.gov.uk/info/200202/performance_and_spending/3233/government_procurement_cards,10-May-2022,Childrens Services,AMZNMKTPLACE AMAZON.CO,Childrens Services,45.88,MISCELLANEOUS AND SPECIALTY RETAIL STORES,2022-23Q1_PC697
Sandwell Metropolitan Borough Council,http://www.sandwell.gov.uk/info/200202/performance_and_spending/3233/government_procurement_cards,10-May-2022,Regeneration & Growth,WWW.PAMTRAD.CO.UK,Regeneration And The Economy,-825,ELECTRICAL PARTS AND EQUIPMENT,2022-23Q1_PC698
Sandwell Metropolitan Borough Council,http://www.sandwell.gov.uk/info/200202/performance_and_spending/3233/government_procurement_cards,10-May-2022,Total ASCHWB,AMZNMktplace,Total Adult Social Care,156.84,MISCELLANEOUS AND SPECIALTY RETAIL STORES,2022-23Q1_PC699
Sandwell Metropolitan Borough Council,http://www.sandwell.gov.uk/info/200202/performance_and_spending/3233/government_procurement_cards,10-May-2022,Total Borough Economy,FOOD SAFETY DIRECT,Total Adult Social Care,27.56,CHEMICALS/ALLIED PRODUCTS NOT ELSEWHERE CLASSIFIED,2022-23Q1_PC700
Sandwell Metropolitan Borough Council,http://www.sandwell.gov.uk/info/200202/performance_and_spending/3233/government_procurement_cards,10-May-2022,Total Borough Economy,Amazon Prime,Total Adult Social Care,-7.99,DIRECT MARKETING-CONTINUITY/SUBSCRIPTION MERCHANTS,2022-23Q1_PC701
Sandwell Metropolitan Borough Council,http://www.sandwell.gov.uk/info/200202/performance_and_spending/3233/government_procurement_cards,10-May-2022,Childrens Services,STAFFORDSHIRE FRUITS,Childrens Services,16,MISCELLANEOUS AND SPECIALTY RETAIL STORES,2022-23Q1_PC702
Sandwell Metropolitan Borough Council,http://www.sandwell.gov.uk/info/200202/performance_and_spending/3233/government_procurement_cards,10-May-2022,Childrens Services,ASDA GROCERIES ONLINE,Childrens Services,136.6,"GROCERY STORES, SUPERMARKETS",2022-23Q1_PC703
Sandwell Metropolitan Borough Council,http://www.sandwell.gov.uk/info/200202/performance_and_spending/3233/government_procurement_cards,10-May-2022,Childrens Services,BEEBYS BUBBLES,Childrens Services,126,"CLEANING, GARMENT, AND LAUNDRY SERVICES",2022-23Q1_PC704
Sandwell Metropolitan Borough Council,http://www.sandwell.gov.uk/info/200202/performance_and_spending/3233/government_procurement_cards,10-May-2022,Childrens Services,HANDY DRY CLEANERS,Childrens Services,145,"CLEANING, GARMENT, AND LAUNDRY SERVICES",2022-23Q1_PC705
Sandwell Metropolitan Borough Council,http://www.sandwell.gov.uk/info/200202/performance_and_spending/3233/government_procurement_cards,10-May-2022,Director of Law & Governance,SCAN COMPUTERS INT LTD,Assistant Chief Executive (Excl SIU),276.34,ELECTRONIC SALES,2022-23Q1_PC706
Sandwell Metropolitan Borough Council,http://www.sandwell.gov.uk/info/200202/performance_and_spending/3233/government_procurement_cards,10-May-2022,Director of Law & Governance,WILKO RETAIL LIMITED,Assistant Chief Executive (Excl SIU),5.5,MISCELLANEOUS GENERAL MERCHANDISE,2022-23Q1_PC707
Sandwell Metropolitan Borough Council,http://www.sandwell.gov.uk/info/200202/performance_and_spending/3233/government_procurement_cards,10-May-2022,Housing & Assets Total,AMZNMktplace,Corporate Management,249,MISCELLANEOUS AND SPECIALTY RETAIL STORES,2022-23Q1_PC708
Sandwell Metropolitan Borough Council,http://www.sandwell.gov.uk/info/200202/performance_and_spending/3233/government_procurement_cards,10-May-2022,Total Borough Economy,eBay O 13-08606-56204,Total Adult Social Care,32.99,DEPARTMENT STORES,2022-23Q1_PC709
Sandwell Metropolitan Borough Council,http://www.sandwell.gov.uk/info/200202/performance_and_spending/3233/government_procurement_cards,10-May-2022,Total Borough Economy,FIREPROTECT,Total Adult Social Care,83.93,ELECTRONIC SALES,2022-23Q1_PC710
Sandwell Metropolitan Borough Council,http://www.sandwell.gov.uk/info/200202/performance_and_spending/3233/government_procurement_cards,10-May-2022,Individual School Budgets With Inclusion,AMZNMktplace,Individual School Budgets With Inclusion,103.96,MISCELLANEOUS AND SPECIALTY RETAIL STORES,2022-23Q1_PC711
Sandwell Metropolitan Borough Council,http://www.sandwell.gov.uk/info/200202/performance_and_spending/3233/government_procurement_cards,10-May-2022,Individual School Budgets With Inclusion,Amazon.co.uk 2D4S04QJ4,Individual School Budgets With Inclusion,5.59,DIRECT MARKETING-OTHER DIRECT MARKETERS/NOT ELSEW.,2022-23Q1_PC712
Sandwell Metropolitan Borough Council,http://www.sandwell.gov.uk/info/200202/performance_and_spending/3233/government_procurement_cards,10-May-2022,Total Borough Economy,AMZNMktplace,Total Adult Social Care,24.98,MISCELLANEOUS AND SPECIALTY RETAIL STORES,2022-23Q1_PC713
Sandwell Metropolitan Borough Council,http://www.sandwell.gov.uk/info/200202/performance_and_spending/3233/government_procurement_cards,10-May-2022,Total Borough Economy,Klarna Sensory Educati,Total Adult Social Care,-130.9,"GAME, TOY, AND HOBBY SHOPS",2022-23Q1_PC714
Sandwell Metropolitan Borough Council,http://www.sandwell.gov.uk/info/200202/performance_and_spending/3233/government_procurement_cards,10-May-2022,Regeneration & Growth,WP-COUNTRYSIDE JOB,Regeneration And The Economy,150,BUSINESS SERVICES-NOT ELSEWHERE CLASSIFIED,2022-23Q1_PC715
Sandwell Metropolitan Borough Council,http://www.sandwell.gov.uk/info/200202/performance_and_spending/3233/government_procurement_cards,10-May-2022,Regeneration & Growth,AMZNMKTPLACE AMAZON.CO,Regeneration And The Economy,239.85,MISCELLANEOUS AND SPECIALTY RETAIL STORES,2022-23Q1_PC716
Sandwell Metropolitan Borough Council,http://www.sandwell.gov.uk/info/200202/performance_and_spending/3233/government_procurement_cards,10-May-2022,Director of Law & Governance,AMZNMKTPLACE AMAZON.CO,Assistant Chief Executive (Excl SIU),85.62,MISCELLANEOUS AND SPECIALTY RETAIL STORES,2022-23Q1_PC717
Sandwell Metropolitan Borough Council,http://www.sandwell.gov.uk/info/200202/performance_and_spending/3233/government_procurement_cards,10-May-2022,Total ASCHWB,AMZNMktplace,Total Adult Social Care,16.99,MISCELLANEOUS AND SPECIALTY RETAIL STORES,2022-23Q1_PC718
Sandwell Metropolitan Borough Council,http://www.sandwell.gov.uk/info/200202/performance_and_spending/3233/government_procurement_cards,10-May-2022,Childrens Services,ASDA SUPERSTORE 04236,Childrens Services,21.64,"GROCERY STORES, SUPERMARKETS",2022-23Q1_PC719
Sandwell Metropolitan Borough Council,http://www.sandwell.gov.uk/info/200202/performance_and_spending/3233/government_procurement_cards,11-May-2022,Total Housing Revenue Account,ROYAL ALBION HOTEL,Total Housing Revenue Account,399,"LODGING-HOTELS,MOTELS,RESORTS-NOT CLASSIFIED",2022-23Q1_PC720
Sandwell Metropolitan Borough Council,http://www.sandwell.gov.uk/info/200202/performance_and_spending/3233/government_procurement_cards,11-May-2022,Total Borough Economy,AMZ Amazon.co.uk,Total Adult Social Care,-7.99,DIRECT MARKETING-OTHER DIRECT MARKETERS/NOT ELSEW.,2022-23Q1_PC721
Sandwell Metropolitan Borough Council,http://www.sandwell.gov.uk/info/200202/performance_and_spending/3233/government_procurement_cards,11-May-2022,Total Borough Economy,Trainline.COM,Total Adult Social Care,63.48,PASSENGER RAILWAYS,2022-23Q1_PC722
Sandwell Metropolitan Borough Council,http://www.sandwell.gov.uk/info/200202/performance_and_spending/3233/government_procurement_cards,11-May-2022,Total Housing Revenue Account,VERICON SYSTEMS LTD,Total Housing Revenue Account,1203.76,COMPUTER SOFTWARE STORES,2022-23Q1_PC723
Sandwell Metropolitan Borough Council,http://www.sandwell.gov.uk/info/200202/performance_and_spending/3233/government_procurement_cards,11-May-2022,Corporate Management,AMZNMktplace,Corporate Management,32.36,MISCELLANEOUS AND SPECIALTY RETAIL STORES,2022-23Q1_PC724
Sandwell Metropolitan Borough Council,http://www.sandwell.gov.uk/info/200202/performance_and_spending/3233/government_procurement_cards,11-May-2022,Director of Law & Governance,AMZNMKTPLACE AMAZON.CO,Assistant Chief Executive (Excl SIU),16.99,MISCELLANEOUS AND SPECIALTY RETAIL STORES,2022-23Q1_PC725
Sandwell Metropolitan Borough Council,http://www.sandwell.gov.uk/info/200202/performance_and_spending/3233/government_procurement_cards,11-May-2022,Childrens Services,AMZNMKTPLACE AMAZON.CO,Childrens Services,10.62,MISCELLANEOUS AND SPECIALTY RETAIL STORES,2022-23Q1_PC726
Sandwell Metropolitan Borough Council,http://www.sandwell.gov.uk/info/200202/performance_and_spending/3233/government_procurement_cards,11-May-2022,Childrens Services,AMZNMKTPLACE AMAZON.CO,Childrens Services,29.98,MISCELLANEOUS AND SPECIALTY RETAIL STORES,2022-23Q1_PC727
